Workbook

Sheet Dt (hidden)
B1: No eliminar Hoja … :))) | AA1: No | AB1: Campo | AC1: 1_Opcion | AD1: 2_Opcion | AF1: Avaya1719 | AQ1: http://scienti.colciencias.gov.co:8080/gruplac/jsp/visualiza/visualizagr.jsp?nro=
AA2: 1 | AB2: Sedes | AC2: Calle 100 | AT2: BB | AV2: =MIN(BD3:BD294) -> 4 | AW2: =MAX(BD3:BD294) -> 294
AA3: 2 | AB3: Sedes | AC3: Campus Cajicá | AK3: Hoja | AN3: Hoja | AO3: FAC | AP3: Grupo | AQ3: COD | AR3: Clas | AS3: Link | AT3: Líneas | AU3: Fila Grupo | AV3: Min | AW3: Max | AX3: FAC | BA3: COD | BB3: Línea | BC3: Cel | BD3: Fila | BE3: E:Gp | BG3: Código de Grupo | BL3: Hora | BM3: Agente | BN3: Agente | BQ3: Id | BR3: ID Final | BS3: Clase | BT3: Subclase | BU3: Producto | BV3: Descripción | BW3: Indicador | BZ3: Errores | CA3: No ERROR | CB3: Hoja | CC3: Descripción | CD3: Mensaje | CE3: Validación | CF3: Item1 | CG3: Item2 | CH3: Item3 | CJ3: Nhoja | CK3: Nombre | CL3: Error | CN3: No | CO3: Tipo | CP3: Duración | CQ3: Tipo | CR3: Alcance | CS3: Línea | CT3: SRL
AA4: 3 | AB4: Sedes | AC4: Medicina | AK4: 3 | AL4: 1 | AM4: =COUNTIF($AN$4:$AN$811,AL4) -> 1 | AN4: 1 | AO4: CIAS | AP4: Fitoplasmas y Virus | AQ4: COL0028687 | AR4: B | AS4: https://scienti.minciencias.gov.co/gruplac/jsp/visualiza/visualizagr.jsp?nro=00000000008436 | AT4: =$AT$2&AV4&":"&$AT$2&AW4 -> BB256:BB257 | AU4: =ROW() -> 4 | AV4: =MINA(IF(AQ4=$BA$4:$BA$410,$BD$4:$BD$410)) -> 256 | AW4: =MAXA(IF(AQ4=$BA$4:$BA$410,$BD$4:$BD$410)) -> 257 | AX4: CIAS | BA4: COL0178619 | BB4: Modelos de simulación | BC4: =COUNTIF(BA$4:BA4,BA4) -> 1 | BD4: =ROW() -> 4 | BE4: =COUNTIF($AQ$3:$AQ$87,BA4) -> 1 | BG4: COL0015722 | BH4: =COUNTIF($AQ$4:$AQ$79,BG4) -> 1 | BL4: 19:54:00 | BM4: a | BN4: a | BO4: =DMIN(BL3:BM12,"hora",BN3:BN4) -> 0.4548611111 | BP4: | | BQ4: 1 | BR4: 201 | BS4: Productos resultado de actividades de desarrollo tecnológico e innovación (DTI) | BT4: Software | BU4: Software aprobado para registro ante la DNDA, de acuerdo con procedimientos establecidos por la UMNG. | BW4: Soporte lógico registre el aval para el software que incluya : Manual técnico, Manual de usuario todos con la inclusión código de trazabilidad, | CA4: =ROW()-4 -> 0 | CJ4: =CA5 -> 1 | CK4: =IFERROR(Fx_Nhj(CJ4),"-") -> Dt | CL4: =MAX(IF($CB$3:$CB$19=$CK4,$CE$3:$CE$19,0)) -> 0 | CN4: 1 | CO4: Fin de la pobreza | CP4: Corto (1 año) | CQ4: Político | CR4: Regional | CS4: Transferencia e intercambio de conocimiento | CT4: SRL 0 – Identificación del problema.
AA5: 4 | AB5: Sedes | AC5: Posgrados calle 94 | AK5: 4 | AL5: 2 | AM5: 1 | AN5: 2 | AO5: CIAS | AP5: Grupo de investigación en Biodiversidad y Ecología de Abejas Silvestres | AQ5: COL0031959 | AR5: B | AS5: https://scienti.minciencias.gov.co/gruplac/jsp/visualiza/visualizagr.jsp?nro=00000000001366 | AT5: =$AT$2&AV5&":"&$AT$2&AW5 -> BB109:BB113 | AU5: =ROW() -> 5 | AV5: =MINA(IF(AQ5=$BA$4:$BA$410,$BD$4:$BD$410)) -> 109 | AW5: =MAXA(IF(AQ5=$BA$4:$BA$410,$BD$4:$BD$410)) -> 113 | AX5: CIAS | BA5: COL0178619 | BB5: Bioinnovación y educación | BC5: =COUNTIF(BA$4:BA5,BA5) -> 2 | BD5: =ROW() -> 5 | BE5: 1 | BG5: COL0026486 | BH5: 1 | BL5: 09:54:00 | BM5: b | BN5: B | BQ5: 2 | BR5: 202 | BS5: Productos resultado de actividades de desarrollo tecnológico e innovación (DTI) | BT5: Esquema trazado | BU5: Esquema de trazado de circuito integrado registrado ante la SIC a través de acto administrativo que resuelva la concesión favorable. | BW5: Documento en el que se describa el esquema de trazado de circuito integrado obtenido con nombre, autor, fecha, cód. de trazabilidad y autores debidamente registrados según Res. vigente, Acto administrativo de la Superintendencia de Industria y Comercio que resuelva la concesión favorable. | CA5: =ROW()-4 -> 1 | CB5: Presupuesto | CC5: Supera Rubro Equipos del 50 % | CD5: ="Supera Rubro [Equipos], Límite esta en "&TEXT(CH5,"$ #.##0")& ", está superando por :"&TEXT(Presupuesto!F116-CH5,"$ #.##0") -> Supera Rubro [Equipos], Límite esta en $ 62.500.000, está superando por :-$ 62.500.000 | CE5: =IF(CF5>CG5,CA5,0) -> 0 | CF5: =Presupuesto!Q52 -> 0 | CG5: =Presupuesto!O52 -> 0.5 | CH5: =Presupuesto!R52 -> 62500000 | CJ5: =CA6 -> 2 | CK5: =IFERROR(Fx_Nhj(CJ5),"-") -> General | CL5: =MAX(IF($CB$3:$CB$19=$CK5,$CE$3:$CE$19,0)) -> 0 | CN5: =CN4+1 -> 2 | CO5: Hambre Cero | CP5: Medio (2 años) | CQ5: Salud | CR5: Nacional | CS5: Gestión del conocimiento para la apropiación | CT5: SRL 1 – Identificación del problema y el grado de madurez social.
AA6: 1 | AB6: Facultad | AC6: Ciencias Básicas | AD6: CIAS | AK6: 12 | AL6: 3 | AM6: 1 | AN6: 3 | AO6: CIAS | AP6: MATRIX | AQ6: COL0039321 | AR6: B | AS6: https://scienti.minciencias.gov.co/gruplac/jsp/visualiza/visualizagr.jsp?nro=00000000002208 | AT6: BB278:BB282 | AU6: =ROW() -> 6 | AV6: =MINA(IF(AQ6=$BA$4:$BA$410,$BD$4:$BD$410)) -> 278 | AW6: =MAXA(IF(AQ6=$BA$4:$BA$410,$BD$4:$BD$410)) -> 282 | AX6: CIAS | BA6: COL0178619 | BB6: Biología de poblaciones y evolutiva de plantas, animales y microorganismos | BC6: =COUNTIF(BA$4:BA6,BA6) -> 3 | BD6: =ROW() -> 6 | BE6: 1 | BG6: COL0027367 | BH6: 1 | BL6: 17:54:00 | BM6: c | BN6: c | BQ6: 3 | BR6: 203 | BS6: Productos resultado de actividades de desarrollo tecnológico e innovación (DTI) | BT6: Normas Internacionales | BU6: Regulaciones, normas, reglamentos o legislaciones implementadas internacionalmente, acorde con parámetros de Minciencias. | BW6: "Documento en el que se describa la regulación, norma, reglamento o legislación+CR10 obtenido con nombre, autor, fecha, cód. de trazabilidad y autores debidamente registrados según Res. vigente" ,"Certificado de la entidad o institución que emitió el producto, indicando la participación en su construcción de todos o de alguno de los integrantes del proyecto, título, país, ciudad, fecha de publicación / implementación, tipo de regulación, ámbito. | CA6: 2 | CB6: Presupuesto | CC6: Supera monto máximo | CD6: ="No puede superar en presupuesto solicitado "&TEXT(CG6,"$ #.##0")&" Lo supera en "&TEXT(CH6,"$ #.##0") -> No puede superar en presupuesto solicitado $ 125.000.000 Lo supera en $ 125.000.000 | CE6: 0 | CF6: =Presupuesto!G103 -> 0 | CG6: =Presupuesto!E157 -> 125000000 | CH6: =ABS(CG6-CF6) -> 125000000 | CJ6: =CA9 -> 5 | CK6: =IFERROR(Fx_Nhj(CJ6),"-") -> Objetivos | CL6: =MAX(IF($CB$3:$CB$19=$CK6,$CE$3:$CE$19,0)) -> 0 | CN6: 3 | CO6: Salud y bienestar | CP6: Largo (3 años) | CQ6: Tecnológico | CR6: Internacional | CS6: Participación ciudadana en CTeI | CT6: SRL 2 – Formulación del problema, soluciones propuestas e impacto potencial, grado de madurez social esperado; identificación de partes interesadas relevantes para el proyecto
AA7: 2 | AB7: Facultad | AC7: Ciencias Económicas | AD7: ECO | AK7: 18 | AL7: 4 | AM7: 1 | AN7: 4 | AO7: CIAS | AP7: Control Biológico UMNG | AQ7: COL0032278 | AR7: A | AS7: https://scienti.minciencias.gov.co/gruplac/jsp/visualiza/visualizagr.jsp?nro=00000000001399 | AT7: BB302:BB304 | AU7: =ROW() -> 7 | AV7: =MINA(IF(AQ7=$BA$4:$BA$410,$BD$4:$BD$410)) -> 302 | AW7: =MAXA(IF(AQ7=$BA$4:$BA$410,$BD$4:$BD$410)) -> 304 | AX7: CIAS | BA7: COL0178619 | BB7: Ecofisiología vegetal, animal y microbiana | BC7: =COUNTIF(BA$4:BA7,BA7) -> 4 | BD7: =ROW() -> 7 | BE7: 1 | BG7: COL0018448 | BH7: 1 | BL7: 10:55:00 | BM7: a | BQ7: 4 | BR7: 204 | BS7: Productos resultado de actividades de desarrollo tecnológico e innovación (DTI) | BT7: Normas Nacionales | BU7: Regulaciones, normas, reglamentos o legislaciones implementadas nacionalmente (no institucional), acorde con parámetros de Minciencias. | BW7: "Documento en el que se describa la regulación, norma, reglamento o legislación+CR10 obtenido con nombre, autor, fecha, cód. de trazabilidad y autores debidamente registrados según Res. vigente" ,"Certificado de la entidad o institución que emitió el producto, indicando la participación en su construcción de todos o de alguno de los integrantes del proyecto, título, país, ciudad, fecha de publicación / implementación, tipo de regulación, ámbito. | CA7: 3 | CB7: Presupuesto | CC7: No se puede Incluir más de un Joven investigador | CD7: No se puede incluir más de un Joven Investigador | CE7: 0 | CF7: =Presupuesto!Q35 -> 0 | CG7: 1 | CJ7: =CA10 -> 6 | CK7: =IFERROR(Fx_Nhj(CJ7),"-") -> Metodología | CL7: =MAX(IF($CB$3:$CB$19=$CK7,$CE$3:$CE$19,0)) -> 0 | CN7: 4 | CO7: Educación de calidad | CQ7: Económico | CS7: Comunicación del conocimiento | CT7: SRL 3 – Pruebas iniciales de las soluciones propuestas junto con partes interesadas relevantes.
AA8: 3 | AB8: Facultad | AC8: Derecho | AD8: DER | AK8: 26 | AL8: 5 | AM8: 1 | AN8: 5 | AO8: CIAS | AP8: Grupo de Micología y Fitopatología | AQ8: COL0013719 | AR8: A1 | AS8: https://scienti.minciencias.gov.co/gruplac/jsp/visualiza/visualizagr.jsp?nro=00000000001127 | AT8: BB154:BB158 | AU8: =ROW() -> 8 | AV8: =MINA(IF(AQ8=$BA$4:$BA$410,$BD$4:$BD$410)) -> 154 | AW8: =MAXA(IF(AQ8=$BA$4:$BA$410,$BD$4:$BD$410)) -> 158 | AX8: CIAS | BA8: COL0178619 | BB8: Servicios ecosistémicos | BC8: =COUNTIF(BA$4:BA8,BA8) -> 5 | BD8: =ROW() -> 8 | BE8: 1 | BG8: COL0028767 | BH8: 1 | BL8: 11:45:00 | BM8: a | BQ8: 5 | BR8: 206 | BS8: Productos resultado de actividades de desarrollo tecnológico e innovación (DTI) | BT8: Informe Técnico Final | BU8: Informe Técnico Final sobre productos o servicios tecnológicos o innovadores | BV8: Documento desde la posición del equipo ejecutor con enfoque en proveer la base para la toma de decisiones con la siguiente información mínima: Estado previo, actual y prospectiva sobre el alistamiento de la tecnología, infraestructura o capacidad interna para la puesta a punto de los productos o servicios, Intangibles susceptibles de protección por Propiedad Intelectual o estrategia para su explotación, viabilidad desde el punto de vista técnico del modelo de negocio y proposición de alternativas independientes a los estudios de mercado, propiedad intelectual y escalamiento realizados por terceros | BW8: Documento con la siguiente información: título del informe, desarrollo del proyecto y alistamiento de la tecnología, fecha de elaboración. | CA8: 4 | CB8: Presupuesto | CC8: solo se puede utilizar rubro Equipos en Modalidades 1 y 2 | CD8: ="No se puede utilizar el rubro de Equipos con la Modalidad "&CF8&" con:"&TEXT(CG8,"$ #.##0") -> No se puede utilizar el rubro de Equipos con la Modalidad 4 con:$ 0 | CE8: =IF(AND(CF8>2,CG8>0),CA8,0)*0 -> 0 | CF8: =Presupuesto!O4 -> 4 | CG8: =Presupuesto!P52 -> 0 | CJ8: =CA7 -> 3 | CK8: =IFERROR(Fx_Nhj(CJ8),"-") -> Resumen | CL8: =MAX(IF($CB$3:$CB$19=$CK8,$CE$3:$CE$19,0)) -> 0 | CN8: 5 | CO8: Igualdad de genero | CQ8: Legal | CT8: SRL 4 – Problema validado por medio de pruebas piloto en un entorno relevantes para justificar el impacto propuesto y el grado de madurez social
AA9: 4 | AB9: Facultad | AC9: Educación y Humanidades | AD9: HUM | AK9: 28 | AL9: 6 | AM9: 1 | AN9: 6 | AO9: CIAS | AP9: Fitopatología molecular | AQ9: COL0086179 | AR9: C | AS9: https://scienti.minciencias.gov.co/gruplac/jsp/visualiza/visualizagr.jsp?nro=00000000007907 | AT9: BB61:BB63 | AU9: =ROW() -> 9 | AV9: =MINA(IF(AQ9=$BA$4:$BA$410,$BD$4:$BD$410)) -> 61 | AW9: =MAXA(IF(AQ9=$BA$4:$BA$410,$BD$4:$BD$410)) -> 63 | AX9: CIAS | BA9: COL0178619 | BB9: Variabilidad y Cambio climático | BC9: =COUNTIF(BA$4:BA9,BA9) -> 6 | BD9: =ROW() -> 9 | BE9: 1 | BG9: COL0028918 | BH9: 1 | BL9: 15:12:00 | BM9: b | BQ9: 6 | BR9: 207 | BS9: Productos resultado de actividades de desarrollo tecnológico e innovación (DTI) | BT9: Prototipo TRL4 | BU9: Productos o procesos tecnológicos usualmente no patentables (Prototipo) - Estado de desarrollo TRL4 - Validación a nivel de laboratorio. | BV9: Mejoramiento del nivel de madurez tecnológica identificada por la División de Desarrollo tecnológico asociado a la valoración de la tecnología (vigilancia tecnológica e inteligencia competitiva, diagnósticos de propiedad intelectual, modelos de negocio u otros). | BW9: Prototipo madurado en mínimo TRL 4 Validado por DDTI o Ente externo especializado y acompañado de: 1. Manual de funcionamiento según el formato establecido por VICEIN. 2.Registro fotográfico de los componentes del prototipo. 3.Registro fílmico sobre funcionamiento del prototipo.4.Soportes de pruebas y validación (según aplique) | CA9: 5 | CB9: Integrantes | CC9: No superar 1 coinnovador | CD9: No se puede incluir más de un coinnovador | CE9: 0 | CF9: =Integrantes!X36 -> 1 | CG9: 1 | CJ9: =CA11 -> 7 | CK9: =IFERROR(Fx_Nhj(CJ9),"-") -> Etica | CL9: =MAX(IF($CB$3:$CB$19=$CK9,$CE$3:$CE$19,0)) -> 0 | CN9: 6 | CO9: Agua limpia y saneamiento | CQ9: Cultural | CT9: SRL 5 – Soluciones propuestas validadas, ahora por las partes interesadas importantes en el área.
AA10: 5 | AB10: Facultad | AC10: Estudios a Distancia | AD10: DIS | AK10: 30 | AL10: 7 | AM10: 1 | AN10: 7 | AO10: CIAS | AP10: Estadística, Control y Optimización | AQ10: COL0136423 | AR10: A | AS10: https://scienti.minciencias.gov.co/gruplac/jsp/visualiza/visualizagr.jsp?nro=00000000013845 | AT10: BB70:BB74 | AU10: =ROW() -> 10 | AV10: =MINA(IF(AQ10=$BA$4:$BA$410,$BD$4:$BD$410)) -> 70 | AW10: =MAXA(IF(AQ10=$BA$4:$BA$410,$BD$4:$BD$410)) -> 74 | AX10: CIAS | BA10: COL0110329 | BB10: Didáctica de las matemáticas universitarias | BC10: =COUNTIF(BA$4:BA10,BA10) -> 1 | BD10: =ROW() -> 10 | BE10: 1 | BG10: COL0031824 | BH10: 1 | BL10: 23:12:00 | BM10: b | BQ10: 7 | BR10: 208 | BS10: Productos resultado de actividades de desarrollo tecnológico e innovación (DTI) | BT10: Prototipo TRL5 | BU10: Productos o procesos tecnológicos (Prototipo) - Estado de desarrollo TRL5 - validación de componentes en entorno relevante. | BV10: =BV9 -> Mejoramiento del nivel de madurez tecnológica identificada por la División de Desarrollo tecnológico asociado a la valoración de la tecnología (vigilancia tecnológica e inteligencia competitiva, diagnósticos de propiedad intelectual, modelos de negocio u otros). | BW10: Prototipo madurado en mínimo un nivel en la escala TRL comprometida o esperada, Validado por DDTI o Ente externo especializado y acompañado de: 1. Manual de funcionamiento según el formato establecido por VICEIN. 2.Registro fotográfico de los componentes del prototipo. 3.Registro fílmico sobre funcionamiento del prototipo. 4.Soportes de pruebas y validación (según aplique). | CA10: 6 | CB10: Integrantes | CC10: No superar 3 Asesores externos | CD10: No se puede incluir más de tres asesores externos | CE10: 0 | CF10: =Integrantes!X41 -> 0 | CG10: 3 | CJ10: =CA8 -> 4 | CK10: =IFERROR(Fx_Nhj(CJ10),"-") -> Estado_del_arte | CL10: =MAX(IF($CB$3:$CB$19=$CK10,$CE$3:$CE$19,0)) -> 0 | CN10: 7 | CO10: Energía asequible y no contaminante | CQ10: Social | CT10: SRL 6 – Soluciones demostradas en un entorno relevante, en cooperación con las partes interesadas relevantes para obtener retroalimentación inicial sobre impactos potenciales
AA11: 6 | AB11: Facultad | AC11: Ingeniería | AD11: ING | AK11: 32 | AL11: 8 | AM11: 1 | AN11: 8 | AO11: CIAS | AP11: Grupo de Ecotoxicología, Evolución, Medio ambiente y Conservación (E = mc2) | AQ11: COL0038084 | AR11: C | AS11: https://scienti.minciencias.gov.co/gruplac/jsp/visualiza/visualizagr.jsp?nro=00000000002068 | AT11: BB101:BB105 | AU11: =ROW() -> 11 | AV11: =MINA(IF(AQ11=$BA$4:$BA$410,$BD$4:$BD$410)) -> 101 | AW11: =MAXA(IF(AQ11=$BA$4:$BA$410,$BD$4:$BD$410)) -> 105 | AX11: CIAS | BA11: COL0110329 | BB11: Diseño curricular y evaluación en matemáticas universitarias | BC11: =COUNTIF(BA$4:BA11,BA11) -> 2 | BD11: =ROW() -> 11 | BE11: 1 | BG11: COL0031959 | BH11: 1 | BL11: 06:20:00 | BM11: c | BQ11: 8 | BR11: 209 | BS11: Productos resultado de actividades de desarrollo tecnológico e innovación (DTI) | BT11: Prototipo TRL6 | BU11: Productos o procesos tecnológicos (Prototipo) - Estado de desarrollo TRL6 - Validación de sistema o subsistema en entorno relevante | BV11: =BV10 -> Mejoramiento del nivel de madurez tecnológica identificada por la División de Desarrollo tecnológico asociado a la valoración de la tecnología (vigilancia tecnológica e inteligencia competitiva, diagnósticos de propiedad intelectual, modelos de negocio u otros). | BW11: Prototipo madurado en mínimo un nivel en la escala TRL comprometida o esperada, Validado por DDTI o Ente externo especializado y acompañado de: 1. Manual de funcionamiento según el formato establecido por VICEIN. 2.Registro fotográfico de los componentes del prototipo. 3.Registro fílmico sobre funcionamiento del prototipo. 4.Soportes de pruebas y validación (según aplique). | CA11: 7 | CB11: Impactos | CC11: El TLR No puede ser inferior al Finalizado | CD11: No puede comprometer un TLR inferior al Inicial | CE11: 0 | CF11: =IFERROR(ABS(LEFT(Impactos!$E13,2)),0) -> 0 | CG11: =IFERROR(ABS(LEFT(Impactos!$E14,2)),0) -> 0 | CJ11: =CA12 -> 8 | CK11: =IFERROR(Fx_Nhj(CJ11),"-") -> Cronograma | CL11: =MAX(IF($CB$3:$CB$19=$CK11,$CE$3:$CE$19,0)) -> 0 | CN11: 8 | CO11: Trabajo decente y crecimiento económico | CQ11: Ambiental | CT11: SRL 7 – Refinamiento del proyecto y/o solución y, de ser necesario, aplicación de nuevas pruebas en el entorno relevante, con partes interesadas relevantes.
AA12: 7 | AB12: Facultad | AC12: Medicina y Ciencias de la Salud | AD12: MED | AK12: 41 | AL12: 9 | AM12: 1 | AN12: 9 | AO12: CIAS | AP12: Grupo de Investigación en Hidrobiología Aplicada (HIDROBIA) | AQ12: COL0048492 | AR12: C | AS12: https://scienti.minciencias.gov.co/gruplac/jsp/visualiza/visualizagr.jsp?nro=00000000005664 | AT12: BB215:BB217 | AU12: =ROW() -> 12 | AV12: =MINA(IF(AQ12=$BA$4:$BA$410,$BD$4:$BD$410)) -> 215 | AW12: =MAXA(IF(AQ12=$BA$4:$BA$410,$BD$4:$BD$410)) -> 217 | AX12: CIAS | BA12: COL0110329 | BB12: Herramientas virtuales y enseñanza de las matemáticas universitarias | BC12: =COUNTIF(BA$4:BA12,BA12) -> 3 | BD12: =ROW() -> 12 | BE12: 1 | BG12: COL0032278 | BH12: 1 | BL12: 12:30:00 | BM12: a | BQ12: 9 | BR12: 210 | BS12: Productos resultado de actividades de desarrollo tecnológico e innovación (DTI) | BT12: Prototipo TRL7 | BU12: Productos o procesos tecnológicos (Prototipo) - Estado de desarrollo TRL7 - Validación en entorno real. | BV12: Mejoramiento del nivel de madurez tecnológica identificada por la División de Desarrollo tecnológico asociado a la valoración de la tecnología (vigilancia tecnológica e inteligencia competitiva, diagnósticos de propiedad intelectual, modelos de negocio u otros). | BW12: Prototipo madurado en mínimo un nivel en la escala TRL comprometida o esperada, Validado por DDTI o Ente externo especializado y acompañado de: 1. Manual de funcionamiento según el formato establecido por VICEIN. 2.Registro fotográfico de los componentes del prototipo. 3.Registro fílmico sobre funcionamiento del prototipo. 4.Soportes de pruebas y validación (según aplique). | CA12: 8 | CJ12: 9 | CK12: =IFERROR(Fx_Nhj(CJ12),"-") -> Integrantes | CL12: =MAX(IF($CB$3:$CB$19=$CK12,$CE$3:$CE$19,0)) -> 0 | CN12: 9 | CO12: Industria, innovación e infraestructura | CT12: SRL 8 – Soluciones propuestas, así como un plan para la adaptación social completo y certificado.
AA13: 8 | AB13: Facultad | AC13: Relaciones Internacionales, Estrategia y Seguridad | AD13: EES | AK13: 42 | AL13: 10 | AM13: 1 | AN13: 10 | AO13: CIAS | AP13: Agrobiología de especies vegetales promisorias de clima frío | AQ13: COL0077814 | AR13: NR | AS13: https://scienti.minciencias.gov.co/gruplac/jsp/visualiza/visualizagr.jsp?nro=00000000006560 | AT13: BB334:BB334 | AU13: =ROW() -> 13 | AV13: =MINA(IF(AQ13=$BA$4:$BA$410,$BD$4:$BD$410)) -> 334 | AW13: =MAXA(IF(AQ13=$BA$4:$BA$410,$BD$4:$BD$410)) -> 334 | AX13: CIAS | BA13: COL0016999 | BB13: Elementos de concreto y de mampostería | BC13: =COUNTIF(BA$4:BA13,BA13) -> 1 | BD13: =ROW() -> 13 | BE13: 1 | BG13: COL0033239 | BH13: 1 | BQ13: 10 | BR13: 211 | BS13: Productos resultado de actividades de desarrollo tecnológico e innovación (DTI) | BT13: Prototipo TRL8 | BU13: Productos o procesos tecnológicos (Prototipo) - Estado de desarrollo TRL8 - Validación completa y certificación en entorno real. | BV13: Mejoramiento del nivel de madurez tecnológica identificada por la División de Desarrollo tecnológico asociado a la valoración de la tecnología (vigilancia tecnológica e inteligencia competitiva, diagnósticos de propiedad intelectual, modelos de negocio u otros). | BW13: Prototipo madurado en mínimo un nivel en la escala TRL comprometida o esperada, Validado por DDTI o Ente externo especializado y acompañado de: 1. Manual de funcionamiento según el formato establecido por VICEIN. 2.Registro fotográfico de los componentes del prototipo. 3.Registro fílmico sobre funcionamiento del prototipo. 4.Soportes de pruebas y validación (según aplique). | CA13: 9 | CJ13: 10 | CK13: =IFERROR(Fx_Nhj(CJ13),"-") -> Productos | CL13: =MAX(IF($CB$3:$CB$19=$CK13,$CE$3:$CE$19,0)) -> 0 | CN13: 10 | CO13: Reducción de las desigualdades | CT13: SRL 9 – Soluciones reales del proyecto, probadas en un entorno relevante
AA14: 1 | AB14: Programa | AC14: CIAS | AD14: Biología Aplicada | AE14: 14 | AK14: 43 | AL14: 11 | AM14: 1 | AN14: 11 | AO14: CIAS | AP14: Grupo Integrado de Investigaciones en Química Bioorgánica (InQuiBio) | AQ14: COL0077707 | AR14: A1 | AS14: https://scienti.minciencias.gov.co/gruplac/jsp/visualiza/visualizagr.jsp?nro=00000000008358 | AT14: BB89:BB97 | AU14: =ROW() -> 14 | AV14: =MINA(IF(AQ14=$BA$4:$BA$410,$BD$4:$BD$410)) -> 89 | AW14: =MAXA(IF(AQ14=$BA$4:$BA$410,$BD$4:$BD$410)) -> 97 | AX14: CIAS | BA14: COL0016999 | BB14: Instrumentación estructural y sensórica | BC14: =COUNTIF(BA$4:BA14,BA14) -> 2 | BD14: =ROW() -> 14 | BE14: 1 | BG14: COL0036025 | BH14: 1 | BQ14: 11 | BR14: 212 | BS14: Productos resultado de actividades de desarrollo tecnológico e innovación (DTI) | BT14: Prototipo TRL9 | BU14: Productos o procesos tecnológicos (Prototipo) - Estado de desarrollo TRL9 - Prueba exitosa en entorno real. | BV14: Mejoramiento del nivel de madurez tecnológica identificada por la División de Desarrollo tecnológico asociado a la valoración de la tecnología (vigilancia tecnológica e inteligencia competitiva, diagnósticos de propiedad intelectual, modelos de negocio u otros). | BW14: Prototipo madurado en mínimo un nivel en la escala TRL comprometida o esperada, Validado por DDTI o Ente externo especializado y acompañado de: 1. Manual de funcionamiento según el formato establecido por VICEIN. 2.Registro fotográfico de los componentes del prototipo. 3.Registro fílmico sobre funcionamiento del prototipo. 4.Soportes de pruebas y validación (según aplique). | CA14: 10 | CJ14: 11 | CK14: =IFERROR(Fx_Nhj(CJ14),"-") -> Presupuesto | CL14: =MAX(IF($CB$3:$CB$19=$CK14,$CE$3:$CE$19,0)) -> 0 | CN14: 11 | CO14: Ciudades y comunidades sostenibles
AA15: 2 | AB15: Programa | AC15: CIAS | AD15: Doctorado en Ciencias Aplicadas | AE15: 15 | AK15: 44 | AL15: 12 | AM15: 1 | AN15: 12 | AO15: CIAS | AP15: GRUPO DE INVESTIGACIÓN EN QUÍMICA AMBIENTAL Y TECNOLOGÍAS LIMPIAS - QUATELI | AQ15: COL0110436 | AR15: C | AS15: https://scienti.minciencias.gov.co/gruplac/jsp/visualiza/visualizagr.jsp?nro=00000000011141 | AT15: =$AT$2&AV15&":"&$AT$2&AW15 -> BB244:BB247 | AU15: =ROW() -> 15 | AV15: =MINA(IF(AQ15=$BA$4:$BA$410,$BD$4:$BD$410)) -> 244 | AW15: =MAXA(IF(AQ15=$BA$4:$BA$410,$BD$4:$BD$410)) -> 247 | AX15: CIAS | BA15: COL0016999 | BB15: Materiales alternativos para construcción | BC15: =COUNTIF(BA$4:BA15,BA15) -> 3 | BD15: =ROW() -> 15 | BE15: 1 | BG15: COL0038084 | BH15: 1 | BQ15: 12 | BR15: 305 | BS15: Producción resultado de actividades de apropiación social del conocimiento (ASC) | BT15: Documento de trabajo (Working Paper) | BU15: Documento de trabajo (Working Paper) | BV15: Título del documento, autor(es), año en que elaboró el documento, instituciones vinculadas en la realización del documento, Página WEB (del working paper) o DOI en donde se encuentra publicado el documento (si la tiene). | BW15: Título del documento, autor(es), año en que elaboró el documento, instituciones vinculadas en la realización del documento, Página WEB (del working paper) o DOI en donde se encuentra publicado el documento (si la tiene). | CA15: 11 | CJ15: 12 | CK15: =IFERROR(Fx_Nhj(CJ15),"-") -> Bibliografía | CL15: =MAX(IF($CB$3:$CB$19=$CK15,$CE$3:$CE$19,0)) -> 0 | CN15: 12 | CO15: Producción y consumo responsables
AA16: 3 | AB16: Programa | AC16: CIAS | AD16: Maestría en Biología Aplicada | AE16: 16 | AK16: 56 | AL16: 13 | AM16: 1 | AN16: 13 | AO16: CIAS | AP16: ECMU (Evaluación en Competencias y Matemáticas Universitarias) | AQ16: COL0110329 | AR16: C | AS16: https://scienti.minciencias.gov.co/gruplac/jsp/visualiza/visualizagr.jsp?nro=00000000011130 | AT16: BB10:BB12 | AU16: =ROW() -> 16 | AV16: =MINA(IF(AQ16=$BA$4:$BA$410,$BD$4:$BD$410)) -> 10 | AW16: =MAXA(IF(AQ16=$BA$4:$BA$410,$BD$4:$BD$410)) -> 12 | AX16: CIAS | BA16: COL0016999 | BB16: Modelación Matemática | BC16: =COUNTIF(BA$4:BA16,BA16) -> 4 | BD16: =ROW() -> 16 | BE16: 1 | BG16: COL0039321 | BH16: 1 | BQ16: 13 | BR16: 306 | BS16: Producción resultado de actividades de apropiación social del conocimiento (ASC) | BT16: Contenidos multimedia (video) con el detalle de la tecnología, utilidad. | BU16: Contenidos multimedia (video) con el detalle de la tecnología, utilidad. | BV16: Producción publicada de carácter audiovisual de calidad con participación de desarrolladores, financiadores y gestores relacionada con la ejecución del prototipado o mentoría y características técnicas de la tecnología o innovación, avances y resultados | BW16: Producción publicada de carácter audiovisual de calidad con participación de desarrolladores, financiadores y gestores relacionada con la ejecución del prototipado o mentoría y características técnicas de la tecnología o innovación, avances y resultados. | CA16: 12 | CJ16: 13 | CK16: =IFERROR(Fx_Nhj(CJ16),"-") -> Impactos | CN16: =CN15+1 -> 13 | CO16: Acción por el clima
AA17: 3 | AB17: Programa | AC17: CIAS | AD17: Matemáticas Aplicadas y Computacionales | AE17: 17 | AK17: 58 | AL17: 14 | AM17: 1 | AN17: 14 | AO17: CIAS | AP17: Grupo de Docencia e Investigación en Física | AQ17: COL0138796 | AR17: NR | AS17: https://scienti.minciencias.gov.co/gruplac/jsp/visualiza/visualizagr.jsp?nro=00000000014082 | AT17: BB314:BB318 | AU17: =ROW() -> 17 | AV17: =MINA(IF(AQ17=$BA$4:$BA$410,$BD$4:$BD$410)) -> 314 | AW17: =MAXA(IF(AQ17=$BA$4:$BA$410,$BD$4:$BD$410)) -> 318 | AX17: CIAS | BA17: COL0016999 | BB17: Vulnerabilidad Sísmica | BC17: =COUNTIF(BA$4:BA17,BA17) -> 5 | BD17: =ROW() -> 17 | BE17: 1 | BG17: COL0045848 | BH17: 1 | BQ17: 14 | BR17: 401 | BS17: Formación de Recurso Humano (FRH) | BT17: Dirección o codirección de Tesis de doctorado | BU17: De estudiantes en programas de posgrado de la UMNG, con temáticas DC | BV17: De estudiantes en programas de posgrado de la UMNG, con temáticas asociadas a líneas de investigación a la que pertenece el proyecto. | BW17: Acta de designación, anteproyecto con código de trazabilidad y acta de acompañamiento final | CA17: 13 | CJ17: 14 | CK17: =IFERROR(Fx_Nhj(CJ17),"-") -> Declaración | CN17: 14 | CO17: Vida submarina
AA18: 3 | AB18: Programa | AC18: CIAS | AD18: Tecnología en Gestión y Producción Hortícola | AE18: 18 | AK18: 71 | AL18: 71 | AM18: 1 | AN18: 15 | AO18: CIAS | AP18: DIVERSITAS | AQ18: COL0178619 | AR18: C | AS18: https://scienti.minciencias.gov.co/gruplac/jsp/visualiza/visualizagr.jsp?nro=00000000018063 | AT18: BB4:BB9 | AU18: =ROW() -> 18 | AV18: =MINA(IF(AQ18=$BA$4:$BA$410,$BD$4:$BD$410)) -> 4 | AW18: =MAXA(IF(AQ18=$BA$4:$BA$410,$BD$4:$BD$410)) -> 9 | AX18: CIAS | BA18: COL0068762 | BB18: Ingeniería Sostenible | BC18: =COUNTIF(BA$4:BA18,BA18) -> 1 | BD18: =ROW() -> 18 | BE18: 1 | BG18: COL0047566 | BH18: 1 | BQ18: 15 | BR18: 402 | BS18: Formación de Recurso Humano (FRH) | BT18: Dirección o codirección de Trabajo de maestría | BU18: De estudiantes en programas de posgrado de la UMNG, con temáticas MG | BV18: De estudiantes en programas de posgrado de la UMNG, con temáticas asociadas a líneas de investigación a la que pertenece el proyecto. | BW18: Acta de designación, anteproyecto con código de trazabilidad y acta de acompañamiento final | CA18: 14 | CJ18: 15 | CK18: =IFERROR(Fx_Nhj(CJ18),"-") -> - | CN18: =CN17+1 -> 15 | CO18: Vida de ecosistemas terrestres
AA19: 3 | AB19: Programa | AC19: DER | AD19: Derecho | AE19: 19 | AK19: 72 | AL19: 72 | AM19: 1 | AN19: 16 | AO19: CIAS | AP19: Nanofab | AQ19: COL0179618 | AR19: C | AS19: https://scienti.minciencias.gov.co/gruplac/jsp/visualiza/visualizagr.jsp?nro=00000000018163 | AT19: BB28:BB33 | AU19: =ROW() -> 19 | AV19: =MINA(IF(AQ19=$BA$4:$BA$410,$BD$4:$BD$410)) -> 28 | AW19: =MAXA(IF(AQ19=$BA$4:$BA$410,$BD$4:$BD$410)) -> 33 | AX19: CIAS | BA19: COL0068762 | BB19: Inteligencia artificial y procesamiento de señales | BC19: =COUNTIF(BA$4:BA19,BA19) -> 2 | BD19: =ROW() -> 19 | BE19: 1 | BG19: COL0047762 | BH19: 1 | BQ19: 16 | BR19: 403 | BS19: Formación de Recurso Humano (FRH) | BT19: Joven Investigador | BU19: Joven investigador vinculado por mínimo ocho meses según los criterios de la Resolución vigente sobre vinculación de personal a los proyectos de investigación financiados o cofinanciados por la UMNG en los programas de CTeI. | BW19: Contrato OPS , informe de actividades final. | CA19: 15 | CN19: 16 | CO19: Paz, justicia e instituciones sólidas
AA20: 3 | AB20: Programa | AC20: DER | AD20: Derecho Bogotá | AE20: 20 | AK20: 11 | AL20: 15 | AM20: 1 | AN20: 17 | AO20: CIAS | AP20: ICAAO: Inteligencia Computacional, Aprendizaje Automático y Optimización | AQ20: COL0169362 | AR20: C | AS20: https://scienti.minciencias.gov.co/gruplac/jsp/visualiza/visualizagr.jsp?nro=00000000017140 | AT20: BB285:BB288 | AU20: =ROW() -> 20 | AV20: =MINA(IF(AQ20=$BA$4:$BA$410,$BD$4:$BD$410)) -> 285 | AW20: =MAXA(IF(AQ20=$BA$4:$BA$410,$BD$4:$BD$410)) -> 288 | AX20: CIAS | BA20: COL0068762 | BB20: Tecnologías de la información y las comunicaciones (TIC) | BC20: =COUNTIF(BA$4:BA20,BA20) -> 3 | BD20: =ROW() -> 20 | BE20: 1 | BG20: COL0049659 | BH20: 1 | BQ20: 17 | BR20: 404 | BS20: Formación de Recurso Humano (FRH) | BT20: Dirección o codirección de Trabajo de pregrado | BU20: Dirección de Trabajo de grado de estudiantes en programas de pregrado de la UMNG, con temáticas asociadas a línea de investigación a la que pertenece el proyecto. | BW20: Copia del acta sustentación del proyecto de grado | CN20: 17 | CO20: Alianzas para lograr los objetivos
AA21: 4 | AB21: Programa | AC21: DER | AD21: Especialización en Derecho Administrativo | AE21: 21 | AK21: 47 | AL21: 16 | AM21: 1 | AN21: 18 | AO21: DER | AP21: Grupo de Investigación en Derecho 'Álvaro Mendoza Palomino' | AQ21: COL0028918 | AR21: B | AS21: https://scienti.minciencias.gov.co/gruplac/jsp/visualiza/visualizagr.jsp?nro=00000000001079 | AT21: BB165:BB169 | AU21: =ROW() -> 21 | AV21: =MINA(IF(AQ21=$BA$4:$BA$410,$BD$4:$BD$410)) -> 165 | AW21: =MAXA(IF(AQ21=$BA$4:$BA$410,$BD$4:$BD$410)) -> 169 | AX21: DER | BA21: COL0143731 | BB21: Electrónica y Telecomunicaciones en Salud | BC21: =COUNTIF(BA$4:BA21,BA21) -> 1 | BD21: =ROW() -> 21 | BE21: 1 | BG21: COL0049999 | BH21: 1 | BQ21: 18 | BR21: 405 | BS21: Formación de Recurso Humano (FRH) | BT21: Tutoría de un proyecto de iniciación científica | BU21: Tutoría de un proyecto de iniciación científica de estudiantes de la UMNG, con temáticas asociadas a línea de investigación a la que pertenece el proyecto. | BW21: Informe final y acta del Comité de investigaciones con el aval del cierre del PIC
AA22: 5 | AB22: Programa | AC22: DER | AD22: Especialización en Derecho Sancionatorio | AE22: 22 | AK22: 68 | AL22: 17 | AM22: 1 | AN22: 19 | AO22: DER | AP22: Grupo de Derecho Privado | AQ22: COL0128047 | AR22: C | AS22: https://scienti.minciencias.gov.co/gruplac/jsp/visualiza/visualizagr.jsp?nro=00000000012964 | AT22: BB24:BB25 | AU22: =ROW() -> 22 | AV22: =MINA(IF(AQ22=$BA$4:$BA$410,$BD$4:$BD$410)) -> 24 | AW22: =MAXA(IF(AQ22=$BA$4:$BA$410,$BD$4:$BD$410)) -> 25 | AX22: DER | BA22: COL0143731 | BB22: Espectro Radioeléctrico | BC22: =COUNTIF(BA$4:BA22,BA22) -> 2 | BD22: =ROW() -> 22 | BE22: 1 | BG22: COL0050294 | BH22: 1
AA23: 6 | AB23: Programa | AC23: DER | AD23: Especialización en Derechos Humanos y Sistemas de Protección | AE23: 23 | AK23: 2 | AL23: 18 | AM23: 1 | AN23: 20 | AO23: DER | AP23: RED DE ESTUDIOS SOCIOJURÍDICOS COMPARADOS Y POLÍTICAS PÚBLICAS-RESCYPP | AQ23: COL0142449 | AR23: B | AS23: https://scienti.minciencias.gov.co/gruplac/jsp/visualiza/visualizagr.jsp?nro=00000000014449 | AT23: BB176:BB181 | AU23: =ROW() -> 23 | AV23: =MINA(IF(AQ23=$BA$4:$BA$410,$BD$4:$BD$410)) -> 176 | AW23: =MAXA(IF(AQ23=$BA$4:$BA$410,$BD$4:$BD$410)) -> 181 | AX23: DER | BA23: COL0143731 | BB23: Sistemas virtuales de comunicación | BC23: =COUNTIF(BA$4:BA23,BA23) -> 3 | BD23: =ROW() -> 23 | BE23: 1 | BG23: COL0052163 | BH23: 1
AA24: 7 | AB24: Programa | AC24: DER | AD24: Especialización en Procedimiento Penal Constitucional y Justicia Militar | AE24: 24 | AK24: 8 | AL24: 19 | AM24: 1 | AN24: 21 | AO24: DIS | AP24: PROPPIO: Procesos organizacionales, programáticos y políticos para la promoción del desarrollo | AQ24: COL0062704 | AR24: NR | AS24: https://scienti.minciencias.gov.co/gruplac/jsp/visualiza/visualizagr.jsp?nro=00000000006477 | AT24: BB330:BB333 | AU24: =ROW() -> 24 | AV24: =MINA(IF(AQ24=$BA$4:$BA$410,$BD$4:$BD$410)) -> 330 | AW24: =MAXA(IF(AQ24=$BA$4:$BA$410,$BD$4:$BD$410)) -> 333 | AX24: DIS | BA24: COL0128047 | BB24: Derecho de la responsabilidad y de seguros | BC24: =COUNTIF(BA$4:BA24,BA24) -> 1 | BD24: =ROW() -> 24 | BE24: 1 | BG24: COL0052181 | BH24: 1
AA25: 8 | AB25: Programa | AC25: DER | AD25: Maestría en Derecho Administrativo | AE25: 25 | AK25: 20 | AL25: 20 | AM25: 1 | AN25: 22 | AO25: DIS | AP25: INCONDIS | AQ25: COL0127649 | AR25: C | AS25: https://scienti.minciencias.gov.co/gruplac/jsp/visualiza/visualizagr.jsp?nro=00000000012918 | AT25: BB134:BB134 | AU25: =ROW() -> 25 | AV25: =MINA(IF(AQ25=$BA$4:$BA$410,$BD$4:$BD$410)) -> 134 | AW25: =MAXA(IF(AQ25=$BA$4:$BA$410,$BD$4:$BD$410)) -> 134 | AX25: DIS | BA25: COL0128047 | BB25: Derecho económico y de los negocios. | BC25: =COUNTIF(BA$4:BA25,BA25) -> 2 | BD25: =ROW() -> 25 | BE25: 1 | BG25: COL0065804 | BH25: 1
AA26: 9 | AB26: Programa | AC26: DER | AD26: Maestría en Derecho Procesal Penal | AE26: 26 | AK26: 22 | AL26: 21 | AM26: 1 | AN26: 23 | AO26: DIS | AP26: "PYDES" Pedagogía y didáctica en la educación superior | AQ26: COL0018448 | AR26: C | AS26: https://scienti.minciencias.gov.co/gruplac/jsp/visualiza/visualizagr.jsp?nro=00000000000929 | AT26: BB241:BB243 | AU26: =ROW() -> 26 | AV26: =MINA(IF(AQ26=$BA$4:$BA$410,$BD$4:$BD$410)) -> 241 | AW26: =MAXA(IF(AQ26=$BA$4:$BA$410,$BD$4:$BD$410)) -> 243 | AX26: DIS | BA26: COL0050294 | BB26: Economía política del conflicto | BC26: =COUNTIF(BA$4:BA26,BA26) -> 1 | BD26: =ROW() -> 26 | BE26: 1 | BG26: COL0066229 | BH26: 1
AA27: 10 | AB27: Programa | AC27: DER | AD27: Tecnología en Investigación Judicial y Criminalística | AE27: 27 | AK27: 39 | AL27: 22 | AM27: 1 | AN27: 24 | AO27: DIS | AP27: PACMAN Prospectiva Académica y Ciencias Multidisciplinares Aplicadas a la Neotecnología | AQ27: COL0067504 | AR27: C | AS27: https://scienti.minciencias.gov.co/gruplac/jsp/visualiza/visualizagr.jsp?nro=00000000004308 | AT27: BB54:BB59 | AU27: =ROW() -> 27 | AV27: =MINA(IF(AQ27=$BA$4:$BA$410,$BD$4:$BD$410)) -> 54 | AW27: =MAXA(IF(AQ27=$BA$4:$BA$410,$BD$4:$BD$410)) -> 59 | AX27: DIS | BA27: COL0050294 | BB27: Economía, Gestión y Medio Ambiente | BC27: =COUNTIF(BA$4:BA27,BA27) -> 2 | BD27: =ROW() -> 27 | BE27: 1 | BG27: COL0066669 | BH27: 1
AA28: 11 | AB28: Programa | AC28: DIS | AD28: Contaduría Pública (Distancia) | AE28: 28 | AK28: 61 | AL28: 23 | AM28: 1 | AN28: 25 | AO28: DIS | AP28: PIREO "Procesos de Integración, Regionalización y Estructuras Organizacionales" | AQ28: COL0066229 | AR28: B | AS28: https://scienti.minciencias.gov.co/gruplac/jsp/visualiza/visualizagr.jsp?nro=00000000004242 | AT28: BB289:BB291 | AU28: =ROW() -> 28 | AV28: =MINA(IF(AQ28=$BA$4:$BA$410,$BD$4:$BD$410)) -> 289 | AW28: =MAXA(IF(AQ28=$BA$4:$BA$410,$BD$4:$BD$410)) -> 291 | AX28: DIS | BA28: COL0179618 | BB28: Biochips | BC28: =COUNTIF(BA$4:BA28,BA28) -> 1 | BD28: =ROW() -> 28 | BE28: 1 | BG28: COL0066768 | BH28: 1
AA29: 12 | AB29: Programa | AC29: DIS | AD29: Relaciones Internacionales y Estudios Políticos (Virtual) | AE29: 29 | AK29: 67 | AL29: 24 | AM29: 1 | AN29: 26 | AO29: DIS | AP29: Modelos de simulación ICDIST | AQ29: COL0069296 | AR29: C | AS29: https://scienti.minciencias.gov.co/gruplac/jsp/visualiza/visualizagr.jsp?nro=00000000004423 | AT29: =$AT$2&AV29&":"&$AT$2&AW29 -> BB60:BB60 | AU29: =ROW() -> 29 | AV29: =MINA(IF(AQ29=$BA$4:$BA$410,$BD$4:$BD$410)) -> 60 | AW29: =MAXA(IF(AQ29=$BA$4:$BA$410,$BD$4:$BD$410)) -> 60 | AX29: DIS | BA29: COL0179618 | BB29: Diseño y fabricación de sistemas para producción de nanomateriales | BC29: =COUNTIF(BA$4:BA29,BA29) -> 2 | BD29: =ROW() -> 29 | BE29: 1 | BG29: COL0067504 | BH29: 1
AA30: 12 | AB30: Programa | AC30: DIS | AD30: Administración de Empresas (Distancia) | AE30: 30 | AK30: 13 | AL30: 25 | AM30: 1 | AN30: 27 | AO30: DIS | AP30: INAMPE | AQ30: COL0142331 | AR30: C | AS30: https://scienti.minciencias.gov.co/gruplac/jsp/visualiza/visualizagr.jsp?nro=00000000014438 | AT30: BB125:BB127 | AU30: =ROW() -> 30 | AV30: =MINA(IF(AQ30=$BA$4:$BA$410,$BD$4:$BD$410)) -> 125 | AW30: =MAXA(IF(AQ30=$BA$4:$BA$410,$BD$4:$BD$410)) -> 127 | AX30: DIS | BA30: COL0179618 | BB30: Holografía digital | BC30: =COUNTIF(BA$4:BA30,BA30) -> 3 | BD30: =ROW() -> 30 | BE30: 1 | BG30: COL0068762 | BH30: 1
AA31: 13 | AB31: Programa | AC31: DIS | AD31: Administración de riesgos, seguridad y salud en el trabajo (Distancia) | AE31: 31 | AK31: 17 | AL31: 26 | AM31: 1 | AN31: 28 | AO31: ECO | AP31: Grupo de Estudios en Ciencias Económicas - CIE | AQ31: COL0050294 | AR31: B | AS31: https://scienti.minciencias.gov.co/gruplac/jsp/visualiza/visualizagr.jsp?nro=00000000003322 | AT31: BB26:BB27 | AU31: =ROW() -> 31 | AV31: =MINA(IF(AQ31=$BA$4:$BA$410,$BD$4:$BD$410)) -> 26 | AW31: =MAXA(IF(AQ31=$BA$4:$BA$410,$BD$4:$BD$410)) -> 27 | AX31: ECO | BA31: COL0179618 | BB31: Nanofotónica, sensórica y nanotecnología | BC31: =COUNTIF(BA$4:BA31,BA31) -> 4 | BD31: =ROW() -> 31 | BE31: 1 | BG31: COL0069296 | BH31: 1
AA32: 14 | AB32: Programa | AC32: DIS | AD32: Especialización en Alta Gerencia (Distancia) | AE32: 32 | AK32: 40 | AL32: 27 | AM32: 1 | AN32: 29 | AO32: ECO | AP32: GRUPO DE ESTUDIOS SOBRE DESIGUALDADES SOCIALES | AQ32: COL0027367 | AR32: C | AS32: https://scienti.minciencias.gov.co/gruplac/jsp/visualiza/visualizagr.jsp?nro=00000000000855 | AT32: BB98:BB100 | AU32: =ROW() -> 32 | AV32: =MINA(IF(AQ32=$BA$4:$BA$410,$BD$4:$BD$410)) -> 98 | AW32: =MAXA(IF(AQ32=$BA$4:$BA$410,$BD$4:$BD$410)) -> 100 | AX32: ECO | BA32: COL0179618 | BB32: Termo-electrónica | BC32: =COUNTIF(BA$4:BA32,BA32) -> 5 | BD32: =ROW() -> 32 | BE32: 1 | BG32: COL0048492 | BH32: 1
AA33: 15 | AB33: Programa | AC33: DIS | AD33: Ingeniería Civil (Distancia) | AE33: 33 | AK33: 64 | AL33: 28 | AM33: 1 | AN33: 30 | AO33: ECO | AP33: Grupo de Estudios Contemporáneos en Gestión y Organizaciones -GECGO- | AQ33: COL0028767 | AR33: A | AS33: https://scienti.minciencias.gov.co/gruplac/jsp/visualiza/visualizagr.jsp?nro=00000000001069 | AT33: BB262:BB264 | AU33: =ROW() -> 33 | AV33: =MINA(IF(AQ33=$BA$4:$BA$410,$BD$4:$BD$410)) -> 262 | AW33: =MAXA(IF(AQ33=$BA$4:$BA$410,$BD$4:$BD$410)) -> 264 | AX33: ECO | BA33: COL0179618 | BB33: Tomografía óptica coherente | BC33: =COUNTIF(BA$4:BA33,BA33) -> 6 | BD33: =ROW() -> 33 | BE33: 1 | BG33: COL0050982 | BH33: 0
AA34: 16 | AB34: Programa | AC34: DIS | AD34: Ingeniería Industrial (Distancia) | AE34: 34 | AK34: 21 | AL34: 29 | AM34: 1 | AN34: 31 | AO34: ECO | AP34: GECS (Grupo de Estudios en Educación Contabilidad y Sociedad) | AQ34: COL0117722 | AR34: B | AS34: https://scienti.minciencias.gov.co/gruplac/jsp/visualiza/visualizagr.jsp?nro=00000000011887 | AT34: BB248:BB250 | AU34: =ROW() -> 34 | AV34: =MINA(IF(AQ34=$BA$4:$BA$410,$BD$4:$BD$410)) -> 248 | AW34: =MAXA(IF(AQ34=$BA$4:$BA$410,$BD$4:$BD$410)) -> 250 | AX34: ECO | BA34: COL0116636 | BB34: Desarrollo de software y hardware embarcable | BC34: =COUNTIF(BA$4:BA34,BA34) -> 1 | BD34: =ROW() -> 34 | BE34: 1 | BG34: COL0062704 | BH34: 1
AA35: 16 | AB35: Programa | AC35: DIS | AD35: Ingeniería Informática (Distancia) | AE35: 35 | AK35: 53 | AL35: 30 | AM35: 1 | AN35: 32 | AO35: EES | AP35: Estudios Internacionales y Políticos | AQ35: COL0066768 | AR35: B | AS35: https://scienti.minciencias.gov.co/gruplac/jsp/visualiza/visualizagr.jsp?nro=00000000004270 | AT35: BB170:BB175 | AU35: =ROW() -> 35 | AV35: =MINA(IF(AQ35=$BA$4:$BA$410,$BD$4:$BD$410)) -> 170 | AW35: =MAXA(IF(AQ35=$BA$4:$BA$410,$BD$4:$BD$410)) -> 175 | AX35: EES | BA35: COL0116636 | BB35: Procesamiento digital de señales e imágenes | BC35: =COUNTIF(BA$4:BA35,BA35) -> 2 | BD35: =ROW() -> 35 | BE35: 1 | BG35: COL0077814 | BH35: 1
AA36: 17 | AB36: Programa | AC36: DIS | AD36: Maestría en Gerencia Estratégica de las TIC en las Organizaciones (Distancia) | AE36: 36 | AK36: 9 | AL36: 31 | AM36: =COUNTIF($AN$4:$AN$811,AL36) -> 1 | AN36: 33 | AO36: EES | AP36: Sociedad, Estrategia y Seguridad | AQ36: COL0066669 | AR36: C | AS36: https://scienti.minciencias.gov.co/gruplac/jsp/visualiza/visualizagr.jsp?nro=00000000004263 | AT36: BB204:BB208 | AU36: =ROW() -> 36 | AV36: =MINA(IF(AQ36=$BA$4:$BA$410,$BD$4:$BD$410)) -> 204 | AW36: =MAXA(IF(AQ36=$BA$4:$BA$410,$BD$4:$BD$410)) -> 208 | AX36: EES | BA36: COL0116636 | BB36: Producción sostenible | BC36: =COUNTIF(BA$4:BA36,BA36) -> 3 | BD36: =ROW() -> 36 | BE36: 1 | BG36: COL0067371 | BH36: =COUNTIF($AQ$4:$AQ$79,BG36) -> 0
AA37: 17 | AB37: Programa | AC37: ECO | AD37: Administración de Empresas | AE37: 37 | AK37: 23 | AL37: 32 | AM37: 1 | AN37: 34 | AO37: HUM | AP37: LIDERAZGO | AQ37: COL0015722 | AR37: A1 | AS37: https://scienti.minciencias.gov.co/gruplac/jsp/visualiza/visualizagr.jsp?nro=00000000000744 | AT37: BB42:BB43 | AU37: =ROW() -> 37 | AV37: =MINA(IF(AQ37=$BA$4:$BA$410,$BD$4:$BD$410)) -> 42 | AW37: =MAXA(IF(AQ37=$BA$4:$BA$410,$BD$4:$BD$410)) -> 43 | AX37: HUM | BA37: COL0116636 | BB37: Robótica móvil | BC37: =COUNTIF(BA$4:BA37,BA37) -> 4 | BD37: =ROW() -> 37 | BE37: 1 | BG37: COL0086179 | BH37: 1
AA38: 18 | AB38: Programa | AC38: ECO | AD38: Contaduría Pública | AE38: 38 | AK38: 38 | AL38: 33 | AM38: 1 | AN38: 35 | AO38: HUM | AP38: HUMANITAS | AQ38: COL0101099 | AR38: A | AS38: https://scienti.minciencias.gov.co/gruplac/jsp/visualiza/visualizagr.jsp?nro=00000000010165 | AT38: BB198:BB201 | AU38: =ROW() -> 38 | AV38: =MINA(IF(AQ38=$BA$4:$BA$410,$BD$4:$BD$410)) -> 198 | AW38: =MAXA(IF(AQ38=$BA$4:$BA$410,$BD$4:$BD$410)) -> 201 | AX38: HUM | BA38: COL0116636 | BB38: Sistemas de interacción humano-máquina con actuación convencional y no convencional | BC38: =COUNTIF(BA$4:BA38,BA38) -> 5 | BD38: =ROW() -> 38 | BE38: 1 | BG38: COL0077707 | BH38: 1
AA39: 18 | AB39: Programa | AC39: ECO | AD39: Economía | AE39: 39 | AK39: 50 | AL39: 34 | AM39: 1 | AN39: 36 | AO39: HUM | AP39: Cultura y Desarrollo Humano | AQ39: COL0002896 | AR39: A | AS39: https://scienti.minciencias.gov.co/gruplac/jsp/visualiza/visualizagr.jsp?nro=00000000000740 | AT39: BB237:BB240 | AU39: =ROW() -> 39 | AV39: =MINA(IF(AQ39=$BA$4:$BA$410,$BD$4:$BD$410)) -> 237 | AW39: =MAXA(IF(AQ39=$BA$4:$BA$410,$BD$4:$BD$410)) -> 240 | AX39: HUM | BA39: COL0194866 | BB39: Bioprocesos | BC39: =COUNTIF(BA$4:BA39,BA39) -> 1 | BD39: =ROW() -> 39 | BE39: 1 | BG39: COL0028687 | BH39: 1
AA40: 18 | AB40: Programa | AC40: ECO | AD40: Especialización en Alta Gerencia | AE40: 40 | AK40: 5 | AL40: 35 | AM40: 1 | AN40: 37 | AO40: HUM | AP40: BioethicsGroup | AQ40: COL0031824 | AR40: A | AS40: https://scienti.minciencias.gov.co/gruplac/jsp/visualiza/visualizagr.jsp?nro=00000000001353 | AT40: BB258:BB261 | AU40: =ROW() -> 40 | AV40: =MINA(IF(AQ40=$BA$4:$BA$410,$BD$4:$BD$410)) -> 258 | AW40: =MAXA(IF(AQ40=$BA$4:$BA$410,$BD$4:$BD$410)) -> 261 | AX40: HUM | BA40: COL0194866 | BB40: Ingeniería de procesos, modelación y optimización de instalaciones para la recuperación de recursos del agua | BC40: =COUNTIF(BA$4:BA40,BA40) -> 2 | BD40: =ROW() -> 40 | BE40: 1 | BG40: COL0096032 | BH40: 1
AA41: 18 | AB41: Programa | AC41: ECO | AD41: Especialización en Control Interno | AE41: 41 | AK41: 10 | AL41: 36 | AM41: 1 | AN41: 38 | AO41: ING | AP41: Grupo de Investigación en Multimedia -GIM- | AQ41: COL0044859 | AR41: A | AS41: https://scienti.minciencias.gov.co/gruplac/jsp/visualiza/visualizagr.jsp?nro=00000000002706 | AT41: BB75:BB79 | AU41: =ROW() -> 41 | AV41: =MINA(IF(AQ41=$BA$4:$BA$410,$BD$4:$BD$410)) -> 75 | AW41: =MAXA(IF(AQ41=$BA$4:$BA$410,$BD$4:$BD$410)) -> 79 | AX41: ING | BA41: COL0194866 | BB41: Química del agua, microcontaminantes emergentes y prioritarios | BC41: =COUNTIF(BA$4:BA41,BA41) -> 3 | BD41: =ROW() -> 41 | BE41: 1 | BG41: COL0107771 | BH41: 0
AA42: 18 | AB42: Programa | AC42: ECO | AD42: Especialización en Finanzas y Administración Pública | AE42: 42 | AK42: 14 | AL42: 37 | AM42: 1 | AN42: 39 | AO42: ING | AP42: GEOTECNIA | AQ42: COL0005439 | AR42: A | AS42: https://scienti.minciencias.gov.co/gruplac/jsp/visualiza/visualizagr.jsp?nro=00000000000739 | AT42: BB184:BB188 | AU42: =ROW() -> 42 | AV42: =MINA(IF(AQ42=$BA$4:$BA$410,$BD$4:$BD$410)) -> 184 | AW42: =MAXA(IF(AQ42=$BA$4:$BA$410,$BD$4:$BD$410)) -> 188 | AX42: ING | BA42: COL0015722 | BB42: Bioética, biopolítica y biojurídica | BC42: =COUNTIF(BA$4:BA42,BA42) -> 1 | BD42: =ROW() -> 42 | BE42: 1 | BG42: COL0110329 | BH42: 1
AA43: 19 | AB43: Programa | AC43: ECO | AD43: Especialización en Gerencia de Comercio Internacional | AE43: 43 | AK43: 16 | AL43: 38 | AM43: 1 | AN43: 40 | AO43: ING | AP43: TIGUM: Grupo de Investigación en Telemedicina Universidad Militar | AQ43: COL0052181 | AR43: A | AS43: https://scienti.minciencias.gov.co/gruplac/jsp/visualiza/visualizagr.jsp?nro=00000000003508 | AT43: BB0:BB87 | AU43: =ROW() -> 43 | AV43: =MINA(IF(AQ43=$BA$4:$BA$410,$BD$4:$BD$410)) -> 0 | AW43: =MAXA(IF(AQ43=$BA$4:$BA$410,$BD$4:$BD$410)) -> 87 | AX43: ING | BA43: COL0015722 | BB43: Educación y tecnologías | BC43: =COUNTIF(BA$4:BA43,BA43) -> 2 | BD43: =ROW() -> 43 | BE43: 1 | BG43: COL0110436 | BH43: 0
AA44: 20 | AB44: Programa | AC44: ECO | AD44: Especialización en Gestión de Desarrollo Administrativo | AE44: 44 | AK44: 27 | AL44: 39 | AM44: 1 | AN44: 41 | AO44: ING | AP44: VOLTA | AQ44: COL0065804 | AR44: A1 | AS44: https://scienti.minciencias.gov.co/gruplac/jsp/visualiza/visualizagr.jsp?nro=00000000004193 | AT44: BB114:BB116 | AU44: =ROW() -> 44 | AV44: =MINA(IF(AQ44=$BA$4:$BA$410,$BD$4:$BD$410)) -> 114 | AW44: =MAXA(IF(AQ44=$BA$4:$BA$410,$BD$4:$BD$410)) -> 116 | AX44: ING | BA44: COL0129689 | BB44: Cirugía Ortognática y Distracción Osteogénica | BC44: =COUNTIF(BA$4:BA44,BA44) -> 1 | BD44: =ROW() -> 44 | BE44: 1 | BG44: COL0114201 | BH44: 0
AA45: 21 | AB45: Programa | AC45: ECO | AD45: Especialización en Mercadeo de Servicios | AE45: 45 | AK45: 29 | AL45: 40 | AM45: 1 | AN45: 42 | AO45: ING | AP45: PRODUCCION, INNOVACION Y TECNOLOGIA | AQ45: COL0049999 | AR45: B | AS45: https://scienti.minciencias.gov.co/gruplac/jsp/visualiza/visualizagr.jsp?nro=00000000003290 | AT45: BB64:BB69 | AU45: =ROW() -> 45 | AV45: =MINA(IF(AQ45=$BA$4:$BA$410,$BD$4:$BD$410)) -> 64 | AW45: =MAXA(IF(AQ45=$BA$4:$BA$410,$BD$4:$BD$410)) -> 69 | AX45: ING | BA45: COL0129689 | BB45: Implantología y Cirugía Reconstructiva | BC45: =COUNTIF(BA$4:BA45,BA45) -> 2 | BD45: =ROW() -> 45 | BE45: 1 | BG45: COL0116439 | BH45: 1
AA46: 22 | AB46: Programa | AC46: ECO | AD46: Especialización en Revisoría Fiscal y Auditoria Internacional | AE46: 46 | AK46: 31 | AL46: 41 | AM46: 1 | AN46: 43 | AO46: ING | AP46: GIDAM | AQ46: COL0116636 | AR46: B | AS46: https://scienti.minciencias.gov.co/gruplac/jsp/visualiza/visualizagr.jsp?nro=00000000011773 | AT46: BB34:BB38 | AU46: =ROW() -> 46 | AV46: =MINA(IF(AQ46=$BA$4:$BA$410,$BD$4:$BD$410)) -> 34 | AW46: =MAXA(IF(AQ46=$BA$4:$BA$410,$BD$4:$BD$410)) -> 38 | AX46: ING | BA46: COL0129689 | BB46: Infecciones, Patología y Cirugía Dentoalveolar | BC46: =COUNTIF(BA$4:BA46,BA46) -> 3 | BD46: =ROW() -> 46 | BE46: 1 | BG46: COL0116538 | BH46: 1
AA47: 23 | AB47: Programa | AC47: ECO | AD47: Maestría en Gestión de Organizaciones | AE47: 47 | AK47: 33 | AL47: 42 | AM47: 1 | AN47: 44 | AO47: ING | AP47: DAVINCI | AQ47: COL0036025 | AR47: A1 | AS47: https://scienti.minciencias.gov.co/gruplac/jsp/visualiza/visualizagr.jsp?nro=00000000001843 | AT47: BB117:BB120 | AU47: =ROW() -> 47 | AV47: =MINA(IF(AQ47=$BA$4:$BA$410,$BD$4:$BD$410)) -> 117 | AW47: =MAXA(IF(AQ47=$BA$4:$BA$410,$BD$4:$BD$410)) -> 120 | AX47: ING | BA47: COL0125134 | BB47: Ayudas Auditivas Implantables | BC47: =COUNTIF(BA$4:BA47,BA47) -> 1 | BD47: =ROW() -> 47 | BE47: 1 | BG47: COL0116636 | BH47: 1
AA48: 24 | AB48: Programa | AC48: ECO | AD48: Tecnología en Contabilidad y Tributaria | AE48: 48 | AK48: 34 | AL48: 43 | AM48: 1 | AN48: 45 | AO48: ING | AP48: Estructuras y sísmica | AQ48: COL0016999 | AR48: A1 | AS48: https://scienti.minciencias.gov.co/gruplac/jsp/visualiza/visualizagr.jsp?nro=00000000000737 | AT48: BB13:BB17 | AU48: =ROW() -> 48 | AV48: =MINA(IF(AQ48=$BA$4:$BA$410,$BD$4:$BD$410)) -> 13 | AW48: =MAXA(IF(AQ48=$BA$4:$BA$410,$BD$4:$BD$410)) -> 17 | AX48: ING | BA48: COL0125134 | BB48: Base de cráneo | BC48: =COUNTIF(BA$4:BA48,BA48) -> 2 | BD48: =ROW() -> 48 | BE48: 1 | BG48: COL0117052 | BH48: 1
AA49: 25 | AB49: Programa | AC49: EES | AD49: Administración de riesgos, seguridad y salud en el trabajo | AE49: 49 | AK49: 37 | AL49: 44 | AM49: 1 | AN49: 46 | AO49: ING | AP49: INGENIERÍA, GEOMÁTICA Y EDUCACIÓN (IGE) | AQ49: COL0047566 | AR49: B | AS49: https://scienti.minciencias.gov.co/gruplac/jsp/visualiza/visualizagr.jsp?nro=00000000003044 | AT49: BB265:BB271 | AU49: =ROW() -> 49 | AV49: =MINA(IF(AQ49=$BA$4:$BA$410,$BD$4:$BD$410)) -> 265 | AW49: =MAXA(IF(AQ49=$BA$4:$BA$410,$BD$4:$BD$410)) -> 271 | AX49: ING | BA49: COL0125134 | BB49: Cáncer Laríngeo | BC49: =COUNTIF(BA$4:BA49,BA49) -> 3 | BD49: =ROW() -> 49 | BE49: 1 | BG49: COL0117722 | BH49: 1
AA50: 26 | AB50: Programa | AC50: EES | AD50: Especialización en Administración de la Seguridad | AE50: 50 | AK50: 49 | AL50: 45 | AM50: 1 | AN50: 47 | AO50: ING | AP50: ACCEDER | AQ50: COL0036749 | AR50: C | AS50: https://scienti.minciencias.gov.co/gruplac/jsp/visualiza/visualizagr.jsp?nro=00000000012996 | AT50: BB223:BB224 | AU50: =ROW() -> 50 | AV50: =MINA(IF(AQ50=$BA$4:$BA$410,$BD$4:$BD$410)) -> 223 | AW50: =MAXA(IF(AQ50=$BA$4:$BA$410,$BD$4:$BD$410)) -> 224 | AX50: ING | BA50: COL0125134 | BB50: Enfermedad de Meniere | BC50: =COUNTIF(BA$4:BA50,BA50) -> 4 | BD50: =ROW() -> 50 | BE50: 1 | BG50: COL0125107 | BH50: 0
AA51: 27 | AB51: Programa | AC51: EES | AD51: Especialización en Administración de la Seguridad (Cali) | AE51: 51 | AK51: 52 | AL51: 46 | AM51: 1 | AN51: 48 | AO51: ING | AP51: Agua y Energía - AyE | AQ51: COL0026486 | AR51: A | AS51: https://scienti.minciencias.gov.co/gruplac/jsp/visualiza/visualizagr.jsp?nro=00000000000767 | AT51: BB159:BB164 | AU51: =ROW() -> 51 | AV51: =MINA(IF(AQ51=$BA$4:$BA$410,$BD$4:$BD$410)) -> 159 | AW51: =MAXA(IF(AQ51=$BA$4:$BA$410,$BD$4:$BD$410)) -> 164 | AX51: ING | BA51: COL0125134 | BB51: Oído Crónico | BC51: =COUNTIF(BA$4:BA51,BA51) -> 5 | BD51: =ROW() -> 51 | BE51: 1 | BG51: COL0125134 | BH51: 1
AA52: 28 | AB52: Programa | AC52: EES | AD52: Especialización en Administración de la Seguridad (Cartagena) | AE52: 52 | AK52: 54 | AL52: 47 | AM52: 1 | AN52: 49 | AO52: ING | AP52: GISSIC: Grupo de Investigación en Seguridad y Sistemas de Comunicaciones | AQ52: COL0052163 | AR52: A | AS52: https://scienti.minciencias.gov.co/gruplac/jsp/visualiza/visualizagr.jsp?nro=00000000003506 | AT52: BB232:BB236 | AU52: =ROW() -> 52 | AV52: =MINA(IF(AQ52=$BA$4:$BA$410,$BD$4:$BD$410)) -> 232 | AW52: =MAXA(IF(AQ52=$BA$4:$BA$410,$BD$4:$BD$410)) -> 236 | AX52: ING | BA52: COL0125134 | BB52: Rinosinusitis Crónica | BC52: =COUNTIF(BA$4:BA52,BA52) -> 6 | BD52: =ROW() -> 52 | BE52: 1 | BG52: COL0126015 | BH52: 1
AA53: 31 | AB53: Programa | AC53: EES | AD53: Especialización en Alta Gerencia de Seguridad y Defensa | AE53: 53 | AK53: 57 | AL53: 48 | AM53: 1 | AN53: 50 | AO53: ING | AP53: GAV | AQ53: COL0068762 | AR53: A | AS53: https://scienti.minciencias.gov.co/gruplac/jsp/visualiza/visualizagr.jsp?nro=00000000004391 | AT53: BB18:BB20 | AU53: =ROW() -> 53 | AV53: =MINA(IF(AQ53=$BA$4:$BA$410,$BD$4:$BD$410)) -> 18 | AW53: =MAXA(IF(AQ53=$BA$4:$BA$410,$BD$4:$BD$410)) -> 20 | AX53: ING | BA53: COL0125134 | BB53: Trauma de guerra en Otorrinolaringología | BC53: =COUNTIF(BA$4:BA53,BA53) -> 7 | BD53: =ROW() -> 53 | BE53: 1 | BG53: COL0126777 | BH53: 1
AA54: 32 | AB54: Programa | AC54: EES | AD54: Maestría en Relaciones y Negocios Internacionales | AE54: 54 | AK54: 60 | AL54: 49 | AM54: 1 | AN54: 51 | AO54: ING | AP54: Energía alternativa, Centro Multidisciplinario de Investigación | AQ54: COL0117052 | AR54: C | AS54: https://scienti.minciencias.gov.co/gruplac/jsp/visualiza/visualizagr.jsp?nro=00000000011817 | AT54: BB189:BB193 | AU54: =ROW() -> 54 | AV54: =MINA(IF(AQ54=$BA$4:$BA$410,$BD$4:$BD$410)) -> 189 | AW54: =MAXA(IF(AQ54=$BA$4:$BA$410,$BD$4:$BD$410)) -> 193 | AX54: ING | BA54: COL0067504 | BB54: Gestión Tecnológica | BC54: =COUNTIF(BA$4:BA54,BA54) -> 1 | BD54: =ROW() -> 54 | BE54: 1 | BG54: COL0127649 | BH54: 1
AA55: 33 | AB55: Programa | AC55: EES | AD55: Maestría en Seguridad y Gestión del Riesgo | AE55: 55 | AK55: 66 | AL55: 50 | AM55: 1 | AN55: 52 | AO55: ING | AP55: GI-iTEC - Grupo de Investigación e innovación Tecnológica en Electrónica y Comunicaciones | AQ55: COL0143731 | AR55: C | AS55: https://scienti.minciencias.gov.co/gruplac/jsp/visualiza/visualizagr.jsp?nro=00000000014576 | AT55: BB21:BB23 | AU55: =ROW() -> 55 | AV55: =MINA(IF(AQ55=$BA$4:$BA$410,$BD$4:$BD$410)) -> 21 | AW55: =MAXA(IF(AQ55=$BA$4:$BA$410,$BD$4:$BD$410)) -> 23 | AX55: ING | BA55: COL0067504 | BB55: Gestión del conocimiento | BC55: =COUNTIF(BA$4:BA55,BA55) -> 2 | BD55: =ROW() -> 55 | BE55: 1 | BG55: COL0128047 | BH55: 1
AA56: 34 | AB56: Programa | AC56: EES | AD56: Relaciones Internacionales y Estudios Políticos | AE56: 56 | AK56: 70 | AL56: 51 | AM56: 1 | AN56: 53 | AO56: ING | AP56: LA TRAMOYA | AQ56: COL0126777 | AR56: NR | AS56: https://scienti.minciencias.gov.co/gruplac/jsp/visualiza/visualizagr.jsp?nro=00000000012813 | AT56: BB319:BB324 | AU56: =ROW() -> 56 | AV56: =MINA(IF(AQ56=$BA$4:$BA$410,$BD$4:$BD$410)) -> 319 | AW56: =MAXA(IF(AQ56=$BA$4:$BA$410,$BD$4:$BD$410)) -> 324 | AX56: ING | BA56: COL0067504 | BB56: Los Estilos de enseñanza y Aprendizaje | BC56: =COUNTIF(BA$4:BA56,BA56) -> 3 | BD56: =ROW() -> 56 | BE56: 1 | BG56: COL0036749 | BH56: 1
AA57: 34 | AB57: Programa | AC57: HUM | AD57: Doctorado en Bioética | AE57: 57 | AK57: 1 | AL57: 52 | AM57: 1 | AN57: 54 | AO57: ING | AP57: Grupo de Investigación en Ambiente, Ciencia y Tecnología -GREST- | AQ57: COL0151789 | AR57: A | AS57: https://scienti.minciencias.gov.co/gruplac/jsp/visualiza/visualizagr.jsp?nro=00000000015386 | AT57: =$AT$2&AV57&":"&$AT$2&AW57 -> BB272:BB277 | AU57: =ROW() -> 57 | AV57: =MINA(IF(AQ57=$BA$4:$BA$410,$BD$4:$BD$410)) -> 272 | AW57: =MAXA(IF(AQ57=$BA$4:$BA$410,$BD$4:$BD$410)) -> 277 | AX57: ING | BA57: COL0067504 | BB57: Mercadeo Cuántico | BC57: =COUNTIF(BA$4:BA57,BA57) -> 4 | BD57: =ROW() -> 57 | BE57: 1 | BG57: COL0129689 | BH57: 1
AA58: 35 | AB58: Programa | AC58: HUM | AD58: Especialización en Docencia Universitaria | AE58: 58 | AK58: 6 | AL58: 53 | AM58: 1 | AN58: 55 | AO58: ING | AP58: PROCESOS, OPERACIONES Y LOGISTICA (PROPYLOG) | AQ58: COL0196753 | AR58: C | AS58: https://scienti.minciencias.gov.co/gruplac/jsp/visualiza/visualizagr.jsp?nro=00000000019879 | AT58: =$AT$2&AV58&":"&$AT$2&AW58 -> BB251:BB255 | AU58: =ROW() -> 58 | AV58: =MINA(IF(AQ58=$BA$4:$BA$410,$BD$4:$BD$410)) -> 251 | AW58: =MAXA(IF(AQ58=$BA$4:$BA$410,$BD$4:$BD$410)) -> 255 | AX58: ING | BA58: COL0067504 | BB58: Minería Web | BC58: =COUNTIF(BA$4:BA58,BA58) -> 5 | BD58: =ROW() -> 58 | BE58: 1 | BG58: COL0138796 | BH58: 1
AA59: 36 | AB59: Programa | AC59: HUM | AD59: Maestría en Educación e Innovación Pedagógica | AE59: 59 | AK59: 7 | AL59: 54 | AM59: 1 | AN59: 56 | AO59: ING | AP59: Sistemas de Infraestructura de Ingeniería Civil | AQ59: COL0196799 | AR59: C | AS59: https://scienti.minciencias.gov.co/gruplac/jsp/visualiza/visualizagr.jsp?nro=00000000019883 | AT59: BB298:BB301 | AU59: =ROW() -> 59 | AV59: =MINA(IF(AQ59=$BA$4:$BA$410,$BD$4:$BD$410)) -> 298 | AW59: =MAXA(IF(AQ59=$BA$4:$BA$410,$BD$4:$BD$410)) -> 301 | AX59: ING | BA59: COL0067504 | BB59: Salud Pública, Bioética e Ingeniería | BC59: =COUNTIF(BA$4:BA59,BA59) -> 6 | BD59: =ROW() -> 59 | BE59: 1 | BG59: COL0142331 | BH59: 1
AA60: 37 | AB60: Programa | AC60: ING | AD60: Ingeniería en Multimedia | AE60: 60 | AK60: 15 | AL60: 55 | AM60: 1 | AN60: 57 | AO60: MED | AP60: Ingeniería de Procesos y Tecnologías Sostenibles | AQ60: COL0194866 | AR60: C | AS60: https://scienti.minciencias.gov.co/gruplac/jsp/visualiza/visualizagr.jsp?nro=00000000019690 | AT60: BB39:BB41 | AU60: =ROW() -> 60 | AV60: =MINA(IF(AQ60=$BA$4:$BA$410,$BD$4:$BD$410)) -> 39 | AW60: =MAXA(IF(AQ60=$BA$4:$BA$410,$BD$4:$BD$410)) -> 41 | AX60: ING | BA60: COL0069296 | BB60: Modelos de simulación | BC60: =COUNTIF(BA$4:BA60,BA60) -> 1 | BD60: =ROW() -> 60 | BE60: 1 | BG60: COL0142449 | BH60: 1
AA61: 38 | AB61: Programa | AC61: ING | AD61: Doctorado en Ingeniería | AE61: 61 | AK61: 19 | AL61: 56 | AM61: 1 | AN61: 58 | AO61: MED | AP61: CATCH | AQ61: COL0049659 | AR61: NR | AS61: https://scienti.minciencias.gov.co/gruplac/jsp/visualiza/visualizagr.jsp?nro=00000000003253 | AT61: BB305:BB307 | AU61: =ROW() -> 61 | AV61: =MINA(IF(AQ61=$BA$4:$BA$410,$BD$4:$BD$410)) -> 305 | AW61: =MAXA(IF(AQ61=$BA$4:$BA$410,$BD$4:$BD$410)) -> 307 | AX61: MED | BA61: COL0086179 | BB61: Búsqueda de marcadores genéticos y estudio de genes ligados a la resistencia a Fusarium en clavel. | BC61: =COUNTIF(BA$4:BA61,BA61) -> 1 | BD61: =ROW() -> 61 | BE61: 1 | BG61: COL0016999 | BH61: 1
AA62: 39 | AB62: Programa | AC62: ING | AD62: Especialización en Geomática | AE62: 62 | AK62: 24 | AL62: 57 | AM62: 1 | AN62: 59 | AO62: MED | AP62: BONE | AQ62: COL0047762 | AR62: NR | AS62: https://scienti.minciencias.gov.co/gruplac/jsp/visualiza/visualizagr.jsp?nro=00000000003064 | AT62: BB328:BB329 | AU62: =ROW() -> 62 | AV62: =MINA(IF(AQ62=$BA$4:$BA$410,$BD$4:$BD$410)) -> 328 | AW62: =MAXA(IF(AQ62=$BA$4:$BA$410,$BD$4:$BD$410)) -> 329 | AX62: MED | BA62: COL0086179 | BB62: Producción de nuevas variedades de clavel resistentes a parásitos vasculares. | BC62: =COUNTIF(BA$4:BA62,BA62) -> 2 | BD62: =ROW() -> 62 | BE62: 1 | BG62: COL0005439 | BH62: 1
AA63: 40 | AB63: Programa | AC63: ING | AD63: Especialización en Gerencia Estratégica de la Calidad | AE63: 63 | AK63: 25 | AL63: 58 | AM63: 1 | AN63: 60 | AO63: MED | AP63: GRUPO DE PSORIASIS E INMUNODERMATOLOGIA | AQ63: COL0126015 | AR63: C | AS63: https://scienti.minciencias.gov.co/gruplac/jsp/visualiza/visualizagr.jsp?nro=00000000012737 | AT63: BB182:BB183 | AU63: =ROW() -> 63 | AV63: =MINA(IF(AQ63=$BA$4:$BA$410,$BD$4:$BD$410)) -> 182 | AW63: =MAXA(IF(AQ63=$BA$4:$BA$410,$BD$4:$BD$410)) -> 183 | AX63: MED | BA63: COL0086179 | BB63: Taxonomía y filogenia molecular: desarrollo de instrumentos de análisis | BC63: =COUNTIF(BA$4:BA63,BA63) -> 3 | BD63: =ROW() -> 63 | BE63: 1 | BG63: COL0002896 | BH63: 1
AA64: 41 | AB64: Programa | AC64: ING | AD64: Especialización en Gerencia Integral de Proyectos | AE64: 64 | AK64: 35 | AL64: 59 | AM64: 1 | AN64: 61 | AO64: MED | AP64: ORTOPEDIA Y TRAUMATOLOGIA HMC UMNG | AQ64: COL0134044 | AR64: C | AS64: https://scienti.minciencias.gov.co/gruplac/jsp/visualiza/visualizagr.jsp?nro=00000000013608 | AT64: BB225:BB231 | AU64: =ROW() -> 64 | AV64: =MINA(IF(AQ64=$BA$4:$BA$410,$BD$4:$BD$410)) -> 225 | AW64: =MAXA(IF(AQ64=$BA$4:$BA$410,$BD$4:$BD$410)) -> 231 | AX64: MED | BA64: COL0049999 | BB64: Calidad y Gestión en la Educación | BC64: =COUNTIF(BA$4:BA64,BA64) -> 1 | BD64: =ROW() -> 64 | BE64: 1 | BG64: COL0013719 | BH64: 1
AA65: 42 | AB65: Programa | AC65: ING | AD65: Especialización en Gerencia Logística Integral | AE65: 65 | AK65: 36 | AL65: 60 | AM65: 1 | AN65: 62 | AO65: MED | AP65: Salud y Comportamiento | AQ65: COL0033239 | AR65: NR | AS65: https://scienti.minciencias.gov.co/gruplac/jsp/visualiza/visualizagr.jsp?nro=00000000001536 | AT65: BB325:BB327 | AU65: =ROW() -> 65 | AV65: =MINA(IF(AQ65=$BA$4:$BA$410,$BD$4:$BD$410)) -> 325 | AW65: =MAXA(IF(AQ65=$BA$4:$BA$410,$BD$4:$BD$410)) -> 327 | AX65: MED | BA65: COL0049999 | BB65: Gestión y Proyectos | BC65: =COUNTIF(BA$4:BA65,BA65) -> 2 | BD65: =ROW() -> 65 | BE65: 1 | BG65: COL0101099 | BH65: 1
AA66: 43 | AB66: Programa | AC66: ING | AD66: Especialización en Gestión Integral Ambiental | AE66: 66 | AK66: 45 | AL66: 61 | AM66: 1 | AN66: 63 | AO66: MED | AP66: GRUPO NEUROCIENCIAS HMC | AQ66: COL0138698 | AR66: C | AS66: https://scienti.minciencias.gov.co/gruplac/jsp/visualiza/visualizagr.jsp?nro=00000000014072 | AT66: BB135:BB153 | AU66: =ROW() -> 66 | AV66: =MINA(IF(AQ66=$BA$4:$BA$410,$BD$4:$BD$410)) -> 135 | AW66: =MAXA(IF(AQ66=$BA$4:$BA$410,$BD$4:$BD$410)) -> 153 | AX66: MED | BA66: COL0049999 | BB66: Innovación | BC66: =COUNTIF(BA$4:BA66,BA66) -> 3 | BD66: =ROW() -> 66 | BE66: 1 | BG66: COL0044859 | BH66: 1
AA67: 44 | AB67: Programa | AC67: ING | AD67: Especialización en Ingeniería de Pavimentos | AE67: 67 | AK67: 46 | AL67: 62 | AM67: 1 | AN67: 64 | AO67: MED | AP67: Grupo de Investigación en Dermatología HMC | AQ67: COL0116439 | AR67: C | AS67: https://scienti.minciencias.gov.co/gruplac/jsp/visualiza/visualizagr.jsp?nro=00000000011753 | AT67: BB121:BB124 | AU67: =ROW() -> 67 | AV67: =MINA(IF(AQ67=$BA$4:$BA$410,$BD$4:$BD$410)) -> 121 | AW67: =MAXA(IF(AQ67=$BA$4:$BA$410,$BD$4:$BD$410)) -> 124 | AX67: MED | BA67: COL0049999 | BB67: Productividad | BC67: =COUNTIF(BA$4:BA67,BA67) -> 4 | BD67: =ROW() -> 67 | BE67: =COUNTIF($AQ$3:$AQ$87,BA67) -> 1 | BG67: COL0149359 | BH67: 1
AA68: 45 | AB68: Programa | AC68: ING | AD68: Ingeniería Ambiental | AE68: 68 | AK68: 48 | AL68: 63 | AM68: =COUNTIF($AN$4:$AN$811,AL68) -> 1 | AN68: 65 | AO68: MED | AP68: Grupo de Investigación en Cirugía pediátrica y especialidades CIPEMIL | AQ68: COL0194721 | AR68: C | AS68: https://scienti.minciencias.gov.co/gruplac/jsp/visualiza/visualizagr.jsp?nro=00000000019676 | AT68: BB209:BB214 | AU68: =ROW() -> 68 | AV68: =MINA(IF(AQ68=$BA$4:$BA$410,$BD$4:$BD$410)) -> 209 | AW68: =MAXA(IF(AQ68=$BA$4:$BA$410,$BD$4:$BD$410)) -> 214 | AX68: MED | BA68: COL0049999 | BB68: Sostenibilidad y Medio Ambiente | BC68: =COUNTIF(BA$4:BA68,BA68) -> 5 | BD68: =ROW() -> 68 | BE68: 1 | BG68: COL0143731 | BH68: =COUNTIF($AQ$4:$AQ$79,BG68) -> 1
AA69: 46 | AB69: Programa | AC69: ING | AD69: Ingeniería Biomédica | AE69: 69 | AK69: 51 | AL69: 64 | AM69: 1 | AN69: 66 | AO69: MED | AP69: GRUPO DE SALUD ORAL Y CIRUGIA MAXILOFACIAL | AQ69: COL0129689 | AR69: C | AS69: https://scienti.minciencias.gov.co/gruplac/jsp/visualiza/visualizagr.jsp?nro=00000000013172 | AT69: BB44:BB46 | AU69: =ROW() -> 69 | AV69: =MINA(IF(AQ69=$BA$4:$BA$410,$BD$4:$BD$410)) -> 44 | AW69: =MAXA(IF(AQ69=$BA$4:$BA$410,$BD$4:$BD$410)) -> 46 | AX69: MED | BA69: COL0049999 | BB69: Tecnología | BC69: =COUNTIF(BA$4:BA69,BA69) -> 6 | BD69: =ROW() -> 69 | BE69: 1 | BG69: COL0151789 | BH69: 0
AA70: 47 | AB70: Programa | AC70: ING | AD70: Ingeniería Civil | AE70: 70 | AK70: 55 | AL70: 65 | AM70: 1 | AN70: 67 | AO70: MED | AP70: Kokhlias | AQ70: COL0125134 | AR70: C | AS70: https://scienti.minciencias.gov.co/gruplac/jsp/visualiza/visualizagr.jsp?nro=00000000012649 | AT70: BB47:BB53 | AU70: =ROW() -> 70 | AV70: =MINA(IF(AQ70=$BA$4:$BA$410,$BD$4:$BD$410)) -> 47 | AW70: =MAXA(IF(AQ70=$BA$4:$BA$410,$BD$4:$BD$410)) -> 53 | AX70: MED | BA70: COL0136423 | BB70: Control óptimo estocástico | BC70: =COUNTIF(BA$4:BA70,BA70) -> 1 | BD70: =ROW() -> 70 | BE70: 1 | BG70: COL0152472 | BH70: 1
AA71: 48 | AB71: Programa | AC71: ING | AD71: Ingeniería en Mecatrónica | AE71: 71 | AK71: 59 | AL71: 66 | AM71: 1 | AN71: 68 | AO71: MED | AP71: GRUPO DE REHABILITACION HOMIC-UMNG | AQ71: COL0120281 | AR71: C | AS71: https://scienti.minciencias.gov.co/gruplac/jsp/visualiza/visualizagr.jsp?nro=00000000012152 | AT71: BB128:BB133 | AU71: =ROW() -> 71 | AV71: =MINA(IF(AQ71=$BA$4:$BA$410,$BD$4:$BD$410)) -> 128 | AW71: =MAXA(IF(AQ71=$BA$4:$BA$410,$BD$4:$BD$410)) -> 133 | AX71: MED | BA71: COL0136423 | BB71: Estadística Multivariada paramétrica y no paramétrica. | BC71: =COUNTIF(BA$4:BA71,BA71) -> 2 | BD71: =ROW() -> 71 | BE71: 1 | BG71: COL0152319 | BH71: 1
AA72: 49 | AB72: Programa | AC72: ING | AD72: Ingeniería en Telecomunicaciones | AE72: 72 | AK72: 62 | AL72: 67 | AM72: 1 | AN72: 69 | AO72: MED | AP72: Grupo de Investigación en Urología HMC | AQ72: COL0116538 | AR72: C | AS72: https://scienti.minciencias.gov.co/gruplac/jsp/visualiza/visualizagr.jsp?nro=00000000011763 | AT72: BB292:BB297 | AU72: =ROW() -> 72 | AV72: =MINA(IF(AQ72=$BA$4:$BA$410,$BD$4:$BD$410)) -> 292 | AW72: =MAXA(IF(AQ72=$BA$4:$BA$410,$BD$4:$BD$410)) -> 297 | AX72: MED | BA72: COL0136423 | BB72: Métodos estadísticos basados en grafos | BC72: =COUNTIF(BA$4:BA72,BA72) -> 3 | BD72: =ROW() -> 72 | BE72: 1 | BG72: COL0152463 | BH72: 1
AA73: 50 | AB73: Programa | AC73: ING | AD73: Ingeniería Industrial | AE73: 73 | AK73: 69 | AL73: 70 | AM73: 1 | AN73: 70 | AO73: MED | AP73: Epidemiología molecular de enfermedades endocrinas | AQ73: COL0045848 | AR73: C | AS73: https://scienti.minciencias.gov.co/gruplac/jsp/visualiza/visualizagr.jsp?nro=00000000002874 | AT73: BB106:BB108 | AU73: =ROW() -> 73 | AV73: =MINA(IF(AQ73=$BA$4:$BA$410,$BD$4:$BD$410)) -> 106 | AW73: =MAXA(IF(AQ73=$BA$4:$BA$410,$BD$4:$BD$410)) -> 108 | AX73: MED | BA73: COL0136423 | BB73: Optimización Semidefinida | BC73: =COUNTIF(BA$4:BA73,BA73) -> 4 | BD73: =ROW() -> 73 | BE73: 1 | BG73: COL0138698 | BH73: 1
AA74: 51 | AB74: Programa | AC74: ING | AD74: Maestría en Gerencia Integral de Proyectos | AE74: 74 | AN74: 71 | AO74: MED | AP74: EDUMECIS | AQ74: COL0152463 | AR74: C | AS74: https://scienti.minciencias.gov.co/gruplac/jsp/visualiza/visualizagr.jsp?nro=00000000015421 | AT74: BB194:BB197 | AU74: =ROW() -> 74 | AV74: =MINA(IF(AQ74=$BA$4:$BA$410,$BD$4:$BD$410)) -> 194 | AW74: =MAXA(IF(AQ74=$BA$4:$BA$410,$BD$4:$BD$410)) -> 197 | AX74: MED | BA74: COL0136423 | BB74: Optimización Numérica. Máquinas de Vectores de Soportes. | BC74: =COUNTIF(BA$4:BA74,BA74) -> 5 | BD74: =ROW() -> 74 | BE74: 1 | BG74: COL0120281 | BH74: 1
AA75: 52 | AB75: Programa | AC75: ING | AD75: Maestría en Gerencia Logística Integral | AE75: 75 | AN75: 72 | AO75: MED | AP75: BioGenEtica & BioDerecho | AQ75: COL0096032 | AR75: NR | AS75: https://scienti.minciencias.gov.co/gruplac/jsp/visualiza/visualizagr.jsp?nro=00000000009651 | AT75: BB311:BB313 | AU75: =ROW() -> 75 | AV75: =MINA(IF(AQ75=$BA$4:$BA$410,$BD$4:$BD$410)) -> 311 | AW75: =MAXA(IF(AQ75=$BA$4:$BA$410,$BD$4:$BD$410)) -> 313 | AX75: MED | BA75: COL0044859 | BB75: Interacción Humano Computador | BC75: =COUNTIF(BA$4:BA75,BA75) -> 1 | BD75: =ROW() -> 75 | BE75: 1 | BG75: COL0136423 | BH75: 1
AA76: 53 | AB76: Programa | AC76: ING | AD76: Maestría en Ingeniería Civil | AE76: 76 | AN76: 73 | AO76: MED | AP76: GAFRED | AQ76: COL0149359 | AR76: NR | AS76: https://scienti.minciencias.gov.co/gruplac/jsp/visualiza/visualizagr.jsp?nro=00000000015141 | AT76: BB308:BB310 | AU76: =ROW() -> 76 | AV76: =MINA(IF(AQ76=$BA$4:$BA$410,$BD$4:$BD$410)) -> 308 | AW76: =MAXA(IF(AQ76=$BA$4:$BA$410,$BD$4:$BD$410)) -> 310 | AX76: MED | BA76: COL0044859 | BB76: Multimedia Educativa | BC76: =COUNTIF(BA$4:BA76,BA76) -> 2 | BD76: =ROW() -> 76 | BE76: 1
AA77: 54 | AB77: Programa | AC77: ING | AD77: Maestría en Ingeniería Mecatrónica | AE77: 77 | AN77: 74 | AO77: MED | AP77: Grupo de Inmunología Clínica Aplicada | AQ77: COL0152472 | AR77: A1 | AS77: https://scienti.minciencias.gov.co/gruplac/jsp/visualiza/visualizagr.jsp?nro=00000000015414 | AT77: =$AT$2&AV77&":"&$AT$2&AW77 -> BB283:BB284 | AU77: =ROW() -> 77 | AV77: =MINA(IF(AQ77=$BA$4:$BA$410,$BD$4:$BD$410)) -> 283 | AW77: =MAXA(IF(AQ77=$BA$4:$BA$410,$BD$4:$BD$410)) -> 284 | AX77: MED | BA77: COL0044859 | BB77: Procesamiento digital de imágenes y Visión por computador | BC77: =COUNTIF(BA$4:BA77,BA77) -> 3 | BD77: =ROW() -> 77 | BE77: 1
AA78: 55 | AB78: Programa | AC78: ING | AD78: Tecnología en Electrónica y Telecomunicaciones | AE78: 78 | AN78: 75 | AO78: MED | AP78: Epidemiología y Salud Colectiva | AQ78: COL0152319 | AR78: C | AS78: https://scienti.minciencias.gov.co/gruplac/jsp/visualiza/visualizagr.jsp?nro=00000000015438 | AT78: =$AT$2&AV78&":"&$AT$2&AW78 -> BB218:BB222 | AU78: =ROW() -> 78 | AV78: =MINA(IF(AQ78=$BA$4:$BA$410,$BD$4:$BD$410)) -> 218 | AW78: =MAXA(IF(AQ78=$BA$4:$BA$410,$BD$4:$BD$410)) -> 222 | AX78: MED | BA78: COL0044859 | BB78: Sistemas Multimedia | BC78: =COUNTIF(BA$4:BA78,BA78) -> 4 | BD78: =ROW() -> 78 | BE78: 1
AA79: 56 | AB79: Programa | AC79: MED | AD79: Medicina | AE79: 79 | AN79: 76 | AO79: MED | AP79: GRUPO DE INVESTIGACIONES SOBRE AGENTES RADIOLÓGICOS, BIOLÓGICOS Y QUÍMICOS | AQ79: COL0191078 | AR79: C | AS79: https://scienti.minciencias.gov.co/gruplac/jsp/visualiza/visualizagr.jsp?nro=00000000019309 | AT79: BB202:BB203 | AU79: =ROW() -> 79 | AV79: =MINA(IF(AQ79=$BA$4:$BA$410,$BD$4:$BD$410)) -> 202 | AW79: =MAXA(IF(AQ79=$BA$4:$BA$410,$BD$4:$BD$410)) -> 203 | AX79: MED | BA79: COL0044859 | BB79: Visualización y Computación Gráfica | BC79: =COUNTIF(BA$4:BA79,BA79) -> 5 | BD79: =ROW() -> 79 | BE79: 1
AA80: 57 | AB80: Programa | AC80: MED | AD80: Especialización en medicina del dolor y cuidados paliativos | AE80: 80 | AN80: 77 | AO80: MED | AP80: Grupo de Investigación en Enfermedades Infecciosas Hospital Militar Central | AQ80: COL0175225 | AR80: A1 | AS80: https://scienti.minciencias.gov.co/gruplac/jsp/visualiza/visualizagr.jsp?nro=00000000017724 | AT80: BB80:BB82 | AU80: =ROW() -> 80 | AV80: =MINA(IF(AQ80=$BA$4:$BA$410,$BD$4:$BD$410)) -> 80 | AW80: =MAXA(IF(AQ80=$BA$4:$BA$410,$BD$4:$BD$410)) -> 82 | AX80: MED | BA80: COL0175225 | BB80: Enfermedades Tropicales | BC80: =COUNTIF(BA$4:BA80,BA80) -> 1 | BD80: =ROW() -> 80 | BE80: 1
AA81: 58 | AB81: Programa | AC81: MED | AD81: Especialización en anestesiología | AE81: 81 | BA81: COL0175225 | BB81: Enfermedades de Transmisión Sexual | BC81: =COUNTIF(BA$4:BA81,BA81) -> 2 | BD81: =ROW() -> 81 | BE81: 1
AA82: 59 | AB82: Programa | AC82: MED | AD82: Especialización en cardiología | AE82: 82 | BA82: COL0175225 | BB82: Infecciones Asociadas al Cuidado de la Salud | BC82: =COUNTIF(BA$4:BA82,BA82) -> 3 | BD82: =ROW() -> 82 | BE82: 1
AA83: 60 | AB83: Programa | AC83: MED | AD83: Especialización en cirugía de cabeza y cuello | AE83: 83 | BA83: COL0052181 | BB83: Big Data Analytics | BC83: =COUNTIF(BA$4:BA83,BA83) -> 1 | BD83: =ROW() -> 83 | BE83: 1
AA84: 61 | AB84: Programa | AC84: MED | AD84: Especialización en cirugía de columna | AE84: 84 | BA84: COL0052181 | BB84: Biomecánica e Ingeniería de Rehabilitación | BC84: =COUNTIF(BA$4:BA84,BA84) -> 2 | BD84: =ROW() -> 84 | BE84: 1
AA85: 62 | AB85: Programa | AC85: MED | AD85: Especialización en cirugía de la mano y miembro superior | AE85: 85 | BA85: COL0052181 | BB85: Educación, Gestión y Ecosistemas | BC85: =COUNTIF(BA$4:BA85,BA85) -> 3 | BD85: =ROW() -> 85 | BE85: 1
AA86: 63 | AB86: Programa | AC86: MED | AD86: Especialización en cirugía de pie y tobillo | AE86: 86 | BA86: COL0052181 | BB86: Procesamiento de señales, datos, imagen y video | BC86: =COUNTIF(BA$4:BA86,BA86) -> 4 | BD86: =ROW() -> 86 | BE86: 1
AA87: 64 | AB87: Programa | AC87: MED | AD87: Especialización en cirugía general | AE87: 87 | BA87: COL0052181 | BB87: Tele-cardiología y prevención | BC87: =COUNTIF(BA$4:BA87,BA87) -> 5 | BD87: =ROW() -> 87 | BE87: 1
AA88: 65 | AB88: Programa | AC88: MED | AD88: Especialización en cirugía oncológica | AE88: 88 | BA88: COL0052181 | BB88: Telemetría (IoT-Routing)
AA89: 66 | AB89: Programa | AC89: MED | AD89: Especialización en cirugía oral y maxilofacial | AE89: 89 | BA89: COL0077707 | BB89: (Eco)fisiología vegetal | BC89: =COUNTIF(BA$4:BA89,BA89) -> 1 | BD89: =ROW() -> 89 | BE89: 1
AA90: 67 | AB90: Programa | AC90: MED | AD90: Especialización en cirugía pediátrica | AE90: 90 | BA90: COL0077707 | BB90: Bioprospección de Comunidades Vegetales | BC90: =COUNTIF(BA$4:BA90,BA90) -> 2 | BD90: =ROW() -> 90 | BE90: 1
AA91: 68 | AB91: Programa | AC91: MED | AD91: Especialización en cirugía plástica ocular | AE91: 91 | BA91: COL0077707 | BB91: Búsqueda Biodirigida y Síntesis de Sustancias Bioactivas | BC91: =COUNTIF(BA$4:BA91,BA91) -> 3 | BD91: =ROW() -> 91 | BE91: 1
AA92: 69 | AB92: Programa | AC92: MED | AD92: Especialización en cirugía plástica reconstructiva y estética | AE92: 92 | BA92: COL0077707 | BB92: Ecología Química y Redes Tróficas | BC92: =COUNTIF(BA$4:BA92,BA92) -> 4 | BD92: =ROW() -> 92 | BE92: 1
AA93: 70 | AB93: Programa | AC93: MED | AD93: Especialización en cirugía reconstructiva y del reemplazo articular de cadera y rodilla | AE93: 93 | BA93: COL0077707 | BB93: Fitoquímica Analítica | BC93: =COUNTIF(BA$4:BA93,BA93) -> 5 | BD93: =ROW() -> 93 | BE93: 1
AA94: 71 | AB94: Programa | AC94: MED | AD94: Especialización en cirugía vascular y angiología | AE94: 94 | BA94: COL0077707 | BB94: Metabolómica | Fisiología Molecular | Ecología Metabólica | Respuestas Metabólicas | BC94: =COUNTIF(BA$4:BA94,BA94) -> 6 | BD94: =ROW() -> 94 | BE94: 1
AA95: 72 | AB95: Programa | AC95: MED | AD95: Especialización en Coloproctología | AE95: 95 | BA95: COL0077707 | BB95: Modelado Molecular, Bio- y Quimio-informática | BC95: =COUNTIF(BA$4:BA95,BA95) -> 7 | BD95: =ROW() -> 95 | BE95: 1
AA96: 73 | AB96: Programa | AC96: MED | AD96: Especialización en dermatología | AE96: 96 | BA96: COL0077707 | BB96: Química Ambiental | BC96: =COUNTIF(BA$4:BA96,BA96) -> 8 | BD96: =ROW() -> 96 | BE96: 1
AA97: 74 | AB97: Programa | AC97: MED | AD97: Especialización en dermatología oncológica | AE97: 97 | BA97: COL0077707 | BB97: Química Bioorgánica y Bioquímica | BC97: =COUNTIF(BA$4:BA97,BA97) -> 9 | BD97: =ROW() -> 97 | BE97: 1
AA98: 75 | AB98: Programa | AC98: MED | AD98: Especialización en endocrinología | AE98: 98 | BA98: COL0027367 | BB98: Estudios de migración y desigualdades poblacionales | BC98: =COUNTIF(BA$4:BA98,BA98) -> 1 | BD98: =ROW() -> 98 | BE98: 1
AA99: 76 | AB99: Programa | AC99: MED | AD99: Especialización en gastroenterología | AE99: 99 | BA99: COL0027367 | BB99: Estudios en desarrollo social y sostenibilidad | BC99: =COUNTIF(BA$4:BA99,BA99) -> 2 | BD99: =ROW() -> 99 | BE99: 1
AA100: 77 | AB100: Programa | AC100: MED | AD100: Especialización en ginecología oncológica | AE100: 100 | BA100: COL0027367 | BB100: Estudios sobre desigualdades educativas | BC100: =COUNTIF(BA$4:BA100,BA100) -> 3 | BD100: =ROW() -> 100 | BE100: 1
AA101: 78 | AB101: Programa | AC101: MED | AD101: Especialización en ginecología y obstetricia | AE101: 101 | BA101: COL0038084 | BB101: Acuaponía, recirculación e hidroponía | BC101: =COUNTIF(BA$4:BA101,BA101) -> 1 | BD101: =ROW() -> 101 | BE101: 1
AA102: 79 | AB102: Programa | AC102: MED | AD102: Especialización en hematología y oncología clínica | AE102: 102 | BA102: COL0038084 | BB102: Biología evolutiva de animales | BC102: =COUNTIF(BA$4:BA102,BA102) -> 2 | BD102: =ROW() -> 102 | BE102: 1
AA103: 80 | AB103: Programa | AC103: MED | AD103: Especialización en hemato-oncología pediátrica | AE103: 103 | BA103: COL0038084 | BB103: Ecotoxicología | BC103: =COUNTIF(BA$4:BA103,BA103) -> 3 | BD103: =ROW() -> 103 | BE103: 1
AA104: 81 | AB104: Programa | AC104: MED | AD104: Especialización en laringología y vía aérea superior | AE104: 104 | BA104: COL0038084 | BB104: Energías alternas y recursos ambientales | BC104: =COUNTIF(BA$4:BA104,BA104) -> 4 | BD104: =ROW() -> 104 | BE104: 1
AA105: 82 | AB105: Programa | AC105: MED | AD105: Especialización en medicina crítica y cuidados intensivos | AE105: 105 | BA105: COL0038084 | BB105: modelamiento de especies bajo escenario de calentamiento global | BC105: =COUNTIF(BA$4:BA105,BA105) -> 5 | BD105: =ROW() -> 105 | BE105: 1
AA106: 83 | AB106: Programa | AC106: MED | AD106: Especialización en medicina física y rehabilitación | AE106: 106 | AK106: 63 | BA106: COL0045848 | BB106: Epidemiología Clínica de Diabetes e Insulino resistencia | BC106: =COUNTIF(BA$4:BA106,BA106) -> 1 | BD106: =ROW() -> 106 | BE106: 1
AA107: 84 | AB107: Programa | AC107: MED | AD107: Especialización en medicina interna | AE107: 107 | AK107: 65 | BA107: COL0045848 | BB107: Genética de diabetes mellitus e insulino resistencia | BC107: =COUNTIF(BA$4:BA107,BA107) -> 2 | BD107: =ROW() -> 107 | BE107: 1
AA108: 85 | AB108: Programa | AC108: MED | AD108: Especialización en nefrología | AE108: 108 | BA108: COL0045848 | BB108: Prevención Cardiovascular | BC108: =COUNTIF(BA$4:BA108,BA108) -> 3 | BD108: =ROW() -> 108 | BE108: 1
AA109: 86 | AB109: Programa | AC109: MED | AD109: Especialización en neonatología | AE109: 109 | BA109: COL0031959 | BB109: Análisis de redes de interacción planta-polinizador a partir de técnicas palinológicas | BC109: =COUNTIF(BA$4:BA109,BA109) -> 1 | BD109: =ROW() -> 109 | BE109: 1
AA110: 87 | AB110: Programa | AC110: MED | AD110: Especialización en neumología | AE110: 110 | BA110: COL0031959 | BB110: Cría de especies del género Bombus para su utilización como polinizadores en cultivos de la sabana Cundi-boyacense. | BC110: =COUNTIF(BA$4:BA110,BA110) -> 2 | BD110: =ROW() -> 110 | BE110: 1
AA111: 88 | AB111: Programa | AC111: MED | AD111: Especialización en neurocirugía | AE111: 111 | BA111: COL0031959 | BB111: Diversidad, biología y taxonomía de polinizadores colombianos | BC111: =COUNTIF(BA$4:BA111,BA111) -> 3 | BD111: =ROW() -> 111 | BE111: 1
AA112: 89 | AB112: Programa | AC112: MED | AD112: Especialización en neurología | AE112: 112 | BA112: COL0031959 | BB112: Ecología de la polinización: estudios del uso sostenible de especies de abejas silvestres como polinizadores de hortalizas y frutales | BC112: =COUNTIF(BA$4:BA112,BA112) -> 4 | BD112: =ROW() -> 112 | BE112: 1
AA113: 90 | AB113: Programa | AC113: MED | AD113: Especialización en neurología pediátrica | AE113: 113 | BA113: COL0031959 | BB113: Modelos biológicos y ecológicos de insectos benéficos | BC113: =COUNTIF(BA$4:BA113,BA113) -> 5 | BD113: =ROW() -> 113 | BE113: 1
AA114: 91 | AB114: Programa | AC114: MED | AD114: Especialización en neurología pediátrica para especialistas en pediatría | AE114: 114 | BA114: COL0065804 | BB114: Desarrollos mecatrónicos | BC114: =COUNTIF(BA$4:BA114,BA114) -> 1 | BD114: =ROW() -> 114 | BE114: 1
AA115: 92 | AB115: Programa | AC115: MED | AD115: Especialización en oftalmología | AE115: 115 | BA115: COL0065804 | BB115: Energías Renovables | BC115: =COUNTIF(BA$4:BA115,BA115) -> 2 | BD115: =ROW() -> 115 | BE115: 1
AA116: 93 | AB116: Programa | AC116: MED | AD116: Especialización en oncología radioterápica | AE116: 116 | BA116: COL0065804 | BB116: Materiales y Procesos de Manufactura | BC116: =COUNTIF(BA$4:BA116,BA116) -> 3 | BD116: =ROW() -> 116 | BE116: 1
AA117: 94 | AB117: Programa | AC117: MED | AD117: Especialización en ortopedia oncológica | AE117: 117 | BA117: COL0036025 | BB117: Biomecatrónica | BC117: =COUNTIF(BA$4:BA117,BA117) -> 1 | BD117: =ROW() -> 117 | BE117: 1
AA118: 95 | AB118: Programa | AC118: MED | AD118: Especialización en ortopedia y traumatología | AE118: 118 | BA118: COL0036025 | BB118: Optimización y Control de sistemas dinámicos | BC118: =COUNTIF(BA$4:BA118,BA118) -> 2 | BD118: =ROW() -> 118 | BE118: 1
AA119: 96 | AB119: Programa | AC119: MED | AD119: Especialización en otología | AE119: 119 | BA119: COL0036025 | BB119: Robótica híbrida | BC119: =COUNTIF(BA$4:BA119,BA119) -> 3 | BD119: =ROW() -> 119 | BE119: 1
AA120: 97 | AB120: Programa | AC120: MED | AD120: Especialización en otorrinolaringología | AE120: 120 | BA120: COL0036025 | BB120: Simulación y Realidad Virtual | BC120: =COUNTIF(BA$4:BA120,BA120) -> 4 | BD120: =ROW() -> 120 | BE120: 1
AA121: 98 | AB121: Programa | AC121: MED | AD121: Especialización en patología | AE121: 121 | BA121: COL0116439 | BB121: Cirugía Dermatológica | BC121: =COUNTIF(BA$4:BA121,BA121) -> 1 | BD121: =ROW() -> 121 | BE121: 1
AA122: 99 | AB122: Programa | AC122: MED | AD122: Especialización en pediatría | AE122: 122 | BA122: COL0116439 | BB122: Dermatología Pediátrica | BC122: =COUNTIF(BA$4:BA122,BA122) -> 2 | BD122: =ROW() -> 122 | BE122: 1
AA123: 100 | AB123: Programa | AC123: MED | AD123: Especialización en psiquiatría | AE123: 123 | BA123: COL0116439 | BB123: Fotobiología y Fototerapia | BC123: =COUNTIF(BA$4:BA123,BA123) -> 3 | BD123: =ROW() -> 123 | BE123: 1
AA124: 101 | AB124: Programa | AC124: MED | AD124: Especialización en radiología e imágenes diagnósticas | AE124: 124 | BA124: COL0116439 | BB124: Leishmaniasis | BC124: =COUNTIF(BA$4:BA124,BA124) -> 4 | BD124: =ROW() -> 124 | BE124: 1
AA125: 102 | AB125: Programa | AC125: MED | AD125: Especialización en rehabilitación oncológica | AE125: 125 | BA125: COL0142331 | BB125: Competitividad industrial | BC125: =COUNTIF(BA$4:BA125,BA125) -> 1 | BD125: =ROW() -> 125 | BE125: 1
AA126: 103 | AB126: Programa | AC126: MED | AD126: Especialización en reumatología | AE126: 126 | BA126: COL0142331 | BB126: Innovación y educación en Ingeniería | BC126: =COUNTIF(BA$4:BA126,BA126) -> 2 | BD126: =ROW() -> 126 | BE126: 1
AA127: 104 | AB127: Programa | AC127: MED | AD127: Especialización en urología | AE127: 127 | BA127: COL0142331 | BB127: Productividad industrial | BC127: =COUNTIF(BA$4:BA127,BA127) -> 3 | BD127: =ROW() -> 127 | BE127: 1
AA128: 105 | AB128: Programa | AC128: MED | AD128: Especialización en urología oncológica | AE128: 128 | BA128: COL0120281 | BB128: Medicina Electrodiagnostica | BC128: =COUNTIF(BA$4:BA128,BA128) -> 1 | BD128: =ROW() -> 128 | BE128: 1
AA129: 106 | AB129: Programa | AC129: MED | AD129: Tecnología en Atención Prehospitalaria | AE129: 129 | BA129: COL0120281 | BB129: Rehabilitación Neurológica | BC129: =COUNTIF(BA$4:BA129,BA129) -> 2 | BD129: =ROW() -> 129 | BE129: 1
AA130: 1 | AB130: Tipo Proyecto | AC130: INO | AD130: Innovación | AE130: =AC130 -> INO | BA130: COL0120281 | BB130: Rehabilitación cardio-pulmonar | BC130: =COUNTIF(BA$4:BA130,BA130) -> 3 | BD130: =ROW() -> 130 | BE130: 1
AA131: 2 | AB131: Tipo Proyecto | AC131: EMP0 | AD131: Emprendimiento Fase 0 | AE131: EMP0 | BA131: COL0120281 | BB131: Rehabilitación musculo esquelética | BC131: =COUNTIF(BA$4:BA131,BA131) -> 4 | BD131: =ROW() -> 131 | BE131: 1
AA132: 3 | AB132: Tipo Proyecto | AC132: EMP1 | AD132: Emprendimiento Fase 1 | AE132: EMP1 | BA132: COL0120281 | BB132: Rehabilitación Infantil | BC132: =COUNTIF(BA$4:BA132,BA132) -> 5 | BD132: =ROW() -> 132 | BE132: =COUNTIF($AQ$3:$AQ$87,BA132) -> 1
AD133: 0 | BA133: COL0120281 | BB133: Robótica en Rehabilitación | BC133: =COUNTIF(BA$4:BA133,BA133) -> 6 | BD133: =ROW() -> 133 | BE133: 1
AA134: 1 | AB134: Función | AC134: Innovador Principal | AD134: Innovador Principal o líder del proyecto | AE134: IP | BA134: COL0127649 | BB134: Línea en Contabilidad Integral | BC134: =COUNTIF(BA$4:BA134,BA134) -> 1 | BD134: =ROW() -> 134 | BE134: 1
AA135: 2 | AB135: Función | AC135: Coinnovador | AD135: Innovador que apoya al líder del proyecto | AE135: CO | BA135: COL0138698 | BB135: BIOETICA | BC135: =COUNTIF(BA$4:BA135,BA135) -> 1 | BD135: =ROW() -> 135 | BE135: 1
AA136: 3 | AB136: Función | AC136: Asistente OPS | AD136: Asistente de Investigación contratado OPS | AE136: OPS | BA136: COL0138698 | BB136: CEREBROVASCULAR | BC136: =COUNTIF(BA$4:BA136,BA136) -> 2 | BD136: =ROW() -> 136 | BE136: 1
AA137: 4 | AB137: Función | AC137: Egresado | AD137: Estudiante egresado de la UMNG | AE137: AR | BA137: COL0138698 | BB137: DEMENCIAS | BC137: =COUNTIF(BA$4:BA137,BA137) -> 3 | BD137: =ROW() -> 137 | BE137: 1
AA138: 5 | AB138: Función | AC138: Estudiante | AD138: Estudiante apoya el proyecto | AE138: EST | BA138: COL0138698 | BB138: DISTONIAS | BC138: =COUNTIF(BA$4:BA138,BA138) -> 4 | BD138: =ROW() -> 138 | BE138: 1
AA139: 6 | AB139: Función | AC139: Administrativo | AD139: Personal administrativo de planta UMNG | AE139: ADM | BA139: COL0138698 | BB139: ENFERMEDADES HUERFANAS | BC139: =COUNTIF(BA$4:BA139,BA139) -> 5 | BD139: =ROW() -> 139 | BE139: 1
AA140: 7 | AB140: Función | AC140: Asesor | AD140: Asesor externo | AE140: ASR | BA140: COL0138698 | BB140: EPILEPSIA | BC140: =COUNTIF(BA$4:BA140,BA140) -> 6 | BD140: =ROW() -> 140 | BE140: 1
AA141: 7 | AB141: Función | AC141: Contratista | AD141: contratista con vinculación a UMNG (No proyectos) | AE141: CON | BA141: COL0138698 | BB141: ESCLEROSIS MULTIPLE | BC141: =COUNTIF(BA$4:BA141,BA141) -> 7 | BD141: =ROW() -> 141 | BE141: 1
AA142: 1 | AB142: Vinculo | AC142: Doc. Carrera TC | AD142: Docente de Carrera Tiempo Completo | AE142: DTC | BA142: COL0138698 | BB142: MOVIMIENTOS ANORMALES | BC142: =COUNTIF(BA$4:BA142,BA142) -> 8 | BD142: =ROW() -> 142 | BE142: 1
AA143: 2 | AB143: Vinculo | AC143: Doc. Carrera MT | AD143: Docente de Carrera Medio Tiempo | AE143: DMT | BA143: COL0138698 | BB143: NEUROCIRUGÍA DE COLUMNA | BC143: =COUNTIF(BA$4:BA143,BA143) -> 9 | BD143: =ROW() -> 143 | BE143: 1
AA144: 3 | AB144: Vinculo | AC144: Doc. Ocasional | AD144: Docente de Ocasional | AE144: OCA | BA144: COL0138698 | BB144: NEUROCIRUGÍA FUNCIONAL | BC144: =COUNTIF(BA$4:BA144,BA144) -> 10 | BD144: =ROW() -> 144 | BE144: 1
AA145: 4 | AB145: Vinculo | AC145: OPS - Prestación Servicios | AD145: Asistente de Investigación contratado OPS | AE145: OPS | BA145: COL0138698 | BB145: NEUROINFECCIONES | BC145: =COUNTIF(BA$4:BA145,BA145) -> 11 | BD145: =ROW() -> 145 | BE145: 1
AA146: 5 | AB146: Vinculo | AC146: Estudiante | AD146: Estudiante activo de pregrado o postgrado | AE146: EST | BA146: COL0138698 | BB146: NEUROMUSCULAR | BC146: =COUNTIF(BA$4:BA146,BA146) -> 12 | BD146: =ROW() -> 146 | BE146: 1
AA147: 6 | AB147: Vinculo | AC147: Externo a la UMNG | AD147: Docentes Investigadores externos sin vinculo laboral al U. | AE147: EXT | BA147: COL0138698 | BB147: NEUROONCOLOGIA | BC147: =COUNTIF(BA$4:BA147,BA147) -> 13 | BD147: =ROW() -> 147 | BE147: 1
AA148: 1 | AB148: NBC | AC148: 11 | AD148: Programas y certificaciones básicas | AE148: 11 | BA148: COL0138698 | BB148: PARALISIS CEREBRAL | BC148: =COUNTIF(BA$4:BA148,BA148) -> 14 | BD148: =ROW() -> 148 | BE148: 1
AA149: 2 | AB149: NBC | AC149: 21 | AD149: Alfabetización y aritmética elemental | AE149: 21 | BA149: COL0138698 | BB149: RETARDO MENTAL | BC149: =COUNTIF(BA$4:BA149,BA149) -> 15 | BD149: =ROW() -> 149 | BE149: 1
AA150: 3 | AB150: NBC | AC150: 31 | AD150: Competencias personales y desarrollo | AE150: 31 | BA150: COL0138698 | BB150: SALUD MENTAL | BC150: =COUNTIF(BA$4:BA150,BA150) -> 16 | BD150: =ROW() -> 150 | BE150: 1
AA151: 4 | AB151: NBC | AC151: 111 | AD151: Ciencias de la educación | AE151: 111 | BA151: COL0138698 | BB151: SUEÑO | BC151: =COUNTIF(BA$4:BA151,BA151) -> 17 | BD151: =ROW() -> 151 | BE151: 1
AA152: 5 | AB152: NBC | AC152: 112 | AD152: Formación para docentes de educación pre-primaría | AE152: 112 | BA152: COL0138698 | BB152: TRASTORNOS DEL NEURODESARROLLO | BC152: =COUNTIF(BA$4:BA152,BA152) -> 18 | BD152: =ROW() -> 152 | BE152: 1
AA153: 6 | AB153: NBC | AC153: 113 | AD153: Formación para docentes sin asignatura de especialización | AE153: 113 | BA153: COL0138698 | BB153: TRAUMA DE CRÁNEO Y COLUMNA | BC153: =COUNTIF(BA$4:BA153,BA153) -> 19 | BD153: =ROW() -> 153 | BE153: 1
AA154: 7 | AB154: NBC | AC154: 114 | AD154: Formación para docentes con asignatura de especialización | AE154: 114 | BA154: COL0013719 | BB154: Biología y Epidemiología de hongos patógenos humanos. | BC154: =COUNTIF(BA$4:BA154,BA154) -> 1 | BD154: =ROW() -> 154 | BE154: 1
AA155: 8 | AB155: NBC | AC155: 211 | AD155: Técnicas audiovisuales y producción para medios de comunicación | AE155: 211 | BA155: COL0013719 | BB155: Diversidad, Ecología y Bioprospección | BC155: =COUNTIF(BA$4:BA155,BA155) -> 2 | BD155: =ROW() -> 155 | BE155: 1
AA156: 9 | AB156: NBC | AC156: 212 | AD156: Diseño industrial, de modas e interiores | AE156: 212 | BA156: COL0013719 | BB156: Fitopatología | BC156: =COUNTIF(BA$4:BA156,BA156) -> 3 | BD156: =ROW() -> 156 | BE156: 1
AA157: 10 | AB157: NBC | AC157: 213 | AD157: Bellas artes | AE157: 213 | BA157: COL0013719 | BB157: Genómica y bioinformática | BC157: =COUNTIF(BA$4:BA157,BA157) -> 4 | BD157: =ROW() -> 157 | BE157: 1
AA158: 11 | AB158: NBC | AC158: 214 | AD158: Artesanías | AE158: 214 | BA158: COL0013719 | BB158: Susceptibilidad a Antifúngicos | BC158: =COUNTIF(BA$4:BA158,BA158) -> 5 | BD158: =ROW() -> 158 | BE158: 1
AA159: 12 | AB159: NBC | AC159: 215 | AD159: Música y artes escénicas | AE159: 215 | BA159: COL0026486 | BB159: Bioprocesos | BC159: =COUNTIF(BA$4:BA159,BA159) -> 1 | BD159: =ROW() -> 159 | BE159: 1
AA160: 13 | AB160: NBC | AC160: 221 | AD160: Religión y Teología | AE160: 221 | BA160: COL0026486 | BB160: Biorrefinerías para tratamiento de agua | BC160: =COUNTIF(BA$4:BA160,BA160) -> 2 | BD160: =ROW() -> 160 | BE160: 1
AA161: 14 | AB161: NBC | AC161: 222 | AD161: Historia y arqueología | AE161: 222 | BA161: COL0026486 | BB161: Ciudades Sostenibles | BC161: =COUNTIF(BA$4:BA161,BA161) -> 3 | BD161: =ROW() -> 161 | BE161: 1
AA162: 15 | AB162: NBC | AC162: 223 | AD162: Filosofía y ética | AE162: 223 | BA162: COL0026486 | BB162: Eficiencia Energética en el Tratamiento de Agua | BC162: =COUNTIF(BA$4:BA162,BA162) -> 4 | BD162: =ROW() -> 162 | BE162: 1
AA163: 16 | AB163: NBC | AC163: 231 | AD163: Adquisición del lenguaje | AE163: 231 | BA163: COL0026486 | BB163: Energías renovables y asequibles | BC163: =COUNTIF(BA$4:BA163,BA163) -> 5 | BD163: =ROW() -> 163 | BE163: 1
AA164: 17 | AB164: NBC | AC164: 232 | AD164: Literatura y lingüística | AE164: 232 | BA164: COL0026486 | BB164: Procesos físico-químicos y de oxidación avanzada | BC164: =COUNTIF(BA$4:BA164,BA164) -> 6 | BD164: =ROW() -> 164 | BE164: 1
AA165: 18 | AB165: NBC | AC165: 311 | AD165: Economía | AE165: 311 | BA165: COL0028918 | BB165: Constitución, Derecho Público y Estado | BC165: =COUNTIF(BA$4:BA165,BA165) -> 1 | BD165: =ROW() -> 165 | BE165: 1
AA166: 19 | AB166: NBC | AC166: 312 | AD166: Ciencias políticas y educación cívica | AE166: 312 | BA166: COL0028918 | BB166: Derecho Historia y Filosofía | BC166: =COUNTIF(BA$4:BA166,BA166) -> 2 | BD166: =ROW() -> 166 | BE166: =COUNTIF($AQ$3:$AQ$87,BA166) -> 1
AA167: 20 | AB167: NBC | AC167: 313 | AD167: Psicología | AE167: 313 | BA167: COL0028918 | BB167: Derecho Internacional, Derechos Humanos, Derecho Internacional Humanitario | BC167: =COUNTIF(BA$4:BA167,BA167) -> 3 | BD167: =ROW() -> 167 | BE167: 1
AA168: 21 | AB168: NBC | AC168: 314 | AD168: Sociología y estudios culturales | AE168: 314 | BA168: COL0028918 | BB168: Derecho Penal y Justicia Militar | BC168: =COUNTIF(BA$4:BA168,BA168) -> 4 | BD168: =ROW() -> 168 | BE168: 1
AA169: 22 | AB169: NBC | AC169: 321 | AD169: Periodismo y reportajes | AE169: 321 | BA169: COL0028918 | BB169: Derecho, Educación y Sociedad | BC169: =COUNTIF(BA$4:BA169,BA169) -> 5 | BD169: =ROW() -> 169 | BE169: 1
AA170: 23 | AB170: NBC | AC170: 322 | AD170: Bibliotecología, información y archivología | AE170: 322 | BA170: COL0066768 | BB170: DERECHO DE LAS RELACIONES INTERNACIONALES | BC170: =COUNTIF(BA$4:BA170,BA170) -> 1 | BD170: =ROW() -> 170 | BE170: 1
AA171: 24 | AB171: NBC | AC171: 411 | AD171: Contabilidad e impuestos | AE171: 411 | BA171: COL0066768 | BB171: ECONOMIA Y NEGOCIOS INTERNACIONALES | BC171: =COUNTIF(BA$4:BA171,BA171) -> 2 | BD171: =ROW() -> 171 | BE171: 1
AA172: 25 | AB172: NBC | AC172: 412 | AD172: Gestión financiera, administración bancaria y seguros | AE172: 412 | BA172: COL0066768 | BB172: ESTUDIOS POLÍTICOS | BC172: =COUNTIF(BA$4:BA172,BA172) -> 3 | BD172: =ROW() -> 172 | BE172: 1
AA173: 26 | AB173: NBC | AC173: 413 | AD173: Gestión y administración | AE173: 413 | BA173: COL0066768 | BB173: ESTUDIOS REGIONALES | BC173: =COUNTIF(BA$4:BA173,BA173) -> 4 | BD173: =ROW() -> 173 | BE173: 1
AA174: 27 | AB174: NBC | AC174: 414 | AD174: Mercadotecnia y publicidad | AE174: 414 | BA174: COL0066768 | BB174: HISTORIA INTERNACIONAL | BC174: =COUNTIF(BA$4:BA174,BA174) -> 5 | BD174: =ROW() -> 174 | BE174: 1
AA175: 28 | AB175: NBC | AC175: 415 | AD175: Secretariado y trabajo de oficina | AE175: 415 | BA175: COL0066768 | BB175: RELACIONES INTERNACIONALES | BC175: =COUNTIF(BA$4:BA175,BA175) -> 6 | BD175: =ROW() -> 175 | BE175: 1
AA176: 29 | AB176: NBC | AC176: 416 | AD176: Ventas al por mayor y al por menor | AE176: 416 | BA176: COL0142449 | BB176: CULTURA CONSTITUCIONAL, PAZ Y JUSTICIA TRANSICIONAL | BC176: =COUNTIF(BA$4:BA176,BA176) -> 1 | BD176: =ROW() -> 176 | BE176: 1
AA177: 30 | AB177: NBC | AC177: 417 | AD177: Competencias laborales | AE177: 417 | BA177: COL0142449 | BB177: BIOÉTICA, DERECHOS HUMANOS Y EDUCACIÓN | BC177: =COUNTIF(BA$4:BA177,BA177) -> 2 | BD177: =ROW() -> 177 | BE177: 1
AA178: 31 | AB178: NBC | AC178: 421 | AD178: Derecho | AE178: 421 | BA178: COL0142449 | BB178: POLÍTICA CRIMINAL, DERECHO PENAL Y CRIMINOLOGÍA | BC178: =COUNTIF(BA$4:BA178,BA178) -> 3 | BD178: =ROW() -> 178 | BE178: 1
AA179: 32 | AB179: NBC | AC179: 511 | AD179: Biología | AE179: 511 | BA179: COL0142449 | BB179: POLÍTICAS PÚBLICAS, DERECHO ADMINISTRATIVO Y DESARROLLO | BC179: =COUNTIF(BA$4:BA179,BA179) -> 4 | BD179: =ROW() -> 179 | BE179: 1
AA180: 33 | AB180: NBC | AC180: 512 | AD180: Bioquímica | AE180: 512 | BA180: COL0142449 | BB180: PROPIEDAD INTELECTUAL Y TRANSFERENCIA TECNOLÓGICA | BC180: =COUNTIF(BA$4:BA180,BA180) -> 5 | BD180: =ROW() -> 180 | BE180: 1
AA181: 34 | AB181: NBC | AC181: 521 | AD181: Ciencias del medio ambiente | AE181: 521 | BA181: COL0142449 | BB181: SOCIOLOGÍA JURÍDICA, DERECHO PÚBLICO Y TEORÍA JURÍDICA | BC181: =COUNTIF(BA$4:BA181,BA181) -> 6 | BD181: =ROW() -> 181 | BE181: 1
AA182: 35 | AB182: NBC | AC182: 522 | AD182: Medio ambiente natural y vida silvestre | AE182: 522 | BA182: COL0126015 | BB182: INMUNODERMATOLOGIA | BC182: =COUNTIF(BA$4:BA182,BA182) -> 1 | BD182: =ROW() -> 182 | BE182: 1
AA183: 36 | AB183: NBC | AC183: 531 | AD183: Química | AE183: 531 | BA183: COL0126015 | BB183: PSORIASIS | BC183: =COUNTIF(BA$4:BA183,BA183) -> 2 | BD183: =ROW() -> 183 | BE183: 1
AA184: 37 | AB184: NBC | AC184: 532 | AD184: Ciencias de la tierra | AE184: 532 | BA184: COL0005439 | BB184: MODELACIÓN NUMÉRICA | BC184: =COUNTIF(BA$4:BA184,BA184) -> 1 | BD184: =ROW() -> 184 | BE184: 1
AA185: 38 | AB185: NBC | AC185: 533 | AD185: Física | AE185: 533 | BA185: COL0005439 | BB185: ORDENACIÓN DEL TERRITORIO | BC185: =COUNTIF(BA$4:BA185,BA185) -> 2 | BD185: =ROW() -> 185 | BE185: 1
AA186: 39 | AB186: NBC | AC186: 541 | AD186: Matemáticas | AE186: 541 | BA186: COL0005439 | BB186: PAVIMENTOS | BC186: =COUNTIF(BA$4:BA186,BA186) -> 3 | BD186: =ROW() -> 186 | BE186: 1
AA187: 40 | AB187: NBC | AC187: 542 | AD187: Estadística | AE187: 542 | BA187: COL0005439 | BB187: SUELOS | BC187: =COUNTIF(BA$4:BA187,BA187) -> 4 | BD187: =ROW() -> 187 | BE187: 1
AA188: 41 | AB188: NBC | AC188: 611 | AD188: Uso de computadores | AE188: 611 | BA188: COL0005439 | BB188: TRANSPORTES | BC188: =COUNTIF(BA$4:BA188,BA188) -> 5 | BD188: =ROW() -> 188 | BE188: 1
AA189: 42 | AB189: NBC | AC189: 612 | AD189: Diseño y administración de redes y bases de datos | AE189: 612 | BA189: COL0117052 | BB189: Ambiental | BC189: =COUNTIF(BA$4:BA189,BA189) -> 1 | BD189: =ROW() -> 189 | BE189: 1
AA190: 43 | AB190: NBC | AC190: 613 | AD190: Desarrollo y análisis de software y aplicaciones | AE190: 613 | BA190: COL0117052 | BB190: Arte y Tecnología | BC190: =COUNTIF(BA$4:BA190,BA190) -> 2 | BD190: =ROW() -> 190 | BE190: 1
AA191: 44 | AB191: NBC | AC191: 711 | AD191: Ingeniería y procesos químicos | AE191: 711 | BA191: COL0117052 | BB191: Energía | BC191: =COUNTIF(BA$4:BA191,BA191) -> 3 | BD191: =ROW() -> 191 | BE191: 1
AA192: 45 | AB192: NBC | AC192: 712 | AD192: Tecnología de protección del medio ambiente | AE192: 712 | BA192: COL0117052 | BB192: Gestión e Innovación | BC192: =COUNTIF(BA$4:BA192,BA192) -> 4 | BD192: =ROW() -> 192 | BE192: 1
AA193: 46 | AB193: NBC | AC193: 713 | AD193: Electricidad y energía | AE193: 713 | BA193: COL0117052 | BB193: Materiales | BC193: =COUNTIF(BA$4:BA193,BA193) -> 5 | BD193: =ROW() -> 193 | BE193: 1
AA194: 47 | AB194: NBC | AC194: 714 | AD194: Electrónica y automatización | AE194: 714 | BA194: COL0152463 | BB194: CURRÍCULO Y EVALUACIÓN | BC194: =COUNTIF(BA$4:BA194,BA194) -> 1 | BD194: =ROW() -> 194 | BE194: 1
AA195: 48 | AB195: NBC | AC195: 715 | AD195: Mecánica y profesiones afines a la metalistería | AE195: 715 | BA195: COL0152463 | BB195: DOCENCIA Y PEDAGOGÍA | BC195: =COUNTIF(BA$4:BA195,BA195) -> 2 | BD195: =ROW() -> 195 | BE195: 1
AA196: 49 | AB196: NBC | AC196: 716 | AD196: Vehículos, barcos y aeronaves motorizadas | AE196: 716 | BA196: COL0152463 | BB196: INVESTIGACIÓN CLINICA | BC196: =COUNTIF(BA$4:BA196,BA196) -> 3 | BD196: =ROW() -> 196 | BE196: 1
AA197: 50 | AB197: NBC | AC197: 721 | AD197: Procesamiento de alimentos | AE197: 721 | BA197: COL0152463 | BB197: Proyección Social y contexto de formación en Salud Pública | BC197: =COUNTIF(BA$4:BA197,BA197) -> 4 | BD197: =ROW() -> 197 | BE197: =COUNTIF($AQ$3:$AQ$87,BA197) -> 1
AA198: 51 | AB198: NBC | AC198: 722 | AD198: Materiales (vidrio, papel, plástico y madera) | AE198: 722 | BA198: COL0101099 | BB198: Educación y Sociedad | BC198: =COUNTIF(BA$4:BA198,BA198) -> 1 | BD198: =ROW() -> 198 | BE198: 1
AA199: 52 | AB199: NBC | AC199: 723 | AD199: Producción textiles (ropa, calzado y artículos de cuero) | AE199: 723 | BA199: COL0101099 | BB199: FILOSOFIA POLITICA Y REPONSABILIDAD SOCIAL | BC199: =COUNTIF(BA$4:BA199,BA199) -> 2 | BD199: =ROW() -> 199 | BE199: 1
AA200: 53 | AB200: NBC | AC200: 724 | AD200: Minería y extracción | AE200: 724 | BA200: COL0101099 | BB200: HUMANIDADES, CULTURA Y UNIVERSIDAD | BC200: =COUNTIF(BA$4:BA200,BA200) -> 3 | BD200: =ROW() -> 200 | BE200: 1
... 136 more rows

Sheet General
A1: 1 | H1: =IFERROR(VLOOKUP($C$7,Dt!AD130:AE133,2,0),"INV") -> INO | I1: =IFERROR(VLOOKUP($C$23,Dt!$AC$6:$AD$13,2,0),"NT") -> CIAS | N1: 7 | O1: A | P1: =COUNTIF($I$28:$I$36,O1) -> 0 | Q1: =IF(P1>0,$N1,0) -> 0 | X1: Número de Paginas del documento final , se puede ajustar.
B2: PRESENTACIÓN DE PROPUESTAS DE IDEAS INNOVADORAS 2025-1 | H2: Fecha de Emisión: 2018/03/06 | I2: IN-IE-F-7 | N2: 6 | O2: A1 | P2: =COUNTIF($I$28:$I$36,O2) -> 0 | Q2: 0 | X2: 11
H3: Revisión N°: 4 | I3: ="Página "&A1&" de "&Dt_TPG -> Página 1 de 11 | N3: 5 | O3: B | P3: 0 | Q3: 0 | S3: Innovación
P4: 0 | Q4: 0
A5: 1.- | B5: Información general del proyecto. | I5: Vrs. 30-08b | N5: 4 | O5: C | P5: 0 | Q5: 0 | X5: Hoy es
P6: 0 | Q6: 0
B7: Convocatoria: | C7: Innovación | G7: Código / Radicado | N7: 3 | O7: D | P7: 0 | Q7: 0 | X7: =NOW() -> 2024-08-30T13:20:49.270
N8: 2 | O8: R | P8: 0 | Q8: 0
N9: 1 | O9: NR | P9: 0 | Q9: 0
B10: Líder: | G10: Teléfonos : | X10: 2017-03-02
B11: Correo: | G11: Sede:
B12: Dirección | G12: Ciudad:
B13: Modalidad 1 | C13: Modalidad 4. Oportunidades de Transferencia para productos o servicios no patentables
B14: Tiempo estimado | G14: Valor Estimado
B15: Resultado esperado (Seleccionar por lo menos uno).
B16: Elaboración de prototipo | G16: Definición de estrategia de protección
B17: Ficha de divulgación comercial de la tecnología | G17: Estrategia de propiedad intelectual
B18: Estudio de mercado, que incluya validación técnica y comercial | G18: Estrategia de negocio y valoración económica
B19: Estrategia de transferencia - Hoja de ruta para la transferencia
B20: Acercamiento y negociación con clientes potenciales (contacto y acompañamiento inicial)
B22: Mapeo Tecnológico | C22: ¿Cuenta con un descriptivo que permita identificar el potencial de mercado? | I22: No
B23: Facultad | C23: Ciencias Básicas | G23: Programa | L23: Clasificación Grupo Máximo | M23: =IFERROR(VLOOKUP($N$23,$N$1:$O$9,2,0),"NR") -> NR | N23: =MAX(Q1:Q9) -> 0
A25: 2.- | B25: Información de Grupos de Investigación UMNG asociados al proyecto
B27: Grupo Principal | K27: =IF(AND(Cel_TP="IMP",L28>0),D27,1) -> 1 | L27: =IFERROR(VLOOKUP($D27,Dt!$AP$3:$AQ$79,2,0),0) -> 0 | X27: DEBE SER RECONOCIDO
B28: Link Colciencias: | C28: =IFERROR(VLOOKUP(L27,Dt!$AQ$3:$AS$79,3,0),"") ->  | I28: =IFERROR(VLOOKUP(L27,Dt!$AQ$3:$AS$79,2,0),"") ->  | K28: =I28 ->  | L28: =COUNTIF($O$7:$O$9,I28) -> 0
B29: Líneas | K29: ="Puntos:"&Productos!#REF! ->  | L29: =IFERROR("DT!"&VLOOKUP($D27,Dt!$AP$3:$AT$79,5,0),0) -> 0
A31: =IFERROR(VLOOKUP(D31,Dt!$AP$3:$AU$79,5,0),"") ->  | B31: Grupo Aliado 1 | L31: =IFERROR(VLOOKUP($D31,Dt!$AP$3:$AQ$79,2,0),0) -> 0
B32: Link Colciencias: | C32: =IFERROR(VLOOKUP(L31,Dt!$AQ$3:$AS$79,3,0),"") ->  | I32: =IFERROR(VLOOKUP(L31,Dt!$AQ$3:$AS$79,2,0),"") -> 
A33: =IFERROR(VLOOKUP($C33,Dt!$BB$3:$BD$298,3,0),"") ->  | B33: Líneas | L33: =IFERROR("DT!"&VLOOKUP($D31,Dt!$AP$3:$AT$79,5,0),0) -> 0
B35: Grupo Aliado 2 | L35: =IFERROR(VLOOKUP($D35,Dt!$AP$3:$AQ$79,2,0),0) -> 0
B36: Link Colciencias: | C36: =IFERROR(VLOOKUP(L35,Dt!$AQ$3:$AS$79,3,0),"") ->  | I36: ="Clasif.:"&IFERROR(VLOOKUP(L35,Dt!$AQ$3:$AS$79,2,0),"") -> Clasif.:
B37: Líneas | L37: =IFERROR("DT!"&VLOOKUP($D35,Dt!$AP$3:$AT$79,5,0),0) -> 0
A39: 3.- | B39: Instituciones Externas participantes. | X39: 2 Instituciones Externas
B41: Nombre
B42: Grupo | H42: Clasificación
B43: Investigadores | H43: Presupuesto en plan de compras: | I43: =Presupuesto!H157 -> 0
B44: Tipo de Entidad | H44: Universidad | I44: No.
B45: Link Colciencias: | K45: =IF(L45=0,C45,0) -> 0 | L45: =IFERROR(SEARCH(M45,C45,1),0) -> 0 | M45: http://scienti.colciencias.gov
B47: Nombre
B48: Grupo | H48: Clasificación
B49: Investigadores | H49: Presupuesto en plan de compras: | I49: =Presupuesto!H157 -> 0
B50: Tipo de Entidad | H50: Universidad | I50: No.
B51: Link Colciencias: | K51: =IF(L51=0,C51,0) -> 0 | L51: =IFERROR(SEARCH(M51,C51,1),0) -> 0 | M51: http://scienti.colciencias.gov
B53: Datos comprometidos.
D55: $ Vicein: | E55: =Presupuesto!F157 -> 0 | G55: =S55 -> 4 | I55: ="Límite en millones "&Integrantes!T4 -> Límite en millones | K55: =IF(Productos!#REF!>0,1,0) ->  | S55: =ABS(RIGHT(LEFT(C13,11),1)) -> 4
B56: * Las áreas sombreadas de color azul no son editables
B58: Observaciones o recomendaciones (no valida para calificación de Propuesta):
B62: Calificación del formato

Sheet Resumen
A1: 2 | G1: *Pueden Ocultar las Filas que no se utilicen.
C2: =General!B2 -> PRESENTACIÓN DE PROPUESTAS DE IDEAS INNOVADORAS 2025-1 | D2: =General!$H$2 -> Fecha de Emisión: 2018/03/06 | E2: =General!$I$2 -> IN-IE-F-7 | G2: =SUM(G7:G11) -> 0 | H2: <=== N° palabras en total
D3: =General!$H$3 -> Revisión N°: 4 | E3: ="Página "&A1&" de "&Dt_TPG -> Página 2 de 11 | G3: Palabras | H3: Largo L | I3: Limite
A5: 4.- | B5: # | C5: Resumen de la propuesta | G5: =SUM(G6:G12) -> 0 | H5: =SUM(H6:H12) -> 0 | I5: 30000
I6: =I5 -> 30000
B7: =ROW()-6 -> 1 | G7: =IF(C7="",0,LEN(TRIM(C7))-LEN(SUBSTITUTE(TRIM(C7)," ",""))+1) -> 0 | H7: =LEN(C7) -> 0 | I7: 30000
B8: =ROW()-6 -> 2 | G8: =IF(C8="",0,LEN(TRIM(C8))-LEN(SUBSTITUTE(TRIM(C8)," ",""))+1) -> 0 | H8: =LEN(C8) -> 0 | I8: 30000
B9: =ROW()-6 -> 3 | G9: =IF(C9="",0,LEN(TRIM(C9))-LEN(SUBSTITUTE(TRIM(C9)," ",""))+1) -> 0 | H9: =LEN(C9) -> 0 | I9: 30000
B10: =ROW()-6 -> 4 | G10: =IF(C10="",0,LEN(TRIM(C10))-LEN(SUBSTITUTE(TRIM(C10)," ",""))+1) -> 0 | H10: =LEN(C10) -> 0 | I10: 30000
B11: =ROW()-6 -> 5 | G11: =IF(C11="",0,LEN(TRIM(C11))-LEN(SUBSTITUTE(TRIM(C11)," ",""))+1) -> 0 | H11: =LEN(C11) -> 0 | I11: 30000
A13: 4.a- | B13: # | C13: Origen de la tecnología | G13: =SUM(G14:G20) -> 0 | H13: =SUM(H14:H20) -> 0 | I13: 30000
I14: =I13 -> 30000
B15: =ROW()-14 -> 1 | G15: =IF(C15="",0,LEN(TRIM(C15))-LEN(SUBSTITUTE(TRIM(C15)," ",""))+1) -> 0 | H15: =LEN(C15) -> 0 | I15: 30000
B16: =ROW()-14 -> 2 | G16: =IF(C16="",0,LEN(TRIM(C16))-LEN(SUBSTITUTE(TRIM(C16)," ",""))+1) -> 0 | H16: =LEN(C16) -> 0 | I16: 30000
B17: =ROW()-14 -> 3 | G17: =IF(C17="",0,LEN(TRIM(C17))-LEN(SUBSTITUTE(TRIM(C17)," ",""))+1) -> 0 | H17: =LEN(C17) -> 0 | I17: 30000
B18: =ROW()-14 -> 4 | G18: =IF(C18="",0,LEN(TRIM(C18))-LEN(SUBSTITUTE(TRIM(C18)," ",""))+1) -> 0 | H18: =LEN(C18) -> 0 | I18: 30000
B19: =ROW()-14 -> 5 | G19: =IF(C19="",0,LEN(TRIM(C19))-LEN(SUBSTITUTE(TRIM(C19)," ",""))+1) -> 0 | H19: =LEN(C19) -> 0 | I19: 30000
A21: 4.b- | B21: # | C21: Nombre de la tecnología | G21: =SUM(G22:G28) -> 0 | H21: =SUM(H22:H28) -> 0 | I21: 30000
I22: =I21 -> 30000
B23: =ROW()-14 -> 9 | G23: =IF(C23="",0,LEN(TRIM(C23))-LEN(SUBSTITUTE(TRIM(C23)," ",""))+1) -> 0 | H23: =LEN(C23) -> 0 | I23: 30000
B24: =ROW()-14 -> 10 | G24: =IF(C24="",0,LEN(TRIM(C24))-LEN(SUBSTITUTE(TRIM(C24)," ",""))+1) -> 0 | H24: =LEN(C24) -> 0 | I24: 30000
B25: =ROW()-14 -> 11 | G25: =IF(C25="",0,LEN(TRIM(C25))-LEN(SUBSTITUTE(TRIM(C25)," ",""))+1) -> 0 | H25: =LEN(C25) -> 0 | I25: 30000
B26: =ROW()-14 -> 12 | G26: =IF(C26="",0,LEN(TRIM(C26))-LEN(SUBSTITUTE(TRIM(C26)," ",""))+1) -> 0 | H26: =LEN(C26) -> 0 | I26: 30000
B27: =ROW()-14 -> 13 | G27: =IF(C27="",0,LEN(TRIM(C27))-LEN(SUBSTITUTE(TRIM(C27)," ",""))+1) -> 0 | H27: =LEN(C27) -> 0 | I27: 30000
A29: 4.c- | B29: # | C29: Elemento visual | G29: =SUM(G30:G36) -> 0 | H29: =SUM(H30:H36) -> 0 | I29: 30000
I30: =I29 -> 30000
B31: =ROW()-14 -> 17 | G31: =IF(C31="",0,LEN(TRIM(C31))-LEN(SUBSTITUTE(TRIM(C31)," ",""))+1) -> 0 | H31: =LEN(C31) -> 0 | I31: 30000
B32: =ROW()-14 -> 18 | G32: =IF(C32="",0,LEN(TRIM(C32))-LEN(SUBSTITUTE(TRIM(C32)," ",""))+1) -> 0 | H32: =LEN(C32) -> 0 | I32: 30000
B33: =ROW()-14 -> 19 | G33: =IF(C33="",0,LEN(TRIM(C33))-LEN(SUBSTITUTE(TRIM(C33)," ",""))+1) -> 0 | H33: =LEN(C33) -> 0 | I33: 30000
B34: =ROW()-14 -> 20 | G34: =IF(C34="",0,LEN(TRIM(C34))-LEN(SUBSTITUTE(TRIM(C34)," ",""))+1) -> 0 | H34: =LEN(C34) -> 0 | I34: 30000
B35: =ROW()-14 -> 21 | G35: =IF(C35="",0,LEN(TRIM(C35))-LEN(SUBSTITUTE(TRIM(C35)," ",""))+1) -> 0 | H35: =LEN(C35) -> 0 | I35: 30000
A37: 4.d- | B37: # | C37: Detalles de la tecnología | G37: =SUM(G38:G86) -> 0 | H37: =SUM(H38:H86) -> 0 | I37: 30000
I38: =I37 -> 30000
C39: Describa de forma clara y concisa la tecnología, producto o servicio. Indique sus principales características, especialmente aquellas que la distinguen de soluciones competidoras o alternativas. Describa los antecedentes científicos y tecnológicos de la temática propuesta.
B41: =ROW()-14 -> 27 | G41: =IF(C41="",0,LEN(TRIM(C41))-LEN(SUBSTITUTE(TRIM(C41)," ",""))+1) -> 0 | H41: =LEN(C41) -> 0 | I41: =I38 -> 30000
B42: =ROW()-14 -> 28 | G42: =IF(C42="",0,LEN(TRIM(C42))-LEN(SUBSTITUTE(TRIM(C42)," ",""))+1) -> 0 | H42: =LEN(C42) -> 0 | I42: =I41 -> 30000
B43: =ROW()-14 -> 29 | G43: =IF(C43="",0,LEN(TRIM(C43))-LEN(SUBSTITUTE(TRIM(C43)," ",""))+1) -> 0 | H43: =LEN(C43) -> 0 | I43: =I42 -> 30000
B44: =ROW()-14 -> 30 | G44: =IF(C44="",0,LEN(TRIM(C44))-LEN(SUBSTITUTE(TRIM(C44)," ",""))+1) -> 0 | H44: =LEN(C44) -> 0 | I44: =I43 -> 30000
B45: =ROW()-14 -> 31 | G45: =IF(C45="",0,LEN(TRIM(C45))-LEN(SUBSTITUTE(TRIM(C45)," ",""))+1) -> 0 | H45: =LEN(C45) -> 0 | I45: =I44 -> 30000
I46: =I45 -> 30000
A47: 4.c- | B47: # | C47: Beneficios potenciales: | G47: =SUM(G48:G54) -> 0 | H47: =SUM(H48:H54) -> 0 | I47: 30000
I48: =I47 -> 30000
B49: =ROW()-14 -> 35 | G49: =IF(C49="",0,LEN(TRIM(C49))-LEN(SUBSTITUTE(TRIM(C49)," ",""))+1) -> 0 | H49: =LEN(C49) -> 0 | I49: 30000
B50: =ROW()-14 -> 36 | G50: =IF(C50="",0,LEN(TRIM(C50))-LEN(SUBSTITUTE(TRIM(C50)," ",""))+1) -> 0 | H50: =LEN(C50) -> 0 | I50: 30000
B51: =ROW()-14 -> 37 | G51: =IF(C51="",0,LEN(TRIM(C51))-LEN(SUBSTITUTE(TRIM(C51)," ",""))+1) -> 0 | H51: =LEN(C51) -> 0 | I51: 30000
B52: =ROW()-14 -> 38 | G52: =IF(C52="",0,LEN(TRIM(C52))-LEN(SUBSTITUTE(TRIM(C52)," ",""))+1) -> 0 | H52: =LEN(C52) -> 0 | I52: 30000
B53: =ROW()-14 -> 39 | G53: =IF(C53="",0,LEN(TRIM(C53))-LEN(SUBSTITUTE(TRIM(C53)," ",""))+1) -> 0 | H53: =LEN(C53) -> 0 | I53: 30000
A55: 4.d- | B55: # | C55: Estado de la Propiedad Intelectual: | G55: =SUM(G56:G61) -> 0 | H55: =SUM(H56:H61) -> 0 | I55: 30000
I56: =I55 -> 30000
B57: =ROW()-14 -> 43 | G57: =IF(C57="",0,LEN(TRIM(C57))-LEN(SUBSTITUTE(TRIM(C57)," ",""))+1) -> 0 | H57: =LEN(C57) -> 0 | I57: 30000
B58: =ROW()-14 -> 44 | G58: =IF(C58="",0,LEN(TRIM(C58))-LEN(SUBSTITUTE(TRIM(C58)," ",""))+1) -> 0 | H58: =LEN(C58) -> 0 | I58: 30000
B59: =ROW()-14 -> 45 | G59: =IF(C59="",0,LEN(TRIM(C59))-LEN(SUBSTITUTE(TRIM(C59)," ",""))+1) -> 0 | H59: =LEN(C59) -> 0 | I59: 30000
B60: =ROW()-14 -> 46 | G60: =IF(C60="",0,LEN(TRIM(C60))-LEN(SUBSTITUTE(TRIM(C60)," ",""))+1) -> 0 | H60: =LEN(C60) -> 0 | I60: 30000
B61: =ROW()-14 -> 47 | G61: =IF(C61="",0,LEN(TRIM(C61))-LEN(SUBSTITUTE(TRIM(C61)," ",""))+1) -> 0 | H61: =LEN(C61) -> 0 | I61: 30000
A63: 4.d- | B63: # | C63: Mercados potenciales e interés del mercado: | G63: =SUM(G64:G86) -> 0 | H63: =SUM(H64:H86) -> 0 | I63: 30000
I64: =I63 -> 30000
B65: =ROW()-14 -> 51 | G65: =IF(C65="",0,LEN(TRIM(C65))-LEN(SUBSTITUTE(TRIM(C65)," ",""))+1) -> 0 | H65: =LEN(C65) -> 0 | I65: 30000
B66: =ROW()-14 -> 52 | G66: =IF(C66="",0,LEN(TRIM(C66))-LEN(SUBSTITUTE(TRIM(C66)," ",""))+1) -> 0 | H66: =LEN(C66) -> 0 | I66: 30000
B67: =ROW()-14 -> 53 | G67: =IF(C67="",0,LEN(TRIM(C67))-LEN(SUBSTITUTE(TRIM(C67)," ",""))+1) -> 0 | H67: =LEN(C67) -> 0 | I67: 30000
B68: =ROW()-14 -> 54 | G68: =IF(C68="",0,LEN(TRIM(C68))-LEN(SUBSTITUTE(TRIM(C68)," ",""))+1) -> 0 | H68: =LEN(C68) -> 0 | I68: 30000
B69: =ROW()-14 -> 55 | G69: =IF(C69="",0,LEN(TRIM(C69))-LEN(SUBSTITUTE(TRIM(C69)," ",""))+1) -> 0 | H69: =LEN(C69) -> 0 | I69: 30000
A71: 4.e- | B71: # | C71: Competencia: | G71: =SUM(G72:G94) -> 0 | H71: =SUM(H72:H94) -> 0 | I71: 30000
I72: =I71 -> 30000
B73: =ROW()-14 -> 59 | G73: =IF(C73="",0,LEN(TRIM(C73))-LEN(SUBSTITUTE(TRIM(C73)," ",""))+1) -> 0 | H73: =LEN(C73) -> 0 | I73: 30000
B74: =ROW()-14 -> 60 | G74: =IF(C74="",0,LEN(TRIM(C74))-LEN(SUBSTITUTE(TRIM(C74)," ",""))+1) -> 0 | H74: =LEN(C74) -> 0 | I74: 30000
B75: =ROW()-14 -> 61 | G75: =IF(C75="",0,LEN(TRIM(C75))-LEN(SUBSTITUTE(TRIM(C75)," ",""))+1) -> 0 | H75: =LEN(C75) -> 0 | I75: 30000
B76: =ROW()-14 -> 62 | G76: =IF(C76="",0,LEN(TRIM(C76))-LEN(SUBSTITUTE(TRIM(C76)," ",""))+1) -> 0 | H76: =LEN(C76) -> 0 | I76: 30000
B77: =ROW()-14 -> 63 | G77: =IF(C77="",0,LEN(TRIM(C77))-LEN(SUBSTITUTE(TRIM(C77)," ",""))+1) -> 0 | H77: =LEN(C77) -> 0 | I77: 30000
A79: 4.f- | B79: # | C79: Desafíos y retos: | G79: =SUM(G80:G102) -> 0 | H79: =SUM(H80:H102) -> 0 | I79: 30000
I80: =I79 -> 30000
B81: =ROW()-14 -> 67 | G81: =IF(C81="",0,LEN(TRIM(C81))-LEN(SUBSTITUTE(TRIM(C81)," ",""))+1) -> 0 | H81: =LEN(C81) -> 0 | I81: 30000
B82: =ROW()-14 -> 68 | G82: =IF(C82="",0,LEN(TRIM(C82))-LEN(SUBSTITUTE(TRIM(C82)," ",""))+1) -> 0 | H82: =LEN(C82) -> 0 | I82: 30000
B83: =ROW()-14 -> 69 | G83: =IF(C83="",0,LEN(TRIM(C83))-LEN(SUBSTITUTE(TRIM(C83)," ",""))+1) -> 0 | H83: =LEN(C83) -> 0 | I83: 30000
B84: =ROW()-14 -> 70 | G84: =IF(C84="",0,LEN(TRIM(C84))-LEN(SUBSTITUTE(TRIM(C84)," ",""))+1) -> 0 | H84: =LEN(C84) -> 0 | I84: 30000
B85: =ROW()-14 -> 71 | G85: =IF(C85="",0,LEN(TRIM(C85))-LEN(SUBSTITUTE(TRIM(C85)," ",""))+1) -> 0 | H85: =LEN(C85) -> 0 | I85: 30000
A87: 5.- | B87: # | C87: Descripción de la propuesta . | G87: =SUM(G89:G417) -> 0 | H87: <=== Palabras en total
A88: a.- | B88: # | C88: Planteamiento del problema u oportunidad identificada | G88: =SUM(G89:G403) -> 0 | H88: <=== Palabras en total
G89: =IF(C89="",0,LEN(TRIM(C89))-LEN(SUBSTITUTE(TRIM(C89)," ",""))+1) -> 0
B90: =ROW()-19 -> 71 | G90: 0
B91: 72 | G91: 0
B92: 73 | G92: 0
B93: 74 | G93: 0
B94: 75 | G94: 0
B95: 76 | G95: 0
I96: ="Supera el número de palabra permitidas para el resumen por favor quitar "&(G2-250)&" palabras." -> Supera el número de palabra permitidas para el resumen por favor quitar -250 palabras.
A98: b.- | B98: # | C98: Pertinencia | G98: =SUM(G99:G417) -> 0 | H98: <=== Palabras en total
G99: =IF(C99="",0,LEN(TRIM(C99))-LEN(SUBSTITUTE(TRIM(C99)," ",""))+1) -> 0
B100: =ROW()-19 -> 81 | G100: 0
B101: =ROW()-19 -> 82 | G101: 0
B102: =ROW()-19 -> 83 | G102: 0
B103: =ROW()-19 -> 84 | G103: 0
B104: =ROW()-19 -> 85 | G104: 0
A107: c.- | B107: # | C107: Metodología | G107: =SUM(G108:G418) -> 0 | H107: <=== Palabras en total
G108: =IF(C108="",0,LEN(TRIM(C108))-LEN(SUBSTITUTE(TRIM(C108)," ",""))+1) -> 0
B109: =ROW()-19 -> 90 | G109: 0
B110: 91 | G110: 0
B111: 92 | G111: 0
B112: 93 | G112: 0
B113: 94 | G113: 0
B114: 95 | G114: 0
A116: d.- | B116: # | C116: Avance en el nivel de madurez tecnológica | G116: =SUM(G117:G417) -> 0 | H116: <=== Palabras en total
G117: =IF(C117="",0,LEN(TRIM(C117))-LEN(SUBSTITUTE(TRIM(C117)," ",""))+1) -> 0
B118: =ROW()-19 -> 99 | G118: =IF(C118="",0,LEN(TRIM(C118))-LEN(SUBSTITUTE(TRIM(C118)," ",""))+1) -> 0
B119: =ROW()-19 -> 100 | G119: =IF(C119="",0,LEN(TRIM(C119))-LEN(SUBSTITUTE(TRIM(C119)," ",""))+1) -> 0
B120: =ROW()-19 -> 101 | G120: =IF(C120="",0,LEN(TRIM(C120))-LEN(SUBSTITUTE(TRIM(C120)," ",""))+1) -> 0
A122: e.- | B122: # | C122: Grado de Innovación | G122: =SUM(G123:G417) -> 0 | H122: <=== Palabras en total
G123: =IF(C123="",0,LEN(TRIM(C123))-LEN(SUBSTITUTE(TRIM(C123)," ",""))+1) -> 0
B124: =ROW()-19 -> 105 | G124: =IF(C124="",0,LEN(TRIM(C124))-LEN(SUBSTITUTE(TRIM(C124)," ",""))+1) -> 0
B125: =ROW()-19 -> 106 | G125: =IF(C125="",0,LEN(TRIM(C125))-LEN(SUBSTITUTE(TRIM(C125)," ",""))+1) -> 0
B126: =ROW()-19 -> 107 | G126: =IF(C126="",0,LEN(TRIM(C126))-LEN(SUBSTITUTE(TRIM(C126)," ",""))+1) -> 0
A129: f.- | B129: # | C129: Contextualización de la Invención | G129: =SUM(G130:G418) -> 0 | H129: <=== Palabras en total
G130: =IF(C130="",0,LEN(TRIM(C130))-LEN(SUBSTITUTE(TRIM(C130)," ",""))+1) -> 0
B131: =ROW()-19 -> 112 | G131: 0
B132: =ROW()-19 -> 113 | G132: 0
B133: =ROW()-19 -> 114 | G133: 0
B134: =ROW()-19 -> 115 | G134: 0
B135: =ROW()-19 -> 116 | G135: 0
A137: f.- | B137: # | C137: Valor agregado | G137: =SUM(G138:G431) -> 0 | H137: <=== Palabras en total
G138: =IF(C138="",0,LEN(TRIM(C138))-LEN(SUBSTITUTE(TRIM(C138)," ",""))+1) -> 0
B139: =ROW()-19 -> 120 | G139: =IF(C139="",0,LEN(TRIM(C139))-LEN(SUBSTITUTE(TRIM(C139)," ",""))+1) -> 0
B140: =ROW()-19 -> 121 | G140: =IF(C140="",0,LEN(TRIM(C140))-LEN(SUBSTITUTE(TRIM(C140)," ",""))+1) -> 0
B141: =ROW()-19 -> 122 | G141: =IF(C141="",0,LEN(TRIM(C141))-LEN(SUBSTITUTE(TRIM(C141)," ",""))+1) -> 0
A143: g.- | B143: # | C143: Antecedentes profesionales o académicos del equipo técnico de trabajo | G143: =SUM(G144:G444) -> 0 | H143: <=== Palabras en total
G144: =IF(C144="",0,LEN(TRIM(C144))-LEN(SUBSTITUTE(TRIM(C144)," ",""))+1) -> 0
B145: =ROW()-19 -> 126 | G145: 0
B146: =ROW()-19 -> 127 | G146: 0
B147: 128 | G147: 0
B148: 129 | G148: 0
B149: 130 | G149: 0
B150: 131 | G150: 0
B151: 132 | G151: 0
B152: 133 | G152: 0
A154: f.- | B154: # | C154: Roles del equipo técnico de trabajo | G154: =SUM(G155:G455) -> 0 | H154: <=== Palabras en total
G155: =IF(C155="",0,LEN(TRIM(C155))-LEN(SUBSTITUTE(TRIM(C155)," ",""))+1) -> 0
B156: =ROW()-19 -> 137 | G156: 0
B157: =ROW()-19 -> 138 | G157: 0
B158: =ROW()-19 -> 139 | G158: 0
B159: =ROW()-19 -> 140 | G159: 0
B160: =ROW()-19 -> 141 | G160: 0
B163: *Pueden Ocultar las Filas que no se utilicen.

Sheet Estado_del_arte
A1: 3 | G1: *Pueden Ocultar las Filas que no se utilicen.
C2: =General!B2 -> PRESENTACIÓN DE PROPUESTAS DE IDEAS INNOVADORAS 2025-1 | D2: =General!$H$2 -> Fecha de Emisión: 2018/03/06 | E2: =General!$I$2 -> IN-IE-F-7
D3: =General!$H$3 -> Revisión N°: 4 | E3: ="Página "&A1&" de "&Dt_TPG -> Página 3 de 11 | G3: =SUM(G8:G3501) -> 0 | H3: <== Total de palabras
A5: 6.- | B5: # | C5: Estado del arte de la propuesta. | G5: Largo
A6: c.- | B6: # | C6: Antecedentes científicos y tecnológicos. | G6: =SUM(G7:G328) -> 0 | H6: <=== Palabras en total
B8: =ROW()-6 -> 2 | G8: =IF(C8="",0,LEN(TRIM(C8))-LEN(SUBSTITUTE(TRIM(C8)," ",""))+1) -> 0
B9: =ROW()-6 -> 3 | G9: =IF(C9="",0,LEN(TRIM(C9))-LEN(SUBSTITUTE(TRIM(C9)," ",""))+1) -> 0
B10: 4 | G10: 0
B11: 5 | G11: 0
B12: 6 | G12: 0
B13: 7 | G13: 0
B14: 8 | G14: 0
B15: 9 | G15: 0
B16: 10 | G16: 0
B17: 11 | G17: 0
B18: 12 | G18: 0
B19: 13 | G19: 0
B20: 14 | G20: 0
B21: 15 | G21: 0
B22: 16 | G22: 0
B23: 17 | G23: 0
B24: 18 | G24: 0
B25: 19 | G25: 0
B26: 20 | G26: 0
B27: 21 | G27: 0
B28: 22 | G28: 0
B29: 23 | G29: 0
B30: 24 | G30: 0
B31: 25 | G31: 0
B32: 26 | G32: 0
B33: 27 | G33: 0
B34: 28 | G34: 0
B35: 29 | G35: 0
B36: 30 | G36: 0
B37: 31 | G37: 0
B41: *Pueden Ocultar las Filas que no se utilicen.

Sheet Objetivos
A1: 4
B2: =General!B2 -> PRESENTACIÓN DE PROPUESTAS DE IDEAS INNOVADORAS 2025-1 | D2: =General!$H$2 -> Fecha de Emisión: 2018/03/06 | E2: =General!$I$2 -> IN-IE-F-7
D3: =General!$H$3 -> Revisión N°: 4 | E3: ="Página "&A1&" de "&Dt_TPG -> Página 4 de 11 | G3: =SUM(G7:G3500) -> 0 | H3: <== Total de palabras
A5: 7.- | B5: Objetivos de la propuesta. | G5: Largo
B7: *El espacio del ítem (0) cero es para definir el objetivo general los demás corresponden a objetivos específicos
B8: =ROW()-8 -> 0 | G8: =IF(C8="",0,LEN(TRIM(C8))-LEN(SUBSTITUTE(TRIM(C8)," ",""))+1) -> 0
B9: =ROW()-8 -> 1 | G9: 0
B10: 2 | G10: 0
B11: 3 | G11: 0
B12: 4 | G12: 0
B13: 5 | G13: 0
B14: 6 | G14: 0
B15: 7 | G15: 0
B16: 8 | G16: 0
B17: 9 | G17: 0
B18: 10 | G18: 0
B19: 11 | G19: 0
B20: 12 | G20: 0
B21: 13 | G21: 0
B22: 14 | G22: 0
B23: 15 | G23: 0

Sheet Etica
A1: 5 | G1: *Pueden Ocultar las Filas que no se utilicen.
C2: =Objetivos!B2 -> PRESENTACIÓN DE PROPUESTAS DE IDEAS INNOVADORAS 2025-1 | D2: Fecha de Emisión: 2019/03/18 | E2: IN-IV-F-14 | J2: Detalles:
D3: Revisión N°: 4 | E3: ="Página "&A1&" de "&Dt_TPG -> Página 5 de 11 | G3: =SUM(G5:G3524) -> 429 | H3: <== Total de palabras
C5: =$Q$13 -> .
A6: 8b.- | B6: 0 | C6: Consideraciones e implicaciones éticas de la investigación, bioética e integridad científica | E6: ( Si / No ) | G6: Palabras | M6: Validaciones
B7: 1 | C7: Proyecto de investigación en CTeI que involucra seres humanos | E7: No | G7: =IF(C7="",0,LEN(TRIM(C7))-LEN(SUBSTITUTE(TRIM(C7)," ",""))+1) -> 9 | H7: =I7-J7 -> 0 | I7: =IF(OR(E7="No",E7=0),0,1) -> 0 | J7: =MAX(I8:I23) -> 0 | L7: 1 | M7: =VLOOKUP($L7,$B$6:$J$68,7,0) -> 0 | N7: CTeI que involucra seres humanos | P7: =LEN(N7) -> 33 | Q7: =IF(M7=0,"",N7&"; ") -> 
B8: 1.1 | C8: ¿Utiliza información exclusiva o reservada por parte de terceros y prevé su forma de acceso? | E8: No | G8: =IF(C8="",0,LEN(TRIM(C8))-LEN(SUBSTITUTE(TRIM(C8)," ",""))+1) -> 15 | I8: =IF(OR(E8="No",E8=0),0,1) -> 0 | L8: 2 | M8: 0 | N8: CTeI involucra animales | P8: 23
C9: =$J$2 -> Detalles: | G9: =IF(C9="",0,LEN(TRIM(C9))-LEN(SUBSTITUTE(TRIM(C9)," ",""))+1) -> 1 | I9: =IF(OR(E9="No",E9=0),0,1) -> 0 | L9: 3 | M9: 0 | N9: CTeI involucra fuentes documentales | P9: 35
B10: 1.2 | C10: ¿Utiliza datos personales? | E10: No | G10: 3 | I10: 0 | L10: 4 | M10: 0 | N10: CTeI involucra el ambiente | P10: 26
C11: =$J$2 -> Detalles: | G11: 1 | I11: 0 | L11: 5 | M11: 0 | N11: Aspectos de Integridad científica | P11: 33
B12: 1.3 | C12: ¿utiliza información confidencial? | E12: No | G12: 3 | I12: 0 | L12: 6 | M12: 0 | N12: otras razones que ameritan la revisión | P12: 39
C13: =$J$2 -> Detalles: | G13: 1 | I13: 0 | M13: =LEN(N13) -> 0 | N13: =Q7&Q8&Q9&Q10&Q11&Q12 ->  | Q13: =IF(M13>0,"Error, revisar el ítem: "&N13,".") -> .
B14: 1.4 | C14: ¿Requiere consentimiento informado? | E14: No | G14: 3 | I14: 0
C15: =$J$2 -> Detalles: | G15: 1 | I15: 0
B16: 1.5 | C16: ¿indica un modelo de recopilación y conservación de información? | E16: No | G16: 9 | I16: 0
C17: =$J$2 -> Detalles: | G17: 1 | I17: 0
B18: 1.6 | C18: ¿Es una investigación con comunidades vulnerables (indígenas, afrodescendientes, menores o personal subordinado, entre otros)? | E18: No | G18: 14 | I18: 0
C19: =$J$2 -> Detalles: | G19: 1 | I19: 0
B20: 1.7 | C20: ¿Se evidencia conocimiento previo sobre aspectos políticos, económicos sociales y culturales de las comunidades indígenas? | E20: No | G20: 15 | I20: 0
C21: =$J$2 -> Detalles: | G21: 1 | I21: 0
B22: 1.8 | C22: ¿Realiza intervención a través cuestionarios, medicamentos, rutinas, modificación de actividades o estilo de vida? | E22: No | G22: 14 | I22: 0
C23: =$J$2 -> Detalles: | G23: 1 | I23: 0
B24: 1.9 | C24: ¿incluye modelos de consentimiento informado, uso de datos personales u otro? | E24: No | G24: 11 | I24: 0
C25: =$J$2 -> Detalles: | G25: 1 | I25: 0
B26: 2 | C26: Proyecto de investigación en CTeI involucra animales | E26: No | G26: 7 | H26: =I26-J26 -> 0 | I26: 0 | J26: =MAX(I27:I38) -> 0
B27: 2.1 | C27: ¿Incluye un protocolo de investigación en animales? | E27: No | G27: 7 | I27: 0
C28: =$J$2 -> Detalles: | G28: 1 | I28: 0
B29: 2.2 | C29: ¿Incluye un protocolo de manipulación de recursos biológicos? | E29: No | G29: 8 | I29: 0
C30: =$J$2 -> Detalles: | G30: 1 | I30: 0
B31: 2.3 | C31: ¿Incluye un protocolo de manejo y disposición de sustancias peligrosas, agentes infecciosos y desechos? | E31: No | G31: 14 | I31: 0
C32: =$J$2 -> Detalles: | G32: 1 | I32: 0
B33: 2.4 | C33: ¿hay caracterización de los animales de experimentación criterios de selección de la especie? | E33: No | G33: 13 | I33: 0
C34: =$J$2 -> Detalles: | G34: 1 | I34: 0
B35: 2.5 | C35: ¿se prevé formación previa al equipo de laboratorio por parte del investigador sobre el cuidado permanente del animal y experimentación? | E35: No | G35: 20 | I35: 0
C36: =$J$2 -> Detalles: | G36: 1 | I36: 0
B37: 2.6 | C37: ¿se prevé declaración previa del origen y estado de los animales para experimentación? | E37: No | G37: 13 | I37: 0
C38: =$J$2 -> Detalles: | G38: 1 | I38: 0
B39: 3 | C39: El proyecto de investigación en CTeI involucra fuentes documentales | E39: No | G39: 9 | H39: =I39-J39 -> 0 | I39: 0 | J39: =MAX(I40:I45) -> 0
B40: 3.1 | C40: ¿hace referencia a la anonimización de datos? | E40: No | G40: 7 | I40: 0
C41: =$J$2 -> Detalles: | G41: 1 | I41: 0
B42: 3.2 | C42: ¿prevé conservación de datos de consulta? | E42: No | G42: 6 | I42: 0
C43: =$J$2 -> Detalles: | G43: 1 | I43: 0
B44: 3.3 | C44: ¿se identifica objetivamente que las bases de consulta de acceso abierto pueden ser calificadas de tal manera? | E44: No | G44: 17 | I44: 0
C45: =$J$2 -> Detalles: | G45: 1 | I45: 0
B46: 4 | C46: Proyecto de investigación en CTeI involucra el ambiente | E46: No | G46: 8 | H46: =I46-J46 -> 0 | I46: 0 | J46: =MAX(I47:I50) -> 0
B47: 4.1 | C47: ¿requiere permisos o licencias ambientales como recolección de especímenes, colecciones biológicas, manipulación o movilización de recursos bilógicas? | E47: No | G47: 17 | I47: 0
C48: =$J$2 -> Detalles: | G48: 1 | I48: 0
B49: 4.2 | C49: ¿requiere uso de recursos genéticos? | E49: No | G49: 5 | I49: 0
C50: =$J$2 -> Detalles: | G50: 1 | I50: 0
B51: 5 | C51: Aspectos de Integridad científica | E51: No | G51: 4 | H51: =I51-J51 -> 0 | I51: 0 | J51: =MAX(I52:I62) -> 0
B52: 5.1 | C52: ¿Podría darse un conflicto de interés no declarado entre quienes participan en el proyecto y/o las instituciones coejecutoras y/o las instancias de aprobación y seguimiento? | E52: No | G52: 25 | I52: 0
C53: =$J$2 -> Detalles: | G53: 1 | I53: 0
B54: 5.2 | C54: ¿Hay indicios de que se han fabricado o plagiado datos en la investigación? | E54: No | G54: 13 | I54: 0
C55: =$J$2 -> Detalles: | G55: 1 | I55: 0
B56: 5.3 | C56: ¿se presume que se incluye personal vinculado al proyecto que objetivamente podría no aportar técnica ni intelectualmente al proyecto? | E56: No | G56: 19 | I56: 0
C57: =$J$2 -> Detalles: | G57: 1 | I57: 0
B58: 5.4 | C58: ¿se estima que los recursos y tiempos de dedicación solicitados exceden lo necesario para financiación del proyecto o se prevé que los productos son escasos ante las capacidades y alcance de la propuesta? | E58: No | G58: 33 | I58: 0
C59: =$J$2 -> Detalles: | G59: 1 | I59: 0
B60: 5.5 | C60: ¿Podría darse un conflicto de interés no declarado entre quienes participan en el proyecto y/o las instituciones coejecutoras y/o las instancias de aprobación y seguimiento? | E60: No | G60: 25 | I60: 0
C61: =$J$2 -> Detalles: | G61: 1 | I61: 0
E62: No | G62: 0 | I62: 0
B63: 6 | C63: Existen otras razones que ameritan la revisión por parte del comité de ética de la investigación (indique cuales). | E63: No | G63: 18 | H63: =I63-J63 -> 0 | I63: 0 | J63: =SUM(I64:I66) -> 0
B64: 6.1 | C64: =$J$2 -> Detalles: | G64: 1 | I64: 0
C65: Especificaciones de ética de la investigación, bioética e integridad científica que deban ser ampliadas en detalle (indique cuales). | E65: No | G65: 18 | I65: 0
B66: 6.1 | C66: =$J$2 -> Detalles: | G66: =IF(C66="",0,LEN(TRIM(C66))-LEN(SUBSTITUTE(TRIM(C66)," ",""))+1) -> 1 | I66: 0
I67: 0
G68: =IF(C68="",0,LEN(TRIM(C68))-LEN(SUBSTITUTE(TRIM(C68)," ",""))+1) -> 0 | I68: 0
G69: =IF(C69="",0,LEN(TRIM(C69))-LEN(SUBSTITUTE(TRIM(C69)," ",""))+1) -> 0

Sheet Cronograma
A1: 6 | I1: *Pueden Ocultar las Filas que no se utilicen. | L1: =("* Actualmente tiene "&G7&" meses de ejecución no superar los "& G5&" meses.") -> * Actualmente tiene 0 meses de ejecución no superar los 12 meses.
B2: =General!B2 -> PRESENTACIÓN DE PROPUESTAS DE IDEAS INNOVADORAS 2025-1 | D2: =General!$H$2 -> Fecha de Emisión: 2018/03/06 | E2: =General!$I$2 -> IN-IE-F-7
D3: =General!$H$3 -> Revisión N°: 4 | E3: ="Página "&A1&" de "&Dt_TPG -> Página 6 de 11
A5: 9.- | B5: Cronograma de actividades a desarrollar | E5: =Integrantes!J6 -> 12 | G5: =E5 -> 12 | H5: Meses Máximo | I5: Palabras
B7: No | C7: Descripción básica de la actividad | D7: Mes de Inicio | E7: Duración en meses | G7: =MAX(G8:G27) -> 0 | H7: Meses de ejecución actuales | I7: =SUM(I8:I27) -> 0 | J7: <== Total de palabras
B8: =ROW()-7 -> 1 | G8: =SUM(D8:E8) -> 0 | I8: =IF(C8="",0,LEN(TRIM(C8))-LEN(SUBSTITUTE(TRIM(C8)," ",""))+1) -> 0
B9: =ROW()-7 -> 2 | G9: =SUM(D9:E9) -> 0 | I9: =IF(C9="",0,LEN(TRIM(C9))-LEN(SUBSTITUTE(TRIM(C9)," ",""))+1) -> 0
B10: 3 | G10: 0 | I10: 0
B11: 4 | G11: 0 | I11: 0
B12: 5 | G12: 0 | I12: 0
B13: 6 | G13: 0 | I13: 0
B14: 7 | G14: 0 | I14: 0
B15: 8 | G15: 0 | I15: 0
B16: 9 | G16: 0 | I16: 0
B17: 10 | G17: 0 | I17: 0
B18: 11 | G18: 0 | I18: 0
B19: 12 | G19: 0 | I19: 0
B20: 13 | G20: 0 | I20: 0
B21: 14 | G21: 0 | I21: 0
B22: 15 | G22: 0 | I22: 0
B23: 16 | G23: 0 | I23: 0
B24: 17 | G24: 0 | I24: 0
B25: 18 | G25: 0 | I25: 0
B26: 19 | G26: 0 | I26: 0
B27: 20 | G27: 0 | I27: 0
C29: =IF(G7>G5,L1,".") -> .
B33: *Pueden Ocultar las Filas que no se utilicen.

Sheet Integrantes
A1: 8
B3: =General!B2 -> PRESENTACIÓN DE PROPUESTAS DE IDEAS INNOVADORAS 2025-1 | F3: =General!$H$2 -> Fecha de Emisión: 2018/03/06 | G3: IN-IV-F-14
F4: =General!$H$3 -> Revisión N°: 4 | G4: ="Página "&A1&" de "&Dt_TPG -> Página 8 de 11 | H4: ="Página "&A2&" de "&Dt_TPG -> Página de 11 | J4: 20
K5: =W5 -> 0 | W5: =IFERROR(VLOOKUP($Y$5,Dt_MsgERR,4,0),".") -> 0 | X5: Integrantes | Y5: =VLOOKUP($X$5,Dt_IndERR,2,0) -> 0
A6: 11.- | B6: Investigadores Integrantes del proyecto. | F6: =Cel_TP -> INO | G6: =Cel_Fac -> CIAS | H6: =V_Max -> 0 | J6: =IF(F6="INO",12,6) -> 12 | W6: * Cuadro para tener relación entre Función y Tipo de Vinculo
B8: No | C8: Identificación | D8: Nombres | E8: Apellidos | F8: Nivel Académico | G8: Mes | H8: Horas | J8: Max | K8: Min | W8: Función | X8: y | Y8: Vinculo | Z8: Mes | AA8: Fila | AB8: Max | AC8: Min
B9: 1 | G9: =J6 -> 12 | J9: =AB9 -> 6 | K9: =AC9 -> 2 | W9: Innovador Principal | X9: =$X$8&"9:"&$X$8&"10" -> y9:y10 | Y9: Doc. Carrera TC | Z9: =G9 -> 12 | AA9: =ROW() -> 9 | AB9: 6 | AC9: 2
C10: Función : | D10: Innovador Principal | E10: Doc. Carrera TC | J10: =IFERROR(VLOOKUP($F10,V_IdNBC,2,0),0) -> 0 | W10: Innovador Principal | X10: =$X$8&"9:"&$X$8&"10" -> y9:y10 | Y10: Doc. Carrera MT | Z10: =Z9 -> 12 | AA10: =ROW() -> 10 | AB10: 6 | AC10: 2
C11: Correo: | F11: Teléfono / Celular | J11: =IFERROR(VLOOKUP($E10,$Y$8:$Z$23,2,0),12) -> 12 | W11: Coinnovador | X11: =$X$8&"11:"&$X$8&"15" -> y11:y15 | Y11: Doc. Carrera TC | Z11: =Z10 -> 12 | AA11: =ROW() -> 11 | AB11: 6 | AC11: 5
B12: 2 | H12: 5 | J12: =IFERROR(VLOOKUP($D13,$W$8:$AC$23,6,0),$J$9) -> 6 | K12: =IFERROR(VLOOKUP($D13,$W$8:$AC$23,7,0),$K$9) -> 5 | W12: Coinnovador | X12: =$X$8&"11:"&$X$8&"15" -> y11:y15 | Y12: Doc. Carrera MT | Z12: =Z11 -> 12 | AA12: =ROW() -> 12 | AB12: 6 | AC12: 5
B13: =+B12 -> 2 | C13: Función : | D13: Coinnovador | J13: =IFERROR(VLOOKUP($F13,V_IdNBC,2,0),0) -> 0 | W13: Coinnovador | X13: =$X$8&"11:"&$X$8&"15" -> y11:y15 | Y13: Doc. Ocasional | Z13: 10 | AA13: =ROW() -> 13 | AB13: 6 | AC13: 5
B14: =+B13 -> 2 | C14: =C11 -> Correo: | F14: =F11 -> Teléfono / Celular | J14: =IFERROR(VLOOKUP($E13,$Y$8:$Z$23,2,0),12) -> 12 | W14: Coinnovador | X14: =$X$8&"11:"&$X$8&"15" -> y11:y15 | Y14: Estudiante | Z14: 12 | AA14: =ROW() -> 14 | AB14: 6 | AC14: 5
B15: =B12+1 -> 3 | J15: =IFERROR(VLOOKUP($D16,$W$8:$AC$23,6,0),$J$9) -> 6 | K15: =IFERROR(VLOOKUP($D16,$W$8:$AC$23,7,0),$K$9) -> 2 | W15: Coinnovador | X15: =$X$8&"11:"&$X$8&"15" -> y11:y15 | Y15: Egresado de la UMNG | Z15: =Z12 -> 12 | AA15: =ROW() -> 15 | AB15: 6 | AC15: 5
B16: =+B15 -> 3 | C16: Función : | J16: =IFERROR(VLOOKUP($F16,V_IdNBC,2,0),0) -> 0 | W16: Egresado | X16: =$X$8&AA16&":"&$X$8&AA16 -> y16:y16 | Y16: Egresado de la UMNG | Z16: =Z15 -> 12 | AA16: =ROW() -> 16 | AB16: 6 | AC16: 2
B17: =+B16 -> 3 | C17: =C14 -> Correo: | F17: =F14 -> Teléfono / Celular | J17: =IFERROR(VLOOKUP($E16,$Y$8:$Z$23,2,0),12) -> 12 | W17: Administrativo | X17: y17:y17 | Y17: Administrativo UMNG | Z17: =Z16 -> 12 | AA17: =ROW() -> 17 | AB17: 6 | AC17: 2
B18: =B15+1 -> 4 | J18: =IFERROR(VLOOKUP($D19,$W$8:$AC$23,6,0),$J$9) -> 6 | K18: =IFERROR(VLOOKUP($D19,$W$8:$AC$23,7,0),$K$9) -> 2 | W18: Contratista | X18: y18:y18 | Y18: Contratista UMNG | Z18: =Z17 -> 12 | AA18: =ROW() -> 18 | AB18: 6 | AC18: 2
B19: =+B18 -> 4 | C19: Función : | J19: =IFERROR(VLOOKUP($F19,V_IdNBC,2,0),0) -> 0 | W19: Asistente OPS | X19: y19:y19 | Y19: OPS - Prestación Servicios | Z19: 10 | AA19: =ROW() -> 19 | AB19: 6 | AC19: 2
B20: =+B19 -> 4 | C20: =C17 -> Correo: | F20: =F17 -> Teléfono / Celular | J20: =IFERROR(VLOOKUP($E19,$Y$8:$Z$23,2,0),12) -> 12 | W20: Joven Investigador | X20: y20:y20 | Y20: OPS - Prestación Servicios | Z20: 10 | AA20: =ROW() -> 20 | AB20: 6 | AC20: 2
B21: =B18+1 -> 5 | J21: =IFERROR(VLOOKUP($D22,$W$8:$AC$23,6,0),$J$9) -> 6 | K21: =IFERROR(VLOOKUP($D22,$W$8:$AC$23,7,0),$K$9) -> 2 | W21: Asesor | X21: y21:y21 | Y21: Externo | Z21: 10 | AA21: =ROW() -> 21 | AB21: 6 | AC21: 2
B22: =+B21 -> 5 | C22: Función : | J22: =IFERROR(VLOOKUP($F22,V_IdNBC,2,0),0) -> 0 | W22: Estudiante | X22: =$X$8&AA22&":"&$X$8&AA23 -> y22:y23 | Y22: Auxiliar pregrado | Z22: 6 | AA22: =ROW() -> 22 | AB22: 6 | AC22: 2
B23: =+B22 -> 5 | C23: =C20 -> Correo: | F23: =F20 -> Teléfono / Celular | J23: =IFERROR(VLOOKUP($E22,$Y$8:$Z$23,2,0),12) -> 12 | W23: Estudiante | X23: =$X$8&AA22&":"&$X$8&AA23 -> y22:y23 | Y23: Auxiliar postgrado | Z23: 10 | AA23: =ROW() -> 23 | AB23: 6 | AC23: 2
B24: =B21+1 -> 6 | J24: =IFERROR(VLOOKUP($D25,$W$8:$AC$23,6,0),$J$9) -> 6 | K24: =IFERROR(VLOOKUP($D25,$W$8:$AC$23,7,0),$K$9) -> 2
B25: =+B24 -> 6 | C25: Función : | J25: =IFERROR(VLOOKUP($F25,V_IdNBC,2,0),0) -> 0
B26: =+B25 -> 6 | C26: =C23 -> Correo: | F26: =F23 -> Teléfono / Celular | J26: =IFERROR(VLOOKUP($E25,$Y$8:$Z$23,2,0),12) -> 12 | W26: Clasificación de grupo máximo asociado a la propuesta | Z26: =Gp_Max -> NR
B27: =B24+1 -> 7 | J27: =IFERROR(VLOOKUP($D28,$W$8:$AC$23,6,0),$J$9) -> 6 | K27: =IFERROR(VLOOKUP($D28,$W$8:$AC$23,7,0),$K$9) -> 2 | Z27: Inv IP
B28: =+B27 -> 7 | C28: Función : | J28: =IFERROR(VLOOKUP($F28,V_IdNBC,2,0),0) -> 0 | W28: Grupos | X28: Millón | Y28: Entre | Z28: Max | AA28: Min
B29: =+B28 -> 7 | C29: =C26 -> Correo: | F29: =F26 -> Teléfono / Celular | J29: =IFERROR(VLOOKUP($E28,$Y$8:$Z$23,2,0),12) -> 12 | W29: Avalados | X29: 25 | Y29: 20- 39 | Z29: 8 | AA29: 4
B30: =B27+1 -> 8 | J30: =IFERROR(VLOOKUP($D31,$W$8:$AC$23,6,0),$J$9) -> 6 | K30: =IFERROR(VLOOKUP($D31,$W$8:$AC$23,7,0),$K$9) -> 2 | W30: Reconocidos | X30: 50 | Y30: 40-59 | Z30: 12 | AA30: 8
B31: =+B30 -> 8 | C31: Función : | J31: =IFERROR(VLOOKUP($F31,V_IdNBC,2,0),0) -> 0 | W31: Mayores de Cat. C | X31: 75 | Y31: 60-79 | Z31: 16 | AA31: 12
B32: =+B31 -> 8 | C32: =C29 -> Correo: | F32: =F29 -> Teléfono / Celular | J32: =IFERROR(VLOOKUP($E31,$Y$8:$Z$23,2,0),12) -> 12 | W32: Mayores de Cat. C | X32: 100 | Y32: 80-199 | Z32: 20 | AA32: 16
B33: =B30+1 -> 9 | J33: =IFERROR(VLOOKUP($D34,$W$8:$AC$23,6,0),$J$9) -> 6 | K33: =IFERROR(VLOOKUP($D34,$W$8:$AC$23,7,0),$K$9) -> 2 | W33: IMP | X33: 250 | Y33: 200-300 | Z33: 24 | AA33: 10
B34: =+B33 -> 9 | C34: Función : | J34: =IFERROR(VLOOKUP($F34,V_IdNBC,2,0),0) -> 0
B35: =+B34 -> 9 | C35: =C32 -> Correo: | F35: =F32 -> Teléfono / Celular | J35: =IFERROR(VLOOKUP($E34,$Y$8:$Z$23,2,0),12) -> 12
B36: =B33+1 -> 10 | J36: =IFERROR(VLOOKUP($D37,$W$8:$AC$23,6,0),$J$9) -> 6 | K36: =IFERROR(VLOOKUP($D37,$W$8:$AC$23,7,0),$K$9) -> 2 | W36: Coinnovador | X36: =COUNTIF($D$8:$D$60,$W36) -> 1 | Y36: =SUMIF($H$13:$H$38,W36,$D$13:$D$38) -> 0
B37: =+B36 -> 10 | C37: Función : | J37: =IFERROR(VLOOKUP($F37,V_IdNBC,2,0),0) -> 0 | W37: Asistente OPS | X37: =COUNTIF($D$8:$D$60,$W37) -> 0
B38: =+B37 -> 10 | C38: =C35 -> Correo: | F38: =F35 -> Teléfono / Celular | J38: =IFERROR(VLOOKUP($E37,$Y$8:$Z$23,2,0),12) -> 12 | W38: Egresado | X38: 0
W39: Estudiante | X39: 0
W40: Administrativo | X40: =COUNTIF($D$8:$D$60,$W40) -> 0
W41: Asesor | X41: =COUNTIF($D$8:$D$60,$W41) -> 0
W42: Contratista | X42: 0

Sheet Productos
A1: 7
B2: =General!B2 -> PRESENTACIÓN DE PROPUESTAS DE IDEAS INNOVADORAS 2025-1 | E2: =General!$H$2 -> Fecha de Emisión: 2018/03/06 | F2: =General!$I$2 -> IN-IE-F-7
E3: =General!$H$3 -> Revisión N°: 4 | F3: ="Página "&A1&" de "&Dt_TPG -> Página 7 de 11 | I3: N | J3: Ok | K3: Abreviatura | L3: Indicadores | M3: Descripcion | N3: Descripcion | O3: Ok
E4: =IF(F5="INV",3,4) -> 4 | I4: =ROW()-3 -> 1 | J4: =ABS(LEFT(K4,3)) -> 201 | K4: =VLOOKUP($I4,Dt_prod2,2,0)&"- "&VLOOKUP($I4,Dt_prod2,5,0) -> 201- Software aprobado para registro ante la DNDA, de acuerdo con procedimientos establecidos por la UMNG. | L4: =CLEAN(TRIM(VLOOKUP($I4,Dt_prod2,7,0))) -> Soporte lógico registre el aval para el software que incluya : Manual técnico, Manual de usuario todos con la inclusión código de trazabilidad, | M4: 0 | O4: =COUNTIF($G$7:$G$21,$J4) -> 0
B5: Productividad comprometida | E5: =K25 -> Modalidad 4 | F5: =General!$H$1 -> INO | I5: =ROW()-3 -> 2 | J5: =ABS(LEFT(K5,3)) -> 202 | K5: 202- Esquema de trazado de circuito integrado registrado ante la SIC a través de acto administrativo que resuelva la concesión favorable. | L5: Documento en el que se describa el esquema de trazado de circuito integrado obtenido con nombre, autor, fecha, cód. de trazabilidad y autores debidamente registrados según Res. vigente, Acto administrativo de la Superintendencia de Industria y Comercio que resuelva la concesión favorable. | M5: 0 | O5: =COUNTIF($G$7:$G$21,$J5) -> 0
B6: N° | C6: Resultado/Producto esperado | D6: Descripción o detalles del producto esperado | E6: Indicador | I6: 3 | J6: 203 | K6: 203- Regulaciones, normas, reglamentos o legislaciones implementadas internacionalmente, acorde con parámetros de Minciencias. | L6: "Documento en el que se describa la regulación, norma, reglamento o legislación+CR10 obtenido con nombre, autor, fecha, cód. de trazabilidad y autores debidamente registrados según Res. vigente" ,"Certificado de la entidad o institución que emitió el producto, indicando la participación en su construcción de todos o de alguno de los integrantes del proyecto, título, país, ciudad, fecha de publicación / implementación, tipo de regulación, ámbito. | M6: 0 | O6: 0
B7: =ROW()-6 -> 1 | E7: =IFERROR(VLOOKUP($G7,$J$3:$O$19,3,0)," ") ->  | G7: =IFERROR(ABS(LEFT($C7,3)),0) -> 0 | I7: 4 | J7: 204 | K7: 204- Regulaciones, normas, reglamentos o legislaciones implementadas nacionalmente (no institucional), acorde con parámetros de Minciencias. | L7: "Documento en el que se describa la regulación, norma, reglamento o legislación+CR10 obtenido con nombre, autor, fecha, cód. de trazabilidad y autores debidamente registrados según Res. vigente" ,"Certificado de la entidad o institución que emitió el producto, indicando la participación en su construcción de todos o de alguno de los integrantes del proyecto, título, país, ciudad, fecha de publicación / implementación, tipo de regulación, ámbito. | M7: 0 | O7: 0
B8: =ROW()-6 -> 2 | E8: =IFERROR(VLOOKUP($G8,$J$3:$O$19,3,0)," ") ->  | G8: =IFERROR(ABS(LEFT($C8,3)),0) -> 0 | I8: 5 | J8: 206 | K8: 206- Informe Técnico Final sobre productos o servicios tecnológicos o innovadores | L8: Documento con la siguiente información: título del informe, desarrollo del proyecto y alistamiento de la tecnología, fecha de elaboración. | M8: 0 | O8: 0
B9: 3 | G9: =IFERROR(ABS(LEFT($C9,3)),0) -> 0 | I9: 6 | J9: 207 | K9: 207- Productos o procesos tecnológicos usualmente no patentables (Prototipo) - Estado de desarrollo TRL4 - Validación a nivel de laboratorio. | L9: Prototipo madurado en mínimo TRL 4 Validado por DDTI o Ente externo especializado y acompañado de: 1. Manual de funcionamiento según el formato establecido por VICEIN. 2.Registro fotográfico de los componentes del prototipo. 3.Registro fílmico sobre funcionamiento del prototipo.4.Soportes de pruebas y validación (según aplique) | M9: 0 | O9: 0
B10: 4 | G10: 0 | I10: 7 | J10: 208 | K10: 208- Productos o procesos tecnológicos (Prototipo) - Estado de desarrollo TRL5 - validación de componentes en entorno relevante. | L10: Prototipo madurado en mínimo un nivel en la escala TRL comprometida o esperada, Validado por DDTI o Ente externo especializado y acompañado de: 1. Manual de funcionamiento según el formato establecido por VICEIN. 2.Registro fotográfico de los componentes del prototipo. 3.Registro fílmico sobre funcionamiento del prototipo. 4.Soportes de pruebas y validación (según aplique). | M10: 0 | O10: 0
B11: 5 | G11: 0 | I11: 8 | J11: 209 | K11: 209- Productos o procesos tecnológicos (Prototipo) - Estado de desarrollo TRL6 - Validación de sistema o subsistema en entorno relevante | L11: Prototipo madurado en mínimo un nivel en la escala TRL comprometida o esperada, Validado por DDTI o Ente externo especializado y acompañado de: 1. Manual de funcionamiento según el formato establecido por VICEIN. 2.Registro fotográfico de los componentes del prototipo. 3.Registro fílmico sobre funcionamiento del prototipo. 4.Soportes de pruebas y validación (según aplique). | M11: 0 | O11: 0
B12: 6 | G12: 0 | I12: 9 | J12: 210 | K12: 210- Productos o procesos tecnológicos (Prototipo) - Estado de desarrollo TRL7 - Validación en entorno real. | L12: Prototipo madurado en mínimo un nivel en la escala TRL comprometida o esperada, Validado por DDTI o Ente externo especializado y acompañado de: 1. Manual de funcionamiento según el formato establecido por VICEIN. 2.Registro fotográfico de los componentes del prototipo. 3.Registro fílmico sobre funcionamiento del prototipo. 4.Soportes de pruebas y validación (según aplique). | M12: 0 | O12: 0
B13: 7 | G13: 0 | I13: 10 | J13: 211 | K13: 211- Productos o procesos tecnológicos (Prototipo) - Estado de desarrollo TRL8 - Validación completa y certificación en entorno real. | L13: Prototipo madurado en mínimo un nivel en la escala TRL comprometida o esperada, Validado por DDTI o Ente externo especializado y acompañado de: 1. Manual de funcionamiento según el formato establecido por VICEIN. 2.Registro fotográfico de los componentes del prototipo. 3.Registro fílmico sobre funcionamiento del prototipo. 4.Soportes de pruebas y validación (según aplique). | M13: 0 | O13: 0
B14: 8 | G14: 0 | I14: 11 | J14: 212 | K14: 212- Productos o procesos tecnológicos (Prototipo) - Estado de desarrollo TRL9 - Prueba exitosa en entorno real. | L14: Prototipo madurado en mínimo un nivel en la escala TRL comprometida o esperada, Validado por DDTI o Ente externo especializado y acompañado de: 1. Manual de funcionamiento según el formato establecido por VICEIN. 2.Registro fotográfico de los componentes del prototipo. 3.Registro fílmico sobre funcionamiento del prototipo. 4.Soportes de pruebas y validación (según aplique). | M14: 0 | O14: 0
B15: 9 | G15: 0 | I15: 12 | J15: 305 | K15: 305- Documento de trabajo (Working Paper) | L15: Título del documento, autor(es), año en que elaboró el documento, instituciones vinculadas en la realización del documento, Página WEB (del working paper) o DOI endonde se encuentra publicado el documento (si la tiene). | M15: 0 | O15: 0
B16: 10 | G16: 0 | I16: 13 | J16: 306 | K16: 306- Contenidos multimedia (video) con el detalle de la tecnología, utilidad. | L16: Producción publicada de carácter audiovisual de calidad con participación de desarrolladores, financiadores y gestores relacionada con la ejecución del prototipado o mentoría y características técnicas de la tecnología o innovación, avances y resultados. | M16: 0 | O16: 0
B17: 11 | G17: 0 | I17: 14 | J17: 401 | K17: 401- De estudiantes en programas de posgrado de la UMNG, con temáticas DC | L17: Acta de designación, anteproyecto con código de trazabilidad y acta de acompañamiento final | M17: 0 | O17: 0
B18: 12 | G18: 0 | I18: 15 | J18: 402 | K18: 402- De estudiantes en programas de posgrado de la UMNG, con temáticas MG | L18: Acta de designación, anteproyecto con código de trazabilidad y acta de acompañamiento final | M18: 0 | O18: 0
B19: 13 | G19: 0 | I19: 16 | J19: =ABS(LEFT(K19,3)) -> 403 | K19: 403- Joven investigador vinculado por mínimo ocho meses según los criterios de la Resolución vigente sobre vinculación de personal a los proyectos de investigación financiados o cofinanciados por la UMNG en los programas de CTeI. | L19: Contrato OPS , informe de actividades final. | M19: 0 | O19: 0
B20: 14 | G20: 0 | I20: 17 | J20: 404 | K20: 404- Dirección de Trabajo de grado de estudiantes en programas de pregrado de la UMNG, con temáticas asociadas a línea de investigación a la que pertenece el proyecto. | L20: Copia del acta sustentación del proyecto de grado | M20: 0 | O20: 0
B21: 15 | G21: 0 | I21: 18 | J21: 405 | K21: 405- Tutoría de un proyecto de iniciación científica de estudiantes de la UMNG, con temáticas asociadas a línea de investigación a la que pertenece el proyecto. | L21: Informe final y acta del Comité de investigaciones con el aval del cierre del PIC | M21: 0 | O21: 0
B23: =N25 -> Error falta información de carácter obligatorio : Pendiente Producto Cod.206 (Informe técnico final), Pendiente Producto Cod.305 (Working Paper), Pendiente Producto Cod.306 (Videos).
A25: 11 | C25: ="Estado de madurez del desarrollo (TRL): para "&K25 -> Estado de madurez del desarrollo (TRL): para Modalidad 4 | D25: =General!C13 -> Modalidad 4. Oportunidades de Transferencia para productos o servicios no patentables | K25: =IFERROR(LEFT(General!C13,11)," ") -> Modalidad 4 | L25: Productos Obligatorios | N25: =TRIM(L29&" "&N26&" "&N27&" "&N28&" "&N29) -> Error falta información de carácter obligatorio : Pendiente Producto Cod.206 (Informe técnico final), Pendiente Producto Cod.305 (Working Paper), Pendiente Producto Cod.306 (Videos).
M26: 206 | N26: =IF(O26=0,Q26," ") -> Pendiente Producto Cod.206 (Informe técnico final), | O26: =O8 -> 0 | Q26: Pendiente Producto Cod.206 (Informe técnico final),
B27: 1 | C27: Funcionalidad básica / principios demostrados por análisis. Mostrará que la idea es tecnológicamente concebible. | F27: No Aplica | I27: =ABS(RIGHT($K27)) -> 1 | K27: Modalidad 1 | L27: =IFERROR(ABS(RIGHT(K25)),0) -> 4 | M27: 207 al 212 | N27: =IF(AND(O27=0,L27<3),Q27," ") ->  | O27: =SUM(O9:O14) -> 0 | Q27: Pendiente un producto del Cod. 207 al 212 (Prototipo),
B28: 2 | C28: Estudios analíticos, pruebas a pequeña escala en ambiente de laboratorio. Demostrarán que la tecnología puede cumplir con objetivos específicos con un desarrollo adicional. Las aplicaciones prácticas pueden ser inventadas. Las aplicaciones son especulativas y es posible que no haya pruebas o análisis detallados para respaldar las suposiciones. | F28: No Aplica | I28: =ABS(RIGHT($K28)) -> 1 | K28: Modalidad 1 | L28: =LEN(CONCATENATE(N29,N28,N27,N26)) -> 133 | M28: 305 | N28: =IF(O28=0,Q28," ") -> Pendiente Producto Cod.305 (Working Paper), | O28: =O15 -> 0 | Q28: Pendiente Producto Cod.305 (Working Paper),
B29: 3 | C29: Los estudios analíticos y / o los estudios de laboratorio ofrecen resultados que validan las predicciones / objetivo. Si es relevante, validación de elementos separados de la tecnología. (Los ejemplos pueden incluir componentes que pueden no estar integrados o ser representativos). Prueba de concepto. | F29: No Aplica | I29: 1 | K29: Modalidad 1 | L29: =IF(L28>4," Error falta información de carácter obligatorio : "," ") -> Error falta información de carácter obligatorio : | M29: 306 | N29: =IF(O29=0,Q29," ") -> Pendiente Producto Cod.306 (Videos). | O29: =O16 -> 0 | Q29: Pendiente Producto Cod.306 (Videos).
B30: 4 | C30: Construcción de prototipos, se demuestra la funcionalidad mediante pruebas en un rango limitado de condiciones de operación. Si es escalable, estas pruebas se realizan en versiones escaladas. Primer prototipo de laboratorio | F30: No Aplica | I30: 2 | K30: Modalidad2
B31: 5 | C31: Primer uso del prototipo a escala real: tecnología calificada mediante pruebas en el entorno deseado, simulado o real. El nuevo hardware ahora está listo para el primer uso. Prototipo de laboratorio mejorado. | F31: No Aplica | I31: 2 | K31: Modalidad2 | M31: 1 | N31: F30:F31
B32: 6 | C32: Modelo / prototipo representativo probado y validado en un entorno relevante. Representa un avance importante en la disponibilidad demostrada de una tecnología (los ejemplos pueden incluir probar un prototipo en un entorno de laboratorio de alta fidelidad do en un entorno operativo simulado). | F32: No Aplica | I32: 2 | K32: Modalidad2 | M32: 2 | N32: F30:F33
B33: 7 | C33: La integración de tecnología se prueba en un entorno operativo. La tecnología a escala completa está integrada para la prueba en el sistema operativo previsto con una interfaz y funcionalidad completas. Prototipo validado en entorno real. | F33: No Aplica | I33: 3 | K33: Modalidad3 | M33: 3 | N33: F33:F35
B34: 8 | C34: El programa de prueba se realiza en el entorno previsto: la tecnología muestra un rendimiento y fiabilidad aceptables durante un período de tiempo. Prototipo comercial. | F34: No Aplica | I34: 3 | K34: Modalidad3 | M34: 4 | N34: F30:F35
B35: 9 | C35: La aplicación real de la tecnología está en su forma final: tecnología probada a través de operaciones exitosas. | F35: No Aplica | I35: 4 | K35: Modalidad4
A38: 11 | C38: Explique el estado de madurez del desarrollo (TRL) selcccinado:
B40: 1
K55: Idea / propuesta no probada. El concepto aún se encuentra en el papel. No se han realizado análisis o pruebas.

Sheet Impactos
A1: 10 | I1: *Pueden Ocultar las Filas que no se utilicen.
C2: =Objetivos!B2 -> PRESENTACIÓN DE PROPUESTAS DE IDEAS INNOVADORAS 2025-1 | F2: Fecha de Emisión: 2019/03/18 | G2: IN-IV-F-14 | J2: Palabras Mínimas
F3: Revisión N°: 4 | G3: ="Página "&$A$1&" de "&Dt_TPG -> Página 10 de 11 | I3: =SUM(I7:I3517) -> 55 | J3: <== Total de palabras | M3: Tipo de Impacto (Objetivos de Desarrollo Sostenible): Link Presione | O3: =COUNTIF(N17:N25,0) -> 9
A5: 14.- | B5: # | C5: Impactos asociados a la propuesta. | I5: Largo
M6: Explicaciones
B7: N° | C7: Describa en detalle el impacto a desarrollar en el proyecto | I7: =IF(C7="",0,LEN(TRIM(C7))-LEN(SUBSTITUTE(TRIM(C7)," ",""))+1) -> 10
B8: =ROW()-7 -> 1 | C8: Impacto principal | E8: Principal objetivo de desarrollo sostenible: | I8: =IF(C8="",0,LEN(TRIM(C8))-LEN(SUBSTITUTE(TRIM(C8)," ",""))+1) -> 2 | M8: Transferencia e intercambio de conocimiento | N8: Promover el desarrollo de iniciativas de extensión y transferencia del conocimiento científico y tecnológico que permitan su efectiva integración a contextos locales y sociales específicos, contribuyendo a su desarrollo.
B9: =ROW()-7 -> 2 | C9: Alcance | E9: Líneas de apropiación social | I9: =IF(E9="",0,LEN(TRIM(E9))-LEN(SUBSTITUTE(TRIM(E9)," ",""))+1) -> 4 | M9: Gestión del conocimiento para la apropiación | N9: Incentivar el desarrollo de mecanismos de formación y medición para construir conocimiento acerca de las diversas formas en que el conocimiento científico tecnológico es apropiado en la sociedad colombiana, por los diversos grupos e individuos que la componen
B10: =ROW()-7 -> 3 | C10: =IFERROR(M13,".") -> . | I10: =IF(C10="",0,LEN(TRIM(C10))-LEN(SUBSTITUTE(TRIM(C10)," ",""))+1) -> 1 | M10: Participación ciudadana en CTeI | N10: Fomentar la participación ciudadana en la construcción de política pública en CTI, fortaleciendo las capacidades de la sociedad para tomar decisiones que contribuyan a la resolución de conflictos que involucran conocimientos científico-tecnológicos.
M11: Comunicación del conocimiento | N11: Favorecer el desarrollo de proyectos de comunicación reflexivos y contextualizados para la comprensión, el diálogo y la formación de opinión sobre las relaciones ciencia, tecnología, innovación y sociedad.
B12: . | C12: Evaluación de nivel de maduración tecnológica actual (TRL)
B13: =ROW()-9 -> 4 | C13: Estado actual de la TRL | I13: =IF(C13="",0,LEN(TRIM(C13))-LEN(SUBSTITUTE(TRIM(C13)," ",""))+1) -> 5 | K13: =IFERROR(ABS(RIGHT(LEFT(E13,6),2)),-1) -> -1 | M13: =IFERROR("Tener en cuenta :"& VLOOKUP($F$9,M6:P11,2,0),".") -> .
B14: =ROW()-9 -> 5 | C14: TRL Comprometida al finalizar el proyecto | I14: =IF(C14="",0,LEN(TRIM(C14))-LEN(SUBSTITUTE(TRIM(C14)," ",""))+1) -> 6 | K14: =IFERROR(ABS(RIGHT(LEFT(E14,6),2)),0) -> 0
I15: =IF(C15="",0,LEN(TRIM(C15))-LEN(SUBSTITUTE(TRIM(C15)," ",""))+1) -> 0 | K15: =IFERROR(IF(K13<K14,"","No esta bien definido la selección de los SRL. Por favor confirmar."),"") ->  | M15: Validación de diligenciamiento de Impactos
B16: =ROW()-8 -> 8 | C16: Evolución del impacto alcanzado como resultado de proyectos anteriores | I16: =IF(C16="",0,LEN(TRIM(C16))-LEN(SUBSTITUTE(TRIM(C16)," ",""))+1) -> 9 | N16: =VLOOKUP($O$16,$L$17:$O$45,2,0) -> Impacto principal | O16: =MAX(O17:O45) -> 10
B17: 9 | I17: =IF(C17="",0,LEN(TRIM(C17))-LEN(SUBSTITUTE(TRIM(C17)," ",""))+1) -> 0 | L17: 10 | M17: =IF(N17=0,C8,"") -> Impacto principal | N17: =LEN(D8) -> 0 | O17: =IF(N17=0,L17,0) -> 10
B18: 10 | C18: Descripción de los Beneficiario(s) del impacto del proyecto | I18: 8 | L18: =L17-1 -> 9 | M18: =IF(N18=0,C9,"") -> Alcance | N18: =LEN(D9) -> 0 | O18: =IF(N18=0,L18,0) -> 9
B19: 11 | I19: 0 | L19: =L18-1 -> 8 | M19: =IF(N19=0,E8,"") -> Principal objetivo de desarrollo sostenible: | N19: =LEN(F8) -> 0 | O19: 8
B20: 12 | C20: Descripción del impacto esperado. | I20: 4 | L20: 7 | M20: =IF(N20=0,E9,"") -> Líneas de apropiación social | N20: =LEN(F9) -> 0 | O20: 7
B21: 13 | I21: 0 | L21: 6 | M21: =IF(N21=0,C16,"") -> Evolución del impacto alcanzado como resultado de proyectos anteriores | N21: =LEN(C17) -> 0 | O21: 6
B22: 14 | I22: 0 | L22: 5 | M22: =IF(N22=0,C18,"") -> Descripción de los Beneficiario(s) del impacto del proyecto | N22: =LEN(C19) -> 0 | O22: 5
B23: 15 | I23: =IF(C24="",0,LEN(TRIM(C24))-LEN(SUBSTITUTE(TRIM(C24)," ",""))+1) -> 6 | L23: 4 | M23: =IF(N23=0,C20,"") -> Descripción del impacto esperado. | N23: =LEN(C21) -> 0 | O23: 4
B24: 16 | C24: DATOS DANE ( Diligenciamiento Opcional ) | L24: 3 | M24: =IF(N24=0,C13,"") -> Estado actual de la TRL | N24: =LEN(E13) -> 0 | O24: 3
L25: 2 | M25: =IF(N25=0,C14,"") -> TRL Comprometida al finalizar el proyecto | N25: =LEN(E14) -> 0 | O25: 2
L27: =IFERROR(VLOOKUP("Impactos",Dt_IndERR,2,0),".") -> 0 | M27: =IFERROR(VLOOKUP(L27,Dt_MsgERR,4,0),".") -> 0
C29: Datos solicitados DANE | E29: Seleccione los (4)cuatro ítem en listas desplegables | I29: =SUM(I30:I33) -> 0
C30: 1. Tipo de proyecto que aplica | I30: =LEN(E30) -> 0
C31: 2. Área de conocimiento | I31: =LEN(E31) -> 0
C32: 3. Objetivo 1 Socio económico | I32: =LEN(E32) -> 0
C33: 4. Objetivo 2 Socio económico | I33: =LEN(E33) -> 0
C45: *Pueden Ocultar las Filas que no se utilicen ( Favor no eliminar filas).

Sheet Presupuesto
A1: 9 | S1: Tabla de Topes | V1: Validación | W1: =IF(P2="INV",2,3) -> 3 | Y1: Productividad Vs Presupuesto | AC1: Modalidad
M2: 1.-> Limite presupuestal | N2: =IF(MIN(N6:P6)<1, 20000000,MIN(N6:P6)) -> 125000000 | P2: =H10 -> INO | R2: Clasif | S2: INV | T2: IMP | V2: A | W2: =IFERROR(VLOOKUP($V2,$R$2:$T$9,W$1,0),0) -> 0 | Y2: =INT(W8/10)*10 -> 0 | Z2: Pts | AA2: $$$$ | AC2: Mod | AD2: Monto | AE2: Acompa
B3: =Productos!B2 -> PRESENTACIÓN DE PROPUESTAS DE IDEAS INNOVADORAS 2025-1 | H3: Fecha de Emisión: 2019/03/18 | I3: IN-IV-F-14 | N3: Limite Grupo | O3: Modalidad | P3: Limite Convo | R3: A | S3: =AA7 -> 80 | T3: 0 | W3: =IFERROR(VLOOKUP($V3,$R$2:$T$9,W$1,0),0) -> 0 | Y3: =IF($Y$2>Z3,0,1) -> 1 | Z3: 20 | AA3: 20 | AC3: 1 | AD3: 50 | AE3: 25
H4: Revisión N°: 4 | I4: ="Página "&$A$1&" de "&Dt_TPG -> Página 9 de 11 | M4: Mayor Grupo | N4: =MAX($W$2:$W$5) -> 0 | O4: =IFERROR(ABS(RIGHT(LEFT(General!C13,11))),0) -> 4 | P4: =IF(H10="INO",MAX(AD2:AD10),$AA$8) -> 125 | R4: A1 | S4: =AA7 -> 80 | T4: 0 | W4: =IFERROR(VLOOKUP($V4,$R$2:$T$9,W$1,0),0) -> 0 | Y4: =IF($Y$2>Z4,0,1) -> 1 | Z4: 40 | AA4: 50 | AC4: 2 | AD4: =AD3 -> 50 | AE4: 25
R5: B | S5: =AA6 -> 60 | T5: 0 | W5: 0 | Y5: 1 | Z5: 50 | AA5: 50 | AC5: 3 | AD5: 70 | AE5: 25
M6: 1000000 | N6: =O6 -> 125000000 | O6: =VLOOKUP($O$4,$AC$3:$AE$6,2,0)*M6 -> 125000000 | P6: =P4*M6 -> 125000000 | R6: C | S6: =AA5 -> 50 | T6: 0 | Y6: 1 | Z6: 60 | AA6: 60 | AC6: 4 | AD6: 125 | AE6: 25
B7: T | C7: Título de la Propuesta : | D7: =General!B9 -> 0 | M7: Grupo principal -->> | N7: =V2 -> A | R7: R | S7: =AA4 -> 50 | T7: 0 | Y7: 1 | Z7: 80 | AA7: 80
B8: L | C8: Líder responsable | D8: =General!C10 -> 0 | G8: Código VICEIN: | R8: NR | S8: =AA3 -> 20 | T8: 0 | V8: Pts | W8: =V_Max -> 0 | Y8: =IF($Y$2<Z8,0,1) -> 0 | Z8: 90 | AA8: 80
R9: NA | S9: 0 | T9: 0
A10: 12.- | B10: Presupuesto rubro personal asociado a la propuesta | G10: =V_Max -> 0 | H10: =Cel_TP -> INO | I10: =Gp_Max -> NR
I11: 1.7
B12: a. | C12: Personal de planta o ocasional que integra al proyecto de investigación. | H12: Valores de Contrapartida. | S12: Solo para Proyectos INV
A13: =ROW() -> 13 | B13: N° | C13: Sueldo Neto | D13: Factor | E13: Tipo de Vinculo UMNG | F13: Numero de meses | G13: Número Horas / Semanal | H13: Valor Final | I13: Identificación | J13: 4 | L13: *tabla de consolidación por año para proyectos IMP
B14: =ROW()-$A$13 -> 1 | D14: =I11 -> 1.7 | E14: =INDIRECT($I$24&"E"&$J14+1,1) -> Doc. Carrera TC | F14: =INDIRECT($I$24&"G"&$J14,1) -> 12 | G14: =INDIRECT($I$24&"H"&$J14,1) -> 0 | H14: =IFERROR(INT(((C14*F14)/40)*G14*$I$11),0) -> 0 | I14: =INDIRECT($I$24&"C"&$J14,1) -> 0 | J14: 9 | L14: 0 | M14: Tipo Vinculo UMNG | N14: Año1 | O14: Año2 | Q14: Validación Presupuestal
B15: =ROW()-$A$13 -> 2 | D15: =D14 -> 1.7 | E15: 0 | F15: 0 | G15: 0 | H15: =IFERROR(INT(((C15*F15)/40)*G15*$I$11),0) -> 0 | I15: Función : | J15: =J14+$J$13 -> 13 | L15: 1 | M15: Doc. Carrera TC | N15: =(SUMIF($E$14:$E$23,$M15,$H$14:$H$23)/2) -> 0 | O15: =N15 -> 0 | Q15: ="Validación de "&M38 -> Validación de (Au.) -Auxiliar Pregrado | S15: Ajustado por adenda no 2
B16: 3 | D16: =D15 -> 1.7 | E16: 0 | F16: 0 | G16: 0 | H16: 0 | I16: Correo: | J16: =J15+$J$13 -> 17 | L16: 2 | M16: Doc. Carrera MT | N16: =(SUMIF($E$14:$E$23,$M16,$H$14:$H$23)/2) -> 0 | O16: =N16 -> 0 | Q16: Parte | R16: Cantidad | S16: por uno solo | T16: Debe ser | U16: Error de Asistente
B17: 4 | D17: 1.7 | E17: 0 | F17: 0 | G17: 0 | H17: 0 | I17: 0 | J17: 21 | L17: 3 | M17: Doc. Ocasional | N17: =SUMIF($E$14:$E$23,$M17,$H$14:$H$23) -> 0 | O17: 0 | Q17: No de AU Preg | R17: =COUNTIF($E$29:$E$44,$M$38) -> 0 | T17: 1 | U17: 0 | X17: 25 | Y17: 0.1 | AA17: 0.05
B18: 5 | D18: 1.7 | E18: 0 | F18: 0 | G18: 0 | H18: 0 | I18: Función : | J18: 25 | L18: 1 | M18: Contrapartida Facultad IMP: | N18: =SUM(N15:N17) -> 0 | O18: =SUM(O15:O17) -> 0 | Q18: No Horas | R18: =SUMIF($E$29:$E$43,$M$38,G29:G43) -> 0 | S18: =IFERROR(R18/R17,0) -> 0 | T18: 20 | U18: =IF(S18<=T18,0,1) -> 0 | X18: 50 | Y18: 0.1 | AA18: 0.1
B19: 6 | D19: 1.7 | E19: 0 | F19: 0 | G19: 0 | H19: 0 | I19: Correo: | J19: 29 | L19: 2 | M19: Contrapartida Facultad INV: | N19: =SUM(N15:O17) -> 0 | Q19: No Meses | R19: =SUMIF($E$29:$E$43,$M$38,F29:F43) -> 0 | S19: =IFERROR(R19/R17,0) -> 0 | T19: 6 | U19: =IF(S19=T19,0,1) -> 1 | X19: 75 | Y19: 0.1 | AA19: 0.15
B20: 7 | D20: 1.7 | E20: 0 | F20: 0 | G20: 0 | H20: 0 | I20: 0 | J20: 33 | T20: Si es Mas de 1 tiene problema en Auxiliar de pregrado --->> | U20: =SUM(U17:U19) -> 1 | X20: 100 | Y20: 0.1 | AA20: 0.15
B21: 8 | D21: 1.7 | E21: 0 | F21: 0 | G21: 0 | H21: 0 | I21: Función : | J21: 37 | Q21: Estimulo a estudiantes | S21: =INT(N2/1000000) -> 125 | T21: =SUM(R36:R40) -> 0 | U21: =T21/N2 -> 0 | X21: 250 | Y21: 0.1 | AA21: 0.15
B22: 9 | D22: 1.7 | E22: 0 | F22: 0 | G22: 0 | H22: 0 | I22: 0 | J22: 41 | Q22: Limite inferior de estimulo a estudiantes | T22: =(S21*1000000)*U22 -> 11250000 | U22: 0.09
B23: 10 | D23: 1.7 | E23: 0 | F23: 0 | G23: 0 | H23: 0 | I23: 0 | J23: 45 | T23: =ABS(T22-T21) -> 11250000
C24: Sumatoria del calculo de personal de planta "Valor contrapartida Facultades": Diligenciado VICEIN | H24: =IFERROR(INT(SUBTOTAL(109,H14:H23)),0) -> 0 | I24: Integrantes! | M24: Incremento al salario
M25: 0 | P25: =(J26/6)/6 -> 0
B26: b. | C26: Asistentes externos o temporales contratados OPS y Estimulo Estudiantes. | K26: =IFERROR(VLOOKUP($E26,Dt_OPS,3,0)/10,0) -> 0 | M26: Valor SMLV | N26: Max Mes
B27: > | C27: Salario Mínimo Legal Vigente (SMIV) : | F27: 1300000 | M27: =F27*(1+M25) -> 1300000 | N27: =Integrantes!G9 -> 12
A29: =ROW() -> 29 | B29: No | C29: Valor mensual | D29: Factor Salarial | E29: Tipo de vinculación | F29: ="Número de meses" -> Número de meses | G29: Número Horas / Semanal | H29: Valor total | I29: Valores de entidades externas | J29: Máximos | K29: (Au.) | L29: No | M29: Tipo | N29: Valor total del contrato (10 mes) | O29: SMMLV por 10 Meses | P29: Valor mes contrato | Q29: Hay | R29: Hay en $ | V29: Valor mes contrato | X29: Va desde hasta | Y29: Salarios Mínimos | AA29: Figuras | AB29: arranca desde | AC29: Máximo Factor
B30: =ROW()-$A$29 -> 1 | C30: =IFERROR(H30/F30,0) -> 0 | D30: =IFERROR(VLOOKUP($E30,Dt_OPS,3,0)/10,0) -> 0 | F30: 12 | G30: No Aplica | H30: =INT(IF($E30=$M$38,J30,$F$27*D30*F30)) -> 0 | J30: =IF($E30=$M$38,K30,IFERROR(VLOOKUP($E30,$M$29:$O$40,2,0),0)*IF($H$10="IMP",2,1)) -> 0 | K30: =IFERROR(IF(FIND($K$29,$E30,1)=1,VLOOKUP($E30,$M$38:$AC$40,2,0),0),0)/IF($E30=$M$38,10,1) -> 0 | L30: 1 | M30: (A.I.) -Técnico | N30: =$P30*INT($N$27) -> 31200000 | O30: 20 | P30: =$F$27*(O30/10) -> 2600000 | Q30: =COUNTIF($E$29:$E$44,$M30) -> 0 | R30: =SUMIF($E$30:$E$44,$M30,$H$30:$H$44) -> 0 | V30: 1475434 | X30: ="Y"&ROW() -> Y30 | Y30: 6 | AA30: =E30 -> 0 | AB30: =IFERROR(VLOOKUP($AA30,$M$29:$S$40,7,0)/10,0) -> 0 | AC30: =IFERROR(VLOOKUP($AA30,$M$29:$R$40,3,0)/IF($AA30=$M$38,6,10),0) -> 0
B31: =ROW()-$A$29 -> 2 | C31: =IFERROR(H31/F31,0) -> 0 | D31: =IFERROR(VLOOKUP($E31,Dt_OPS,3,0)/10,0) -> 0 | F31: 12 | G31: No Aplica | H31: =INT(IF($E31=$M$38,J31,$F$27*D31*F31)) -> 0 | J31: =IF($E31=$M$38,K31,IFERROR(VLOOKUP($E31,$M$29:$O$40,2,0),0)*IF($H$10="IMP",2,1)) -> 0 | K31: =IFERROR(IF(FIND($K$29,$E31,1)=1,VLOOKUP($E31,$M$38:$AC$40,2,0),0),0)/IF($E31=$M$38,10,1) -> 0 | L31: 2 | M31: (A.I.) -Profesional | N31: =$P31*INT($N$27) -> 46800000 | O31: 30 | P31: =$F$27*(O31/10) -> 3900000 | Q31: 0 | R31: 0 | V31: 2582009.5 | X31: ="Y"&ROW() -> Y31 | Y31: =Y30-0.5 -> 5.5 | AA31: =E31 -> 0 | AB31: =IFERROR(VLOOKUP($AA31,$M$29:$S$40,7,0)/10,0) -> 0 | AC31: =IFERROR(VLOOKUP($AA31,$M$29:$R$40,3,0)/IF($AA31=$M$38,6,10),0) -> 0
B32: 3 | C32: 0 | D32: 0 | F32: 12 | G32: No Aplica | H32: 0 | J32: 0 | K32: 0 | L32: 3 | M32: (A.I.) -Profesional especializado | N32: 54600000 | O32: 35 | P32: 4550000 | Q32: 0 | R32: 0 | V32: 2950868 | X32: Y32 | Y32: =Y31-0.5 -> 5 | AA32: 0 | AB32: 0 | AC32: 0
B33: 4 | C33: 0 | D33: 0 | F33: 12 | G33: No Aplica | H33: 0 | J33: 0 | K33: 0 | L33: 4 | M33: (A.I.) -Profesional magister | N33: 93600000 | O33: 60 | P33: 7800000 | Q33: 0 | R33: 0 | V33: 3319726.5 | X33: Y33 | Y33: 4.5 | AA33: 0 | AB33: 0 | AC33: 0
B34: 5 | C34: 0 | D34: 0 | F34: 12 | G34: No Aplica | H34: 0 | J34: 0 | K34: 0 | L34: 5 | M34: (A.I.) -Profesional doctorado | N34: 124800000 | O34: 80 | P34: 10400000 | Q34: 0 | R34: 0 | V34: 4057443.5 | X34: Y34 | Y34: 4 | AA34: 0 | AB34: 0 | AC34: 0
B35: 6 | C35: 0 | D35: 0 | F35: 12 | G35: No Aplica | H35: 0 | J35: 0 | K35: 0 | L35: 6 | M35: (J.I) -Joven investigador | N35: 46800000 | O35: 30 | P35: 3900000 | Q35: 0 | R35: 0 | V35: 2582009.5 | X35: Y35 | Y35: 3.5 | AA35: 0 | AB35: 0 | AC35: 0
B36: 7 | C36: 0 | D36: 0 | F36: 12 | G36: No Aplica | H36: 0 | J36: 0 | K36: 0 | L36: 7 | N36: 70200000 | O36: 45 | P36: 5850000 | Q36: 0 | R36: 0 | S36: (A.G) -Asistente graduado Mg. | V36: 3688585 | X36: Y36 | Y36: 3 | AA36: 0 | AB36: 0 | AC36: 0
B37: 8 | C37: 0 | D37: 0 | F37: 12 | G37: No Aplica | H37: 0 | J37: 0 | K37: 0 | L37: 8 | N37: 93600000 | O37: 60 | P37: 7800000 | Q37: 0 | R37: 0 | S37: (A.G) -Asistente graduado Dr. | V37: 5164019 | X37: Y37 | Y37: 2.5 | AA37: 0 | AB37: 0 | AC37: 0
B38: 9 | C38: 0 | D38: 0 | F38: 12 | G38: No Aplica | H38: 0 | J38: 0 | K38: 0 | L38: 9 | M38: (Au.) -Auxiliar Pregrado | N38: =$M$27*O38 -> 52000000 | O38: 40 | P38: =F27*3 -> 3900000 | Q38: 0 | R38: 0 | V38: NA | X38: Y38 | Y38: 2 | AA38: 0 | AB38: 0 | AC38: 0
B39: 10 | C39: 0 | D39: 0 | F39: 12 | G39: No Aplica | H39: 0 | J39: 0 | K39: 0 | L39: 10 | M39: (Au.) -Auxiliar Postgrado Mg. | N39: =$P39*INT($N$27) -> 39000000 | O39: 25 | P39: =$F$27*(O39/10) -> 3250000 | Q39: 0 | R39: 0 | V39: NA | X39: Y39 | Y39: 1.5 | AA39: =E39 -> 0 | AB39: 0 | AC39: 0
B40: 11 | C40: 0 | D40: 0 | F40: 12 | G40: No Aplica | H40: 0 | J40: 0 | K40: 0 | L40: 11 | M40: (Au.) -Auxiliar Postgrado Dr. | N40: 54600000 | O40: 35 | P40: 4550000 | Q40: 0 | R40: 0 | V40: NA | X40: Y40 | Y40: 1 | AA40: =E40 -> 0 | AB40: 0 | AC40: 0
B41: 12 | C41: 0 | D41: 0 | F41: 12 | G41: No Aplica | H41: 0 | J41: 0 | K41: 0 | N41: Salario 12 meses | X41: Y41 | Y41: 0.5 | AA41: =E41 -> 0 | AB41: 0 | AC41: 0
B42: 13 | C42: 0 | D42: 0 | F42: 12 | G42: No Aplica | H42: 0 | J42: 0 | K42: 0 | AA42: =E42 -> 0 | AB42: 0 | AC42: 0
B43: 14 | C43: 0 | D43: 0 | F43: 0 | G43: No Aplica | H43: 0 | J43: 0 | K43: 0 | M43: Joven investigador Colciencias | N43: =M27*3*12 -> 46800000 | AA43: =E43 -> 0 | AB43: 0 | AC43: 0
B44: =14-COUNTIF(E30:E43,"") -> 0 | C44: Sumatoria del cálculo de OPS "Valor financiado VICEIN" en rubro de (Personal): | G44: =IF(H44>N2,"Esta superando el total de presupuesto","") ->  | H44: =IFERROR(INT(SUM(H30:H43)),0) -> 0 | I44: 0 | J44: =IFERROR(VLOOKUP($E44,$M$29:$O$40,2,0),0)*IF($H$10="IMP",2,1) -> 0
M45: =IFERROR(VLOOKUP($O$45,Dt_MsgERR,4,0),".") -> 0 | N45: Presupuesto | O45: =VLOOKUP($N$45,Dt_IndERR,2,0) -> 0 | P45: =fx_Error() -> 
A46: 13.- | B46: Presupuesto detalle de Plan de compras general .- La siguiente tabla debe diligenciarse manualmente ya que no arrastra información de otros campos
B48: =IFERROR("Nota : "&VLOOKUP(I10,Dt_Limite,3,0)," ") -> Nota : Puede aplicar hasta 25 millones de presupuesto dependiendo los puntos comprometidos | N48: Total Solicitado :===> | P48: =IF(G103=0,P50,G103) -> 125000000
L49: Consulte sobre los ítems
A50: =ROW() -> 50 | B50: No | C50: Rubro / Destino | D50: Año de Vigencia | E50: Descripción (Entidad) | F50: Código DANE | G50: Financiación VICEIN $ | H50: =G110 -> $ Contrapartida Facultad | I50: Contrapartida Otros $ | L50: No | M50: Nombre Rubro | N50: Rubro | O50: Limite% | P50: =N2 -> 125000000 | Q50: Solicitado $VICEIN | R50: Limites de topes
B51: =ROW()-$A$50 -> 1 | C51: Personal | D51: 1 | E51: Contrapartida definida por VICEIN (No Habilitado) | G51: 0 | H51: =IF(H10="INV",N19,N18) -> 0 | L51: =ROW()-50 -> 1 | M51: Personal | N51: 611401 | O51: 1 | P51: =SUMIF($C$50:$C$102,$M51,$G$50:$G$102) -> 0 | Q51: =P51/$P$48 -> 0 | R51: =($P$48/100)*O51*100 -> 125000000
B52: =ROW()-$A$50 -> 2 | D52: 1 | L52: =ROW()-50 -> 2 | M52: Equipos | N52: 632 | O52: 0.5 | P52: 0 | Q52: 0 | R52: 62500000
B53: 3 | D53: 1 | L53: 3 | M53: Equipos en proceso | N53: 632 | O53: 1 | P53: 0 | Q53: 0 | R53: 125000000
B54: 4 | D54: 1 | L54: 4 | M54: Software | N54: 612102 | O54: 0 | P54: 0 | Q54: 0 | R54: 0
B55: 5 | D55: 1 | L55: 5 | M55: Materiales | N55: 612101 | O55: 1 | P55: 0 | Q55: 0 | R55: 125000000
B56: 6 | D56: 1 | L56: 6 | M56: Materiales (Papelería) | N56: 612101 | O56: 0 | P56: 0 | Q56: 0 | R56: =($P$48/100)*O56*100 -> 0
B57: 7 | D57: 1 | L57: 7 | M57: Salidas de Campo | N57: 612104 | O57: 0 | P57: 0 | Q57: 0 | R57: =($P$48/100)*O57*100 -> 0
B58: 8 | D58: 1 | L58: 8 | M58: Servicios Técnicos | N58: 612103 | O58: 1 | P58: 0 | Q58: =P58/$P$48 -> 0 | R58: 125000000
B59: 9 | D59: 1 | L59: 9 | M59: Recursos Bibliográficos | N59: 633 | O59: 0 | P59: 0 | Q59: =P59/$P$48 -> 0 | R59: 0
B60: 10 | D60: 1 | L60: 10 | M60: Estímulo a estudiantes Pregrado | N60: Pendiente | O60: 0 | P60: 0 | Q60: 0 | R60: 0
B61: 11 | D61: 1 | L61: 11 | M61: Estímulo a estudiantes Posgrado | N61: Pendiente | O61: 0 | P61: 0 | Q61: 0 | R61: 0
B62: 12 | D62: 1 | L62: 12 | M62: Movilidad | N62: 635020 | O62: 0 | P62: 0 | Q62: 0 | R62: 0
B63: 13 | D63: 1 | L63: 13 | M63: Licencias por suscripción | N63: Pendiente | O63: 0 | P63: 0 | Q63: 0 | R63: 0
B64: 14 | D64: 1 | L64: 14 | M64: Viajes | Q64: 0
B65: 15 | D65: 1 | L65: 15 | M65: Mantenimiento | Q65: 0
B66: 16 | D66: 1 | L66: 16 | M66: Administración | Q66: 0
B67: 17 | D67: 1 | L67: 17 | M67: Construcciones | Q67: 0
B68: 18 | D68: 1 | L68: 18 | M68: Otros Gastos | Q68: 0
B69: 19 | D69: 1 | M69: Si cambio
B70: 20 | D70: 1
B71: 21 | D71: 1
B72: 22 | D72: 1
B73: 23 | D73: 1
B74: 24 | D74: 1
B75: 25 | D75: 1
B76: 26 | D76: 1
B77: 27 | D77: 1
B78: 28 | D78: 1
B79: 29 | D79: 1
B80: 30 | D80: 1
B81: 31 | D81: 1
B82: 32 | D82: 1
B83: 33 | D83: 1
B84: 34 | D84: 1
B85: 35 | D85: 1
B86: 36 | D86: 1
B87: 37 | D87: 1
B88: 38 | D88: 1
B89: 39 | D89: 1
B90: 40 | D90: 1
B91: 41 | D91: 1
B92: 42 | D92: 1
B93: 43 | D93: 1
B94: 44 | D94: 1
B95: 45 | D95: 1
B96: 46 | D96: 1
B97: 47 | D97: 1
B98: 48 | D98: 1
B99: 49 | D99: 1
B100: 50 | D100: 1
B101: 51 | D101: 1
C103: Sumatoria general de plan de compras : | F103: =SUM(G103:I103) -> 0 | G103: =SUM(G104:G105) -> 0 | H103: =SUM(H104:H105) -> 0 | I103: =SUM(I104:I105) -> 0
D104: 1 | E104: ="Total Presupuesto Año 1 "&IF(H10="IMP","IMP","")&":" -> Total Presupuesto Año 1 : | G104: =IF(Cel_TP="IMP",SUMIF($D$51:$D$102,$D104,G$51:G$102),SUM(G$51:G$102))-L103 -> 0 | H104: =SUMIF($D$51:$D$102,$D104,H$51:H$102) -> 0 | I104: =SUMIF($D$51:$D$102,$D104,I$51:I$102) -> 0
D105: 2 | E105: Total Presupuesto Año 2 (IMP) : | G105: =IF(H10="INV",0,SUMIF($D$51:$D$102,$D105,G$51:G$102)) -> 0 | H105: =IF(H10="INV",0,SUMIF($D$51:$D$102,$D105,H$51:H$102)) -> 0 | I105: =IF(H10="INV",0,SUMIF($D$51:$D$102,$D105,I$51:I$102)) -> 0
C106: Firma :_______________ | E106: =IF(G106>0,"Presupuesto por definir."," Error - Supero el presupuesto en : ") -> Presupuesto por definir. | G106: =E157-G103 -> 125000000
D107: =IF(H10="INV",1,2) -> 2 | E107: Límite de presupuesto VICEIN por año : | G107: =IFERROR(IF($H$10="IMP",$P$6/2,$N$2),"0") -> 125000000
B110: No | C110: Rubro | D110: % | E110: Porcentaje | F110: $ Financiación solicitada a VICEIN | G110: $ Contrapartida Facultad | H110: $ Contrapartida Externa | I110: $ Total Rubro | J110: 0
B111: 1 | C111: =C113 -> Personal | D111: =IFERROR(F111/F113,0) -> 0 | E111: =D111 -> 0 | F111: =SUMIFS(G$50:G$102,$C$50:$C$102,$C111,$D$50:$D$102,$J111) -> 0 | G111: 0 | H111: 0 | I111: =SUM(F111:H111) -> 0 | J111: 1 | K111: =IFERROR(VLOOKUP($B109,$L$50:$Q$68,4,0),0) -> 0
B112: 1 | C112: =C113 -> Personal | D112: =IFERROR(F111/F113,0) -> 0 | E112: 0 | F112: 0 | G112: 0 | H112: 0 | I112: 0 | J112: 2 | T112: =SUM(I157) -> 0 | U112: =S112-T112 -> 0
B113: 1 | C113: =M51 -> Personal | D113: =IFERROR(VLOOKUP($B113,Dt_TblaPresu,6,0),0) -> 0 | E113: 0 | F113: =SUM(F111:F112) -> 0 | G113: =SUM(G111:G112) -> 0 | H113: =SUM(H111:H112) -> 0 | I113: 0 | J113: 3 | K113: =IFERROR(VLOOKUP($B111,$L$50:$Q$68,4,0),0) -> 1
B114: =B111+1 -> 2 | C114: =C116 -> Equipos | D114: =IFERROR(F114/F116,0) -> 0 | E114: 0 | F114: =SUMIFS(G$50:G$102,$C$50:$C$102,$C114,$D$50:$D$102,$J114) -> 0 | G114: 0 | H114: 0 | I114: 0 | J114: =J111 -> 1 | K114: =IFERROR(VLOOKUP($B112,$L$50:$Q$68,4,0),0) -> 1
B115: =B112+1 -> 2 | C115: =C116 -> Equipos | D115: =IFERROR(F114/F116,0) -> 0 | E115: 0 | F115: 0 | G115: 0 | H115: 0 | I115: 0 | J115: =J112 -> 2 | K115: 1
B116: 2 | C116: =M52 -> Equipos | D116: =IFERROR(VLOOKUP($B116,$L$50:$Q$68,6,0),0) -> 0 | E116: =D116 -> 0 | F116: =SUM(F114:F115) -> 0 | G116: =SUM(G114:G115) -> 0 | H116: =SUM(H114:H115) -> 0 | I116: 0 | J116: =J113 -> 3 | K116: 0.5
B117: 3 | C117: =C119 -> Equipos en proceso | D117: =IFERROR(F117/F119,0) -> 0 | E117: 0 | F117: =SUMIFS(G$50:G$102,$C$50:$C$102,$C117,$D$50:$D$102,$J117) -> 0 | G117: 0 | H117: 0 | I117: 0 | J117: 1 | K117: 0.5
B118: 3 | C118: =C119 -> Equipos en proceso | D118: =IFERROR(F117/F119,0) -> 0 | E118: 0 | F118: 0 | G118: 0 | H118: 0 | I118: 0 | J118: 2 | K118: 0.5
B119: 3 | C119: =M53 -> Equipos en proceso | D119: =IFERROR(VLOOKUP($B119,$L$50:$Q$68,6,0),0) -> 0 | E119: 0 | F119: =SUM(F117:F118) -> 0 | G119: =SUM(G117:G118) -> 0 | H119: =SUM(H117:H118) -> 0 | I119: 0 | J119: 3 | K119: 1
B120: 4 | C120: =C122 -> Software | D120: =IFERROR(F120/F122,0) -> 0 | E120: 0 | F120: =SUMIFS(G$50:G$102,$C$50:$C$102,$C120,$D$50:$D$102,$J120) -> 0 | G120: 0 | H120: 0 | I120: 0 | J120: 1 | K120: 1
B121: 4 | C121: =C122 -> Software | D121: =IFERROR(F120/F122,0) -> 0 | E121: 0 | F121: 0 | G121: 0 | H121: 0 | I121: 0 | J121: 2 | K121: 1
B122: 4 | C122: =M54 -> Software | D122: =IFERROR(VLOOKUP($B122,$L$50:$Q$68,6,0),0) -> 0 | E122: 0 | F122: =SUM(F120:F121) -> 0 | G122: =SUM(G120:G121) -> 0 | H122: =SUM(H120:H121) -> 0 | I122: 0 | J122: 3 | K122: 0
B123: 5 | C123: =C125 -> Materiales | D123: =IFERROR(F123/F125,0) -> 0 | E123: 0 | F123: =SUMIFS(G$50:G$102,$C$50:$C$102,$C123,$D$50:$D$102,$J123) -> 0 | G123: 0 | H123: 0 | I123: 0 | J123: 1 | K123: 0
B124: 5 | C124: =C125 -> Materiales | D124: =IFERROR(F123/F125,0) -> 0 | E124: 0 | F124: 0 | G124: 0 | H124: 0 | I124: 0 | J124: 2 | K124: 0
B125: 5 | C125: =M55 -> Materiales | D125: =IFERROR(VLOOKUP($B125,$L$50:$Q$68,6,0),0) -> 0 | E125: 0 | F125: =SUM(F123:F124) -> 0 | G125: =SUM(G123:G124) -> 0 | H125: =SUM(H123:H124) -> 0 | I125: 0 | J125: 3 | K125: 1
B126: 6 | C126: =C128 -> Materiales (Papelería) | D126: =IFERROR(F126/F128,0) -> 0 | E126: 0 | F126: =SUMIFS(G$50:G$102,$C$50:$C$102,$C126,$D$50:$D$102,$J126) -> 0 | G126: 0 | H126: 0 | I126: 0 | J126: 1 | K126: 1
B127: 6 | C127: =C128 -> Materiales (Papelería) | D127: =IFERROR(F126/F128,0) -> 0 | E127: 0 | F127: 0 | G127: 0 | H127: 0 | I127: 0 | J127: 2 | K127: 1
B128: 6 | C128: =M56 -> Materiales (Papelería) | D128: =IFERROR(VLOOKUP($B128,$L$50:$Q$68,6,0),0) -> 0 | E128: 0 | F128: =SUM(F126:F127) -> 0 | G128: =SUM(G126:G127) -> 0 | H128: =SUM(H126:H127) -> 0 | I128: 0 | J128: 3 | K128: 0
B129: 7 | C129: =C131 -> Salidas de Campo | D129: =IFERROR(F129/F131,0) -> 0 | E129: 0 | F129: =SUMIFS(G$50:G$102,$C$50:$C$102,$C129,$D$50:$D$102,$J129) -> 0 | G129: 0 | H129: 0 | I129: 0 | J129: 1 | K129: 0
B130: 7 | C130: =C131 -> Salidas de Campo | D130: =IFERROR(F129/F131,0) -> 0 | E130: 0 | F130: 0 | G130: 0 | H130: 0 | I130: 0 | J130: 2 | K130: 0
B131: 7 | C131: =M57 -> Salidas de Campo | D131: =IFERROR(VLOOKUP($B131,$L$50:$Q$68,6,0),0) -> 0 | E131: 0 | F131: =SUM(F129:F130) -> 0 | G131: =SUM(G129:G130) -> 0 | H131: =SUM(H129:H130) -> 0 | I131: 0 | J131: 3 | K131: 0
B132: 8 | C132: =C134 -> Servicios Técnicos | D132: =IFERROR(F132/F134,0) -> 0 | E132: 0 | F132: =SUMIFS(G$50:G$102,$C$50:$C$102,$C132,$D$50:$D$102,$J132) -> 0 | G132: 0 | H132: 0 | I132: 0 | J132: 1 | K132: 0
B133: 8 | C133: =C134 -> Servicios Técnicos | D133: =IFERROR(F132/F134,0) -> 0 | E133: 0 | F133: 0 | G133: 0 | H133: 0 | I133: 0 | J133: 2 | K133: 0
B134: 8 | C134: =M58 -> Servicios Técnicos | D134: =IFERROR(VLOOKUP($B134,$L$50:$Q$68,6,0),0) -> 0 | E134: 0 | F134: =SUM(F132:F133) -> 0 | G134: =SUM(G132:G133) -> 0 | H134: =SUM(H132:H133) -> 0 | I134: 0 | J134: 3 | K134: 1
B135: 9 | C135: =C137 -> Recursos Bibliográficos | D135: =IFERROR(F135/F137,0) -> 0 | E135: 0 | F135: =SUMIFS(G$50:G$102,$C$50:$C$102,$C135,$D$50:$D$102,$J135) -> 0 | G135: 0 | H135: 0 | I135: 0 | J135: 1 | K135: 1
B136: 9 | C136: =C137 -> Recursos Bibliográficos | D136: =IFERROR(F135/F137,0) -> 0 | E136: 0 | F136: 0 | G136: 0 | H136: 0 | I136: 0 | J136: 2 | K136: 1
B137: 9 | C137: =M59 -> Recursos Bibliográficos | D137: =IFERROR(VLOOKUP($B137,$L$50:$Q$68,6,0),0) -> 0 | E137: 0 | F137: =SUM(F135:F136) -> 0 | G137: =SUM(G135:G136) -> 0 | H137: =SUM(H135:H136) -> 0 | I137: 0 | J137: 3 | K137: 0
B138: 10 | C138: =C140 -> Estímulo a estudiantes Pregrado | D138: =IFERROR(F138/F140,0) -> 0 | E138: 0 | F138: =SUMIFS(G$50:G$102,$C$50:$C$102,$C138,$D$50:$D$102,$J138) -> 0 | G138: 0 | H138: 0 | I138: =SUM(F138:H138) -> 0 | J138: 1 | K138: 0
B139: 10 | C139: =C140 -> Estímulo a estudiantes Pregrado | D139: =IFERROR(F138/F140,0) -> 0 | E139: 0 | F139: 0 | G139: 0 | H139: 0 | I139: =SUM(F139:H139) -> 0 | J139: 2 | K139: 0
B140: 10 | C140: =M60 -> Estímulo a estudiantes Pregrado | D140: =IFERROR(VLOOKUP($B138,$L$50:$Q$68,6,0),0) -> 0 | E140: =D140 -> 0 | F140: =SUM(F138:F139) -> 0 | G140: =SUM(G138:G139) -> 0 | H140: =SUM(H138:H139) -> 0 | I140: =SUM(F140:H140) -> 0 | J140: 3 | K140: =IFERROR(VLOOKUP($B138,$L$50:$Q$68,4,0),0) -> 0
B141: 11 | C141: =C143 -> Estímulo a estudiantes Posgrado | D141: =IFERROR(F141/F143,0) -> 0 | E141: 0 | F141: =SUMIFS(G$50:G$102,$C$50:$C$102,$C141,$D$50:$D$102,$J141) -> 0 | G141: 0 | H141: 0 | I141: 0 | J141: 1 | K141: 0
B142: 11 | C142: =C143 -> Estímulo a estudiantes Posgrado | D142: =IFERROR(F141/F143,0) -> 0 | E142: 0 | F142: 0 | G142: 0 | H142: 0 | I142: 0 | J142: 2 | K142: 0
B143: 11 | C143: =M61 -> Estímulo a estudiantes Posgrado | D143: =IFERROR(VLOOKUP($B141,$L$50:$Q$68,6,0),0) -> 0 | E143: =D143 -> 0 | F143: =SUM(F141:F142) -> 0 | G143: =SUM(G141:G142) -> 0 | H143: =SUM(H141:H142) -> 0 | I143: 0 | J143: 3 | K143: 0
B144: 12 | C144: =C146 -> Movilidad | D144: =IFERROR(VLOOKUP($B142,$L$50:$Q$68,6,0),0) -> 0 | E144: 0 | F144: =SUMIFS(G$50:G$102,$C$50:$C$102,$C144,$D$50:$D$102,$J144) -> 0 | G144: 0 | H144: 0 | I144: =SUM(F144:H144) -> 0 | J144: =J135 -> 1 | K144: 0
B145: 11 | C145: =C146 -> Movilidad | D145: 0 | E145: 0 | F145: 0 | G145: 0 | H145: 0 | I145: =SUM(F145:H145) -> 0 | J145: 2 | K145: 0
B146: 11 | C146: =M62 -> Movilidad | D146: 0 | E146: =D146 -> 0 | F146: =SUM(F144:F145) -> 0 | G146: =SUM(G144:G145) -> 0 | H146: =SUM(H144:H145) -> 0 | I146: =SUM(F146:H146) -> 0 | J146: 3 | K146: 0
B147: 13 | C147: =C149 -> Licencias por suscripción | D147: 0 | E147: 0 | F147: =SUMIFS(G$50:G$102,$C$50:$C$102,$C147,$D$50:$D$102,$J147) -> 0 | G147: 0 | H147: 0 | I147: 0 | J147: 1 | K147: 0
B148: 12 | C148: =C149 -> Licencias por suscripción | D148: 0 | E148: 0 | F148: 0 | G148: 0 | H148: 0 | I148: 0 | J148: 2 | K148: 0
B149: 12 | C149: =M63 -> Licencias por suscripción | D149: 0 | E149: 0 | F149: =SUM(F147:F148) -> 0 | G149: =SUM(G147:G148) -> 0 | H149: =SUM(H147:H148) -> 0 | I149: 0 | J149: 3 | K149: 0
B150: 13 | C150: Viajes | F150: =SUMIFS(G$50:G$102,$C$50:$C$102,$C150,$D$50:$D$102,$J150) -> 0 | G150: =SUMIFS(H$50:H$102,$C$50:$C$102,$C150) -> 0 | H150: =SUMIFS(I$50:I$102,$C$50:$C$102,$C150) -> 0 | I150: 0 | J150: =J149 -> 3 | M150: La siguiente tabla de plan de compras debe diligenciarse manualmente ya que no arrastra información de otros campos exceptuando la parte de contrapartida
B151: 14 | C151: Mantenimiento | F151: =SUMIFS(G$50:G$102,$C$50:$C$102,$C151,$D$50:$D$102,$J151) -> 0 | G151: =SUMIFS(H$50:H$102,$C$50:$C$102,$C151) -> 0 | H151: 0 | I151: 0 | J151: =J150 -> 3
B152: 15 | C152: Administración | F152: =SUMIFS(G$50:G$102,$C$50:$C$102,$C152,$D$50:$D$102,$J152) -> 0 | G152: 0 | H152: 0 | I152: 0 | J152: =J151 -> 3
B153: 16 | C153: Construcciones | F153: =SUMIFS(G$50:G$102,$C$50:$C$102,$C153,$D$50:$D$102,$J153) -> 0 | G153: 0 | H153: 0 | I153: 0 | J153: =J152 -> 3
B154: 17 | C154: Otros Gastos | F154: =SUMIFS(G$50:G$102,$C$50:$C$102,$C154,$D$50:$D$102,$J154) -> 0 | G154: 0 | H154: 0 | I154: 0 | J154: =J153 -> 3
B155: T1 | C155: $ Total General (Año 1) | F155: =SUMIFS(F$111:F$154,$J$111:$J$154,$J155) -> 0 | G155: =SUMIFS(G$111:G$154,$J$111:$J$154,$J155)+SUM(G150:G154) -> 0 | H155: =SUMIFS(H$111:H$154,$J$111:$J$154,$J155) -> 0 | I155: 0 | J155: 1
B156: T2 | C156: $ Total General (Año 2) | F156: =SUMIFS(F$111:F$154,$J$111:$J$154,$J156) -> 0 | G156: =SUMIFS(G$111:G$154,$J$111:$J$154,$J156) -> 0 | H156: =SUMIFS(H$111:H$154,$J$111:$J$154,$J156) -> 0 | I156: 0 | J156: 2
B157: T3 | C157: ="TotalesPlan compras - (máximo):" -> TotalesPlan compras - (máximo): | E157: =N2 -> 125000000 | F157: =SUMIFS(F$111:F$154,$J$111:$J$154,$J157) -> 0 | G157: =SUMIFS(G$111:G$154,$J$111:$J$154,$J157) -> 0 | H157: =SUMIFS(H$111:H$154,$J$111:$J$154,$J157) -> 0 | I157: 0 | J157: 3
B159: Nombre Institución Externa : | J159: 1
D161: Propuesta: | E161: =D7 -> 0
C163: Firma de responsable
C168: *Pueden Ocultar las Filas que no se utilicen ( Favor no eliminar filas).
C169: ** en el caso de necesitar mas filas en el plan de compras (Comunicarse con la VICEIN para que se pueda realizar el ajuste)

Sheet Bibliografía
A1: 11 | G1: *Pueden Ocultar las Filas que no se utilicen.
C2: =General!B2 -> PRESENTACIÓN DE PROPUESTAS DE IDEAS INNOVADORAS 2025-1 | D2: =General!$H$2 -> Fecha de Emisión: 2018/03/06 | E2: =General!$I$2 -> IN-IE-F-7
D3: =General!$H$3 -> Revisión N°: 4 | E3: ="Página "&$A$1&" de "&Dt_TPG -> Página 11 de 11 | G3: =SUM(G7:G3500) -> 0 | H3: <== Total de palabras
A5: 15.- | B5: # | C5: Bibliografía de la propuesta. | G5: Largo
B7: =ROW()-6 -> 1 | G7: =IF(C7="",0,LEN(TRIM(C7))-LEN(SUBSTITUTE(TRIM(C7)," ",""))+1) -> 0
B8: =ROW()-6 -> 2 | G8: =IF(C8="",0,LEN(TRIM(C8))-LEN(SUBSTITUTE(TRIM(C8)," ",""))+1) -> 0
B9: 3 | G9: 0
B10: 4 | G10: 0
B11: 5 | G11: 0
B12: 6 | G12: 0
B13: 7 | G13: 0
B14: 8 | G14: 0
B15: 9 | G15: 0
B16: 10 | G16: 0
B17: 11 | G17: 0
B18: 12 | G18: 0
B19: 13 | G19: 0
B20: 14 | G20: 0
B21: 15 | G21: 0
B22: 16 | G22: 0
B23: 17 | G23: 0
B24: 18 | G24: 0
B25: 19 | G25: 0
B26: 20 | G26: 0
B27: 21 | G27: 0
B28: 22 | G28: 0
B29: 23 | G29: 0
B30: 24 | G30: 0
B31: 25 | G31: 0
B32: 26 | G32: 0
B33: 27 | G33: 0
B34: 28 | G34: 0
B35: 29 | G35: 0
B39: *Pueden Ocultar las Filas que no se utilicen.

Sheet Declaración
A1: 13 | G1: *Pueden Ocultar las Filas que no se utilicen.
C2: =Bibliografía!C2 -> PRESENTACIÓN DE PROPUESTAS DE IDEAS INNOVADORAS 2025-1 | D2: Fecha de Emisión: 2019/03/18 | E2: IN-IV-F-14
D3: Revisión N°: 4 | E3: ="Página "&$A$1&" de "&Dt_TPG -> Página 13 de 11 | G3: =SUM(G10:G3510) -> 0 | H3: <== Total de palabras
A5: 15.- | B5: # | C5: Declaración la propuesta. | G5: Largo
C7: ="Título Proyecto: "&General!B9 -> Título Proyecto:
C8: ="Lider del proyecto: "&Presupuesto!D8 -> Lider del proyecto: 0
C10: a. Los innovadores y coinnovadores declaran con la presentación de las propuestas que la información suministrada es veraz y puede ser verificable por la Universidad Militar Nueva Granada en cualquier momento. Ante cualquier inconsistencia se podrá rechazar la propuesta y de ser el caso implicar la pérdida de la financiación del proyecto. Sin perjuicio de los procesos disciplinarios asociados.
C11: b. La presentación de las propuestas a la convocatoria constituye la aceptación de los términos establecidos y sus anexos, en cuanto a características, condiciones y requisitos.
C12: c. La presentación de la propuesta constituye la aceptación, expresa e irrevocable de los innovadores y coinnovadores, que conocen los lineamientos y condiciones de los términos de referencia, así como, que se someten a lo establecido durante las fases de la convocatoria, de legalización, ejecución y liquidación.
C13: d. Se aceptarán únicamente las propuestas que participen a través del procedimiento establecido y los plazos previstos en la presente convocatoria.
C14: e. La propuesta participante no podrá haber sido financiada previamente por la Universidad Militar Nueva Granada ni por otra fuente de financiación pública o privada.
C15: f. La propuesta participante no podrá ser financiada simultáneamente por otra convocatoria interna o con recursos de otras entidades del Estado o agencias públicas internacionales.
C16: g. Los participantes deben asegurar que cuentan o que obtendrán los permisos y licencias respectivas para el cumplimiento de la normatividad colombiana vigente en relación con el objeto y desarrollo de la propuesta.
C19: El innovador principal y coinnovador del proyecto firman aceptando esta declaración :
C30: Firma y fecha : _________________________________
B49: *Pueden Ocultar las Filas que no se utilicen ( Favor no eliminar filas).
